Ref No,Fund Type,Dept,Cost Centre Description    ,Description    ,Creditor Name    ,GL Code Net Amount,Payment date        
1,Revenue,CCHD,Under 65s PWLD - KH,Residential Homes,Individual,9810, 14-Jun-2011
2,Revenue,CCHD,Supporting People Programme,Grants to Voluntary Bodies,1625 Independent People,3658.32, 20-Jun-2011
3,Revenue,CCHD,Supporting People Programme,Grants to Voluntary Bodies,1625 Independent People,14490.12, 20-Jun-2011
4,Revenue,CCHD,Purchase of Non-Res Care - KH,Private & Voluntary Day Care,3 Trees Community Support Ltd,2932.82, 16-Jun-2011
5,Revenue,CCHD,Purchase of Non-Res Care - KD,Private & Voluntary Day Care,3 Trees Community Support Ltd,1568.55, 08-Jun-2011
6,Revenue,CCHD,Supported Living - KH,Private & Voluntary Home Care,3 Trees Community Support Ltd,1356.4, 16-Jun-2011
7,Revenue,CCHD,Purchase of Non-Res Care - KD,Private & Voluntary Day Care,3 Trees Community Support Ltd,835.73, 14-Jun-2011
8,Revenue,CCHD,Purchase of Non-Res Care - KD,Private & Voluntary Day Care,3 Trees Community Support Ltd,5439.92, 08-Jun-2011
9,Revenue,CCHD,Supported Living - KD,Private & Voluntary Home Care,3 Trees Community Support Ltd,2371.45, 08-Jun-2011
10,Revenue,CCHD,Purchase of Non-Res Care - KD,Private & Voluntary Day Care,3 Trees Community Support Ltd,4791.92, 14-Jun-2011
11,Revenue,CCHD,Purchase of Non-Res Care - PS,Private & Voluntary Day Care,3 Trees Community Support Ltd,526.34, 07-Jun-2011
12,Revenue,CCHD,Supported Living - KD,Private & Voluntary Home Care,3 Trees Community Support Ltd,62932.03, 07-Jun-2011
13,Revenue,CCHD,Supported Living - KH,Private & Voluntary Home Care,3 Trees Community Support Ltd,9494.6, 21-Jun-2011
14,Revenue,CCHD,Purchase of Non-Res Care - KD,Private & Voluntary Day Care,3 Trees Community Support Ltd,1342.12, 14-Jun-2011
15,Revenue,CCHD,Supported Living - KH,Private & Voluntary Home Care,3 Trees Community Support Ltd,1393.78, 16-Jun-2011
16,Revenue,CCHD,Supported Living (S28a),Private & Voluntary Home Care,3 Trees Community Support Ltd,7606.95, 20-Jun-2011
17,Revenue,CCHD,Purchase of Non-Res Care - KD,Private & Voluntary Day Care,3 Trees Community Support Ltd,5580.08, 29-Jun-2011
18,Revenue,CCHD,Supported Living - KD,Private & Voluntary Home Care,3 Trees Community Support Ltd,2808.43, 22-Jun-2011
19,Revenue,CCHD,Supported Living - KD,Private & Voluntary Home Care,3 Trees Community Support Ltd,7033.75, 23-Jun-2011
20,Revenue,CCHD,Purchase of Non-Res Care - KD,Private & Voluntary Day Care,3 Trees Community Support Ltd,1061.12, 23-Jun-2011
21,Revenue,CCHD,Home Care Purch North,Other Small Contracts,3 Trees Community Support Ltd,625.8, 23-Jun-2011
22,Revenue,CCHD,Purchase of Non-Res Care - KD,Private & Voluntary Day Care,3 Trees Community Support Ltd,1882.26, 23-Jun-2011
23,Revenue,CCHD,Purchase of Non-Res Care - KD,Private & Voluntary Day Care,3 Trees Community Support Ltd,2076.75, 23-Jun-2011
24,Revenue,CCHD,Purchase of Non-Res Care - KD,Private & Voluntary Day Care,3 Trees Community Support Ltd,1451.04, 22-Jun-2011
25,Revenue,CCHD,Supported Living - KH,Private & Voluntary Home Care,3 Trees Community Support Ltd,7695.45, 22-Jun-2011
26,Revenue,CCHD,Purchase of Non-Res Care - KD,Private & Voluntary Day Care,3 Trees Community Support Ltd,660.8, 23-Jun-2011
27,Revenue,CCHD,Purchase of Non-Res Care - KH,Private & Voluntary Day Care,3 Trees Community Support Ltd,3538.22, 22-Jun-2011
28,Revenue,CCHD,Purchase of Non-Res Care - KH,Private & Voluntary Day Care,3 Trees Community Support Ltd,2932.82, 16-Jun-2011
29,Revenue,CCHD,PD Direct Payments North,Grants to Voluntary Bodies,A4E Management Limited,22857.93, 07-Jun-2011
30,Revenue,CCHD,PD Direct Payments North,Grants to Voluntary Bodies,A4E Management Limited,22857.93, 24-Jun-2011
31,Revenue,CCHD,Under 65s PWLD - KD,Residential Homes,Abbeymead Lodge,6770.72, 14-Jun-2011
32,Revenue,CCHD,Elderly Purchasing - South,Residential Homes,Ablecare Homes,903.4, 14-Jun-2011
33,Revenue,CCHD,Southmead Hospital Purchasing,Residential Homes,Ablecare Homes,1418.08, 14-Jun-2011
34,Revenue,CCHD,Elderly Mental Health,Residential Homes,Ablecare Homes,1389, 14-Jun-2011
35,Revenue,CCHD,Elderly Purchasing - North,Residential Homes,Ablecare Homes,871.04, 14-Jun-2011
36,Revenue,CCHD,Frenchay Hospital Purchasing,Residential Homes,Ablecare Homes,1283.64, 14-Jun-2011
37,Revenue,CCHD,Elderly Purchasing - North,Residential Homes,Ablecare Homes,1226.72, 14-Jun-2011
38,Revenue,CCHD,Elderly Purchasing - South,Residential Homes,Ablecare Homes,1089.08, 14-Jun-2011
39,Revenue,CCHD,Frenchay Hospital Purchasing,Residential Homes,Ablecare Homes,1232.16, 14-Jun-2011
40,Revenue,CCHD,Elderly Mental Health,Residential Homes,Ablecare Homes,1267.32, 14-Jun-2011
41,Revenue,CCHD,Elderly Mental Health,Residential Homes,Ablecare Homes,1180.8, 14-Jun-2011
42,Revenue,CCHD,Elderly Purchasing - South,Residential Homes,Ablecare Homes,1263.6, 14-Jun-2011
43,Revenue,CCHD,Elderly Purchasing - North,Residential Homes,Ablecare Homes,1845.52, 14-Jun-2011
44,Revenue,CCHD,Management & Support costs,Other Supplies & Services,ACAS,835, 28-Jun-2011
45,Revenue,CCHD,P&SI - Commissioned Services,Grants to Voluntary Bodies,Action for Blind People,18750, 30-Jun-2011
46,Revenue,CCHD,Home Care Purch North,Other Small Contracts,Agincare UK Limited,799.96, 13-Jun-2011
47,Revenue,CCHD,Home Care Purch North,Other Small Contracts,Agincare UK Limited,799.96, 13-Jun-2011
48,Revenue,CCHD,Home Care Purch North,Other Small Contracts,Agincare UK Limited,799.96, 13-Jun-2011
49,Revenue,CCHD,Home Care Purch North,Other Small Contracts,Agincare UK Limited,1549.94, 13-Jun-2011
50,Revenue,CCHD,Home Care Purch North,Other Small Contracts,Agincare UK Limited,799.96, 13-Jun-2011
51,Revenue,CCHD,Home Care Purch North,Other Small Contracts,Agincare UK Limited,799.96, 30-Jun-2011
52,Revenue,CCHD,Home Care Purch North,Other Small Contracts,Agincare UK Limited,1549.94, 16-Jun-2011
53,Revenue,CCHD,Home Care Purch North,Other Small Contracts,Agincare UK Limited,799.96, 30-Jun-2011
54,Revenue,CCHD,Home Care Purch North,Other Small Contracts,Agincare UK Limited,1549.94, 21-Jun-2011
55,Revenue,CCHD,Contracts & Commissioning Team,Other Small Contracts,Agincare UK Limited,3500, 03-Jun-2011
56,Revenue,CCHD,Contracts & Commissioning Team,Other Small Contracts,Agincare UK Limited,3500, 10-Jun-2011
57,Revenue,CCHD,Contracts & Commissioning Team,Other Small Contracts,Agincare UK Limited,3500, 17-Jun-2011
58,Revenue,CCHD,Contracts & Commissioning Team,Other Small Contracts,Agincare UK Limited,3500, 24-Jun-2011
59,Revenue,CCHD,S117 Placements PCT,Residential Homes,Alexandra House,6697.76, 14-Jun-2011
60,Revenue,CCHD,Under 65s PWLD - KD,Residential Homes,Alexandra House,6332.24, 14-Jun-2011
61,Revenue,CCHD,Southmead Hospital Team,Agency Staff (Operational)/PCT Pay,Allied Health Professionals Ltd,1168, 07-Jun-2011
62,Revenue,CCHD,Southmead Hospital Team,Agency Staff (Operational)/PCT Pay,Allied Health Professionals Ltd,1200, 03-Jun-2011
63,Revenue,CCHD,Southmead Hospital Team,Agency Staff (Operational)/PCT Pay,Allied Health Professionals Ltd,1200, 10-Jun-2011
64,Revenue,CCHD,Southmead Hospital Team,Agency Staff (Operational)/PCT Pay,Allied Health Professionals Ltd,1200, 23-Jun-2011
65,Revenue,CCHD,Section 117 Placements,Private & Voluntary Day Care,Alzheimers Society Bristol Branch,585.36, 02-Jun-2011
66,Revenue,CCHD,Elderly MH non-res purchasing,Private & Voluntary Day Care,Alzheimers Society Bristol Branch,807.36, 14-Jun-2011
67,Revenue,CCHD,Elderly MH non-res purchasing,Private & Voluntary Day Care,Alzheimers Society Bristol Branch,740.08, 14-Jun-2011
68,Revenue,CCHD,Elderly MH non-res purchasing,Private & Voluntary Day Care,Alzheimers Society Bristol Branch,874.64, 14-Jun-2011
69,Revenue,CCHD,Elderly MH non-res purchasing,Private & Voluntary Day Care,Alzheimers Society Bristol Branch,605.52, 14-Jun-2011
70,Revenue,CCHD,Section 117 Placements,Private & Voluntary Day Care,Alzheimers Society Bristol Branch,538.24, 14-Jun-2011
71,Revenue,CCHD,Under 65s PWLD - KD,Residential Homes,Ark Care Homes Ltd,10324.72, 14-Jun-2011
72,Revenue,CCHD,Bed and Breakfast,Bed & Breakfast,Ashley Guest House Ltd,600, 27-Jun-2011
73,Revenue,CCHD,Bed and Breakfast,Bed & Breakfast,Ashley Guest House Ltd,1008, 21-Jun-2011
74,Revenue,CCHD,Bed and Breakfast,Bed & Breakfast,Ashley Guest House Ltd,720, 21-Jun-2011
75,Revenue,CCHD,Bed and Breakfast,Bed & Breakfast,Ashley Guest House Ltd,840, 21-Jun-2011
76,Revenue,CCHD,Bed and Breakfast,Bed & Breakfast,Ashley Guest House Ltd,456, 27-Jun-2011
77,Revenue,CCHD,S28A - Over 65,Residential Homes,Aspects &  Milestones Trust,4011.76, 14-Jun-2011
78,Revenue,CCHD,Elderly Purchasing - South,Residential Homes,Aspects &  Milestones Trust,1347.08, 14-Jun-2011
79,Revenue,CCHD,Elderly Mental Health,Residential Homes,Aspects &  Milestones Trust,1229, 14-Jun-2011
80,Revenue,CCHD,Section 117 Placements,Residential Homes,Aspects &  Milestones Trust,1304, 14-Jun-2011
81,Revenue,CCHD,Under 65s PWLD - PS,Residential Homes,Aspects &  Milestones Trust,5611.48, 14-Jun-2011
82,Revenue,CCHD,Elderly PWLD - PS,Residential Homes,Aspects &  Milestones Trust,3304.92, 14-Jun-2011
83,Revenue,CCHD,Elderly PWLD - PS,Residential Homes,Aspects &  Milestones Trust,4279.88, 14-Jun-2011
84,Revenue,CCHD,S28A - Under 65,Nursing Homes,Aspects &  Milestones Trust,5712.32, 14-Jun-2011
85,Revenue,CCHD,S28A - Under 65,Residential Homes,Aspects &  Milestones Trust,5541.28, 14-Jun-2011
86,Revenue,CCHD,Under 65s PWLD - KH,Residential Homes,Aspects &  Milestones Trust,3650.92, 14-Jun-2011
87,Revenue,CCHD,S28A - Under 65,Residential Homes,Aspects &  Milestones Trust,5240.64, 14-Jun-2011
88,Revenue,CCHD,Under 65s PWLD - KD,Residential Homes,Aspects &  Milestones Trust,5924.68, 14-Jun-2011
89,Revenue,CCHD,Under 65s PWLD - KH,Residential Homes,Aspects &  Milestones Trust,3776.64, 14-Jun-2011
90,Revenue,CCHD,S28A - Under 65,Nursing Homes,Aspects &  Milestones Trust,8012.36, 14-Jun-2011
91,Revenue,CCHD,MH Purchasing - Younger,Residential Homes,Aspects &  Milestones Trust,1009, 14-Jun-2011
92,Revenue,CCHD,Elderly PWLD - PS,Residential Homes,Aspects &  Milestones Trust,5191.2, 14-Jun-2011
93,Revenue,CCHD,Elderly PWLD - PS,Residential Homes,Aspects &  Milestones Trust,3817.28, 14-Jun-2011
94,Revenue,CCHD,Elderly PWLD - KH,Residential Homes,Aspects &  Milestones Trust,4891.88, 14-Jun-2011
95,Revenue,CCHD,S28A - Under 65,Nursing Homes,Aspects &  Milestones Trust,5445.96, 14-Jun-2011
96,Revenue,CCHD,S28A - Under 65,Residential Homes,Aspects &  Milestones Trust,7319.88, 14-Jun-2011
97,Revenue,CCHD,S28A - Over 65,Residential Homes,Aspects &  Milestones Trust,3494.61, 14-Jun-2011
98,Revenue,CCHD,S28A - Under 65,Nursing Homes,Aspects &  Milestones Trust,6122.48, 14-Jun-2011
99,Revenue,CCHD,Section 117 Placements MH Younger,Residential Homes,Aspects &  Milestones Trust,1304, 14-Jun-2011
100,Revenue,CCHD,Under 65s PWLD - PS,Residential Homes,Aspects &  Milestones Trust,3630.6, 14-Jun-2011
101,Revenue,CCHD,S28A - Under 65,Residential Homes,Aspects &  Milestones Trust,7319.88, 14-Jun-2011
102,Revenue,CCHD,S28A - Under 65,Residential Homes,Aspects &  Milestones Trust,5031.48, 14-Jun-2011
103,Revenue,CCHD,S28A - Over 65,Residential Homes,Aspects &  Milestones Trust,4892.16, 14-Jun-2011
104,Revenue,CCHD,S28A - Over 65,Residential Homes,Aspects &  Milestones Trust,4149.64, 14-Jun-2011
105,Revenue,CCHD,S28A - Under 65,Residential Homes,Aspects &  Milestones Trust,7319.88, 14-Jun-2011
106,Revenue,CCHD,S28A - Over 65,Residential Homes,Aspects &  Milestones Trust,4383.16, 14-Jun-2011
107,Revenue,CCHD,S28A - Under 65,Residential Homes,Aspects &  Milestones Trust,7319.88, 14-Jun-2011
108,Revenue,CCHD,S28A - Over 65,Residential Homes,Aspects &  Milestones Trust,3695.56, 14-Jun-2011
109,Revenue,CCHD,S28A - Under 65,Residential Homes,Aspects &  Milestones Trust,5983.24, 14-Jun-2011
110,Revenue,CCHD,S28A - Over 65,Residential Homes,Aspects &  Milestones Trust,5876.92, 14-Jun-2011
111,Revenue,CCHD,S28A - Over 65,Residential Homes,Aspects &  Milestones Trust,3337.36, 14-Jun-2011
112,Revenue,CCHD,S28A - Over 65,Residential Homes,Aspects &  Milestones Trust,4983.28, 14-Jun-2011
113,Revenue,CCHD,S28A - Over 65,Residential Homes,Aspects &  Milestones Trust,5136.16, 14-Jun-2011
114,Revenue,CCHD,S28A - Over 65,Residential Homes,Aspects &  Milestones Trust,4780.12, 14-Jun-2011
115,Revenue,CCHD,S28A - Over 65,Residential Homes,Aspects &  Milestones Trust,3233.56, 14-Jun-2011
116,Revenue,CCHD,S28A - Under 65,Nursing Homes,Aspects &  Milestones Trust,5073.6, 14-Jun-2011
117,Revenue,CCHD,S28A - Over 65,Residential Homes,Aspects &  Milestones Trust,4312.84, 14-Jun-2011
118,Revenue,CCHD,S28A - Over 65,Residential Homes,Aspects &  Milestones Trust,3585.48, 14-Jun-2011
119,Revenue,CCHD,S28A - Under 65,Residential Homes,Aspects &  Milestones Trust,7319.88, 14-Jun-2011
120,Revenue,CCHD,S28A - Under 65,Nursing Homes,Aspects &  Milestones Trust,6203.68, 14-Jun-2011
121,Revenue,CCHD,S28A - Over 65,Residential Homes,Aspects &  Milestones Trust,3610.56, 14-Jun-2011
122,Revenue,CCHD,S28A - Over 65,Residential Homes,Aspects &  Milestones Trust,3191.84, 14-Jun-2011
123,Revenue,CCHD,S28A - Over 65,Residential Homes,Aspects &  Milestones Trust,3417.96, 14-Jun-2011
124,Revenue,CCHD,S28A - Over 65,Residential Homes,Aspects &  Milestones Trust,4881.36, 14-Jun-2011
125,Revenue,CCHD,S28A - Over 65,Residential Homes,Aspects &  Milestones Trust,3233.52, 14-Jun-2011
126,Revenue,CCHD,Elderly Mental Health,Residential Homes,Aspects &  Milestones Trust,845.36, 14-Jun-2011
127,Revenue,CCHD,S28A - Under 65,Residential Homes,Aspects &  Milestones Trust,4961.24, 14-Jun-2011
128,Revenue,CCHD,Elderly PWLD - KD,Residential Homes,Aspects &  Milestones Trust,2858, 14-Jun-2011
129,Revenue,CCHD,Elderly PWLD - KH,Residential Homes,Aspects &  Milestones Trust,5609.8, 14-Jun-2011
130,Revenue,CCHD,Under 65s PWLD - KD,Residential Homes,Aspects &  Milestones Trust,5705.36, 14-Jun-2011
131,Revenue,CCHD,Under 65s PWLD - KD,Residential Homes,Aspects &  Milestones Trust,84154.06, 14-Jun-2011
132,Revenue,CCHD,Elderly PWLD - KD,Residential Homes,Aspects &  Milestones Trust,4581.48, 14-Jun-2011
133,Revenue,CCHD,Under 65s PWLD - PS,Residential Homes,Aspects &  Milestones Trust,3988.4, 14-Jun-2011
134,Revenue,CCHD,S28A - Under 65,Residential Homes,Aspects &  Milestones Trust,5976.44, 14-Jun-2011
135,Revenue,CCHD,S28A - Over 65,Residential Homes,Aspects &  Milestones Trust,3294.24, 14-Jun-2011
136,Revenue,CCHD,Section 117 Placements MH Younger,Residential Homes,Aspects &  Milestones Trust,1688, 14-Jun-2011
137,Revenue,CCHD,MH Purchasing - Younger,Residential Homes,Aspects &  Milestones Trust,1009, 14-Jun-2011
138,Revenue,CCHD,S28A - Over 65,Residential Homes,Aspects &  Milestones Trust,3533, 14-Jun-2011
139,Revenue,CCHD,S28A - Under 65,Residential Homes,Aspects &  Milestones Trust,3684.08, 14-Jun-2011
140,Revenue,CCHD,S28A - Under 65,Residential Homes,Aspects &  Milestones Trust,5233.64, 14-Jun-2011
141,Revenue,CCHD,S28A - Under 65,Residential Homes,Aspects &  Milestones Trust,5925.96, 14-Jun-2011
142,Revenue,CCHD,S28A - Over 65,Residential Homes,Aspects &  Milestones Trust,5792.84, 14-Jun-2011
143,Revenue,CCHD,S28A - Over 65,Residential Homes,Aspects &  Milestones Trust,4088.28, 14-Jun-2011
144,Revenue,CCHD,S28A - Over 65,Residential Homes,Aspects &  Milestones Trust,4881.36, 14-Jun-2011
145,Revenue,CCHD,S28A - Over 65,Residential Homes,Aspects &  Milestones Trust,4923.12, 14-Jun-2011
146,Revenue,CCHD,S28A - Over 65,Residential Homes,Aspects &  Milestones Trust,5799.8, 14-Jun-2011
147,Revenue,CCHD,S28A - Under 65,Residential Homes,Aspects &  Milestones Trust,8012.36, 14-Jun-2011
148,Revenue,CCHD,S28A - Over 65,Residential Homes,Aspects &  Milestones Trust,5069.64, 14-Jun-2011
149,Revenue,CCHD,S28A - Under 65,Residential Homes,Aspects &  Milestones Trust,4903.76, 14-Jun-2011
150,Revenue,CCHD,S28A - Over 65,Nursing Homes,Aspects &  Milestones Trust,4903.76, 14-Jun-2011
151,Revenue,CCHD,S28A - Over 65,Residential Homes,Aspects &  Milestones Trust,5377.28, 14-Jun-2011
152,Revenue,CCHD,S28A - Over 65,Residential Homes,Aspects &  Milestones Trust,5377.28, 14-Jun-2011
153,Revenue,CCHD,S28A - Under 65,Residential Homes,Aspects &  Milestones Trust,4576.24, 14-Jun-2011
154,Revenue,CCHD,S28A - Over 65,Residential Homes,Aspects &  Milestones Trust,5377.28, 14-Jun-2011
155,Revenue,CCHD,S28A - Over 65,Residential Homes,Aspects &  Milestones Trust,5812.44, 14-Jun-2011
156,Revenue,CCHD,S28A - Over 65,Residential Homes,Aspects &  Milestones Trust,5136.2, 14-Jun-2011
157,Revenue,CCHD,S28A - Under 65,Residential Homes,Aspects &  Milestones Trust,4902.68, 14-Jun-2011
158,Revenue,CCHD,S28A - Under 65,Residential Homes,Aspects &  Milestones Trust,7593.6, 14-Jun-2011
159,Revenue,CCHD,S28A - Over 65,Residential Homes,Aspects &  Milestones Trust,5812.44, 14-Jun-2011
160,Revenue,CCHD,S28A - Under 65,Residential Homes,Aspects &  Milestones Trust,3345.32, 14-Jun-2011
161,Revenue,CCHD,S28A - Over 65,Residential Homes,Aspects &  Milestones Trust,3386.84, 14-Jun-2011
162,Revenue,CCHD,S28A - Over 65,Residential Homes,Aspects &  Milestones Trust,3311.68, 14-Jun-2011
163,Revenue,CCHD,Under 65s PWLD - KH,Residential Homes,Aspects &  Milestones Trust,7561.2, 14-Jun-2011
164,Revenue,CCHD,Section 117 Placements,Residential Homes,Aspects &  Milestones Trust,1913.04, 14-Jun-2011
165,Revenue,CCHD,Under 65s PWLD - KD,Residential Homes,Aspects &  Milestones Trust,7185.92, 14-Jun-2011
166,Revenue,CCHD,MH Purchasing - Younger,Nursing Homes,Aspects &  Milestones Trust,908.88, 14-Jun-2011
167,Revenue,CCHD,MH Purchasing - Younger,Nursing Homes,Aspects &  Milestones Trust,1097, 14-Jun-2011
168,Revenue,CCHD,MH Purchasing - Younger,Residential Homes,Aspects &  Milestones Trust,1009, 14-Jun-2011
169,Revenue,CCHD,Elderly PWLD - PS,Residential Homes,Aspects &  Milestones Trust,3515.84, 14-Jun-2011
170,Revenue,CCHD,Section 117 Placements MH Younger,Nursing Homes,Aspects &  Milestones Trust,1392, 14-Jun-2011
171,Revenue,CCHD,S28A - Under 65,Residential Homes,Aspects &  Milestones Trust,5002.04, 14-Jun-2011
172,Revenue,CCHD,S28A - Under 65,Residential Homes,Aspects &  Milestones Trust,5283.24, 14-Jun-2011
173,Revenue,CCHD,S28A - Over 65,Residential Homes,Aspects &  Milestones Trust,3996.88, 14-Jun-2011
174,Revenue,CCHD,S28A - Over 65,Residential Homes,Aspects &  Milestones Trust,4786.4, 14-Jun-2011
175,Revenue,CCHD,Under 65s PWLD - KH,Residential Homes,Aspects &  Milestones Trust,4105, 14-Jun-2011
176,Revenue,CCHD,S28A - Over 65,Residential Homes,Aspects &  Milestones Trust,4234.64, 14-Jun-2011
177,Revenue,CCHD,S28A - Over 65,Residential Homes,Aspects &  Milestones Trust,3929, 14-Jun-2011
178,Revenue,CCHD,S28A - Over 65,Residential Homes,Aspects &  Milestones Trust,5792.84, 14-Jun-2011
179,Revenue,CCHD,S28A - Over 65,Residential Homes,Aspects &  Milestones Trust,4641.36, 14-Jun-2011
180,Revenue,CCHD,S28A - Over 65,Residential Homes,Aspects &  Milestones Trust,4105.72, 14-Jun-2011
181,Revenue,CCHD,S28A - Over 65,Residential Homes,Aspects &  Milestones Trust,4328.04, 14-Jun-2011
182,Revenue,CCHD,S28A - Over 65,Residential Homes,Aspects &  Milestones Trust,5332.16, 14-Jun-2011
183,Revenue,CCHD,S28A - Over 65,Residential Homes,Aspects &  Milestones Trust,4928.68, 14-Jun-2011
184,Revenue,CCHD,Elderly Mental Health,Residential Homes,Aspects &  Milestones Trust,1214, 14-Jun-2011
185,Revenue,CCHD,S28A - Over 65,Residential Homes,Aspects &  Milestones Trust,4922.96, 14-Jun-2011
186,Revenue,CCHD,S28A - Under 65,Residential Homes,Aspects &  Milestones Trust,5606.64, 14-Jun-2011
187,Revenue,CCHD,Section 117 Placements,Nursing Homes,Aspects &  Milestones Trust,1912, 14-Jun-2011
188,Revenue,CCHD,Section 117 Placements,Residential Homes,Aspects &  Milestones Trust,1304, 14-Jun-2011
189,Revenue,CCHD,Under 65s PWLD - KD,Residential Homes,Aspects & Milestones Trust,8687.64, 14-Jun-2011
190,Revenue,CCHD,Under 65s PWLD - KD,Residential Homes,Aspects & Milestones Trust,10800.04, 14-Jun-2011
191,Revenue,CCHD,Supporting People Programme,Grants to Voluntary Bodies,Aspects and Milestones Trust,2165.04, 14-Jun-2011
192,Revenue,CCHD,Supporting People Programme,Grants to Voluntary Bodies,Aspects and Milestones Trust,713.64, 14-Jun-2011
193,Revenue,CCHD,Supporting People Programme,Grants to Voluntary Bodies,Aspects and Milestones Trust,3425.49, 14-Jun-2011
194,Revenue,CCHD,Purchase of Non-Res Care - KH,Private & Voluntary Day Care,Aspects and Milestones Trust,1197.89, 15-Jun-2011
195,Revenue,CCHD,Purchase of Non-Res Care - KH,Private & Voluntary Day Care,Aspects and Milestones Trust,1294.06, 14-Jun-2011
196,Revenue,CCHD,Purchase of Non-Res Care - KH,Private & Voluntary Day Care,Aspects and Milestones Trust,1795.19, 14-Jun-2011
197,Revenue,CCHD,Purchase of Non-Res Care - KH,Private & Voluntary Day Care,Aspects and Milestones Trust,810.42, 16-Jun-2011
198,Revenue,CCHD,Supported Living (S28a),Private & Voluntary Home Care,Aspects and Milestones Trust,6619.97, 14-Jun-2011
199,Revenue,CCHD,Supported Living (S28a),Private & Voluntary Home Care,Aspects and Milestones Trust,3150.71, 22-Jun-2011
200,Revenue,CCHD,Supported Living (S28a),Private & Voluntary Home Care,Aspects and Milestones Trust,3506.71, 22-Jun-2011
201,Revenue,CCHD,Supported Living (S28a),Private & Voluntary Home Care,Aspects and Milestones Trust,3382.71, 22-Jun-2011
202,Revenue,CCHD,Supported Living (S28a),Private & Voluntary Home Care,Aspects and Milestones Trust,836.2, 22-Jun-2011
203,Revenue,CCHD,Under 65s PWLD - KH,Residential Homes,Autism Specialised Care Homes,5425.76, 14-Jun-2011
204,Revenue,CCHD,Training - Adult Services,Training Expenses,Avenues Cafe,580.5, 03-Jun-2011
205,Revenue,CCHD,Purchase of Non-Res Care - KD,Private & Voluntary Day Care,Avon Autistic Foundation Limited,1868.4, 07-Jun-2011
206,Revenue,CCHD,Purchase of Non-Res Care - KD,Private & Voluntary Day Care,Avon Autistic Foundation Limited,2632.5, 14-Jun-2011
207,Revenue,CCHD,Purchase of Non-Res Care - KD,Private & Voluntary Day Care,Avon Autistic Foundation Limited,1681.56, 14-Jun-2011
208,Revenue,CCHD,Purchase of Non-Res Care - KD,Private & Voluntary Day Care,Avon Autistic Foundation Limited,3290.64, 23-Jun-2011
209,Revenue,CCHD,Purchase of Non-Res Care - KD,Private & Voluntary Day Care,Avon Autistic Foundation Limited,2242.08, 23-Jun-2011
210,Revenue,CCHD,Supported Living - KD,Private & Voluntary Home Care,Bath & North East Somerset Dist Council,33301.81, 27-Jun-2011
211,Revenue,CCHD,Elderly Mental Health,Residential Homes,Beaufort House,1362.8, 14-Jun-2011
212,Revenue,CCHD,Frenchay Hospital Purchasing,Residential Homes,Beaufort House,670.32, 14-Jun-2011
213,Revenue,CCHD,Elderly Mental Health,Residential Homes,Beaufort House,1414.6, 14-Jun-2011
214,Revenue,CCHD,Frenchay Hospital Purchasing,Residential Homes,Beaufort House,1258.76, 14-Jun-2011
215,Revenue,CCHD,Elderly Mental Health,Residential Homes,Beaufort House,1316.2, 14-Jun-2011
216,Revenue,CCHD,Frenchay Hospital Purchasing,Residential Homes,Beaufort House,1741, 14-Jun-2011
217,Revenue,CCHD,Frenchay Hospital Purchasing,Residential Homes,Beaufort House,1263.8, 14-Jun-2011
218,Revenue,CCHD,Elderly Mental Health,Residential Homes,Beaufort House,1288.32, 14-Jun-2011
219,Revenue,CCHD,Elderly Mental Health,Residential Homes,Beaufort House,1307.68, 14-Jun-2011
220,Revenue,CCHD,Elderly Purchasing - North,Residential Homes,Beaufort House,1670.64, 14-Jun-2011
221,Revenue,CCHD,Elderly Mental Health,Residential Homes,Beaufort House,1328.16, 14-Jun-2011
222,Revenue,CCHD,Elderly Mental Health,Residential Homes,Beaufort House,1032.16, 14-Jun-2011
223,Revenue,CCHD,Elderly Mental Health,Residential Homes,Beaufort House,1654.92, 14-Jun-2011
224,Revenue,CCHD,Elderly PWLD - KH,Residential Homes,Bedrock Lodge,2821.28, 14-Jun-2011
225,Revenue,CCHD,Section 117 Placements MH Younger,Residential Homes,Bedrock Lodge,1790.12, 14-Jun-2011
226,Revenue,CCHD,Elderly Purchasing - North,Nursing Homes,Beech House,1043.76, 14-Jun-2011
227,Revenue,CCHD,Frenchay Hospital Purchasing,Nursing Homes,Beech House,1565.08, 14-Jun-2011
228,Revenue,CCHD,Southmead Hospital Purchasing,Nursing Homes,Beech House,1432.36, 14-Jun-2011
229,Revenue,CCHD,Elderly Purchasing - North,Nursing Homes,Beech House,1489.84, 14-Jun-2011
230,Revenue,CCHD,South Glos Users in South Glos Homes,Nursing Homes,Beech House,698.78, 14-Jun-2011
231,Revenue,CCHD,Elderly Purchasing - North,Nursing Homes,Beech House,1922.32, 14-Jun-2011
232,Revenue,CCHD,Elderly Purchasing - North,Nursing Homes,Beech House,1081.32, 14-Jun-2011
233,Revenue,CCHD,Elderly Purchasing - North,Nursing Homes,Beech House,1272.66, 14-Jun-2011
234,Revenue,CCHD,Southmead Hospital Purchasing,Nursing Homes,Beech House,1571.4, 14-Jun-2011
235,Revenue,CCHD,Elderly Purchasing - North,Nursing Homes,Beech House,1190.56, 14-Jun-2011
236,Revenue,CCHD,Information Systems - Software,Other Supplies & Services,Blueprint Management Systems Ltd,1242.39, 10-Jun-2011
237,Revenue,CCHD,Training - Adult Services,Training Expenses,Bob Dawson,1102.5, 23-Jun-2011
238,Revenue,CCHD,Training - Adult Services,Training Expenses,Bob Dawson,1102.5, 16-Jun-2011
239,Revenue,CCHD,Home Care Purch South,Other Small Contracts,Bradley House Home Care Services,90.51, 13-Jun-2011
240,Revenue,CCHD,Home Care Purch North,Other Small Contracts,Bradley House Home Care Services,2176.55, 13-Jun-2011
241,Revenue,CCHD,Day Care - South,Private & Voluntary Day Care,Bradley House Home Care Services,51.72, 13-Jun-2011
242,Revenue,CCHD,Day Care - North,Private & Voluntary Day Care,Bradley House Home Care Services,293.08, 13-Jun-2011
243,Revenue,CCHD,Younger MH non-res purchasing,Private & Voluntary Day Care,Bradley House Home Care Services,73.27, 13-Jun-2011
244,Revenue,CCHD,Elderly MH Home Care,Other Small Contracts,Bradley House Home Care Services,185.33, 13-Jun-2011
245,Revenue,CCHD,Home Care Purch South,Other Small Contracts,Bradley House Home Care Services,90.51, 20-Jun-2011
246,Revenue,CCHD,Home Care Purch North,Other Small Contracts,Bradley House Home Care Services,2236.89, 20-Jun-2011
247,Revenue,CCHD,Day Care - South,Private & Voluntary Day Care,Bradley House Home Care Services,60.34, 20-Jun-2011
248,Revenue,CCHD,Day Care - North,Private & Voluntary Day Care,Bradley House Home Care Services,275.84, 20-Jun-2011
249,Revenue,CCHD,Younger MH non-res purchasing,Private & Voluntary Day Care,Bradley House Home Care Services,77.58, 20-Jun-2011
250,Revenue,CCHD,Elderly MH Home Care,Other Small Contracts,Bradley House Home Care Services,189.64, 20-Jun-2011
251,Revenue,CCHD,Home Care Purch South,Other Small Contracts,Bradley House Home Care Services,86.2, 13-Jun-2011
252,Revenue,CCHD,Home Care Purch North,Other Small Contracts,Bradley House Home Care Services,2517.04, 13-Jun-2011
253,Revenue,CCHD,Day Care - South,Private & Voluntary Day Care,Bradley House Home Care Services,56.03, 13-Jun-2011
254,Revenue,CCHD,Day Care - North,Private & Voluntary Day Care,Bradley House Home Care Services,280.15, 13-Jun-2011
255,Revenue,CCHD,Elderly MH Home Care,Other Small Contracts,Bradley House Home Care Services,198.26, 13-Jun-2011
256,Revenue,CCHD,Home Care Purch South,Other Small Contracts,Bradley House Home Care Services,86.2, 28-Jun-2011
257,Revenue,CCHD,Home Care Purch North,Other Small Contracts,Bradley House Home Care Services,1939.5, 28-Jun-2011
258,Revenue,CCHD,Day Care - South,Private & Voluntary Day Care,Bradley House Home Care Services,25.86, 28-Jun-2011
259,Revenue,CCHD,Day Care - North,Private & Voluntary Day Care,Bradley House Home Care Services,137.92, 28-Jun-2011
260,Revenue,CCHD,Younger MH non-res purchasing,Private & Voluntary Day Care,Bradley House Home Care Services,77.58, 28-Jun-2011
261,Revenue,CCHD,Elderly MH Home Care,Other Small Contracts,Bradley House Home Care Services,193.95, 28-Jun-2011
262,Revenue,CCHD,Home Care Purch South,Other Small Contracts,Bradley House Home Care Services,86.2, 13-Jun-2011
263,Revenue,CCHD,Home Care Purch North,Other Small Contracts,Bradley House Home Care Services,2137.76, 13-Jun-2011
264,Revenue,CCHD,Day Care - South,Private & Voluntary Day Care,Bradley House Home Care Services,60.34, 13-Jun-2011
265,Revenue,CCHD,Day Care - North,Private & Voluntary Day Care,Bradley House Home Care Services,323.25, 13-Jun-2011
266,Revenue,CCHD,Younger MH non-res purchasing,Private & Voluntary Day Care,Bradley House Home Care Services,94.82, 13-Jun-2011
267,Revenue,CCHD,Elderly MH Home Care,Other Small Contracts,Bradley House Home Care Services,206.88, 13-Jun-2011
268,Revenue,CCHD,Home Care Purch South,Other Small Contracts,Bradley House Home Care Services,90.51, 13-Jun-2011
269,Revenue,CCHD,Home Care Purch North,Other Small Contracts,Bradley House Home Care Services,2060.18, 13-Jun-2011
270,Revenue,CCHD,Day Care - South,Private & Voluntary Day Care,Bradley House Home Care Services,51.72, 13-Jun-2011
271,Revenue,CCHD,Day Care - North,Private & Voluntary Day Care,Bradley House Home Care Services,280.15, 13-Jun-2011
272,Revenue,CCHD,Younger MH non-res purchasing,Private & Voluntary Day Care,Bradley House Home Care Services,77.58, 13-Jun-2011
273,Revenue,CCHD,Elderly MH Home Care,Other Small Contracts,Bradley House Home Care Services,202.57, 13-Jun-2011
274,Revenue,CCHD,Woodleaze,"Provisions (Food, etc)",Brake Bros,835.84, 06-Jun-2011
275,Revenue,CCHD,Woodleaze,"Provisions (Food, etc)",Brake Bros,543.93, 17-Jun-2011
276,Revenue,CCHD,Elderly Mental Health,Residential Homes,Brightbow,2487.2, 14-Jun-2011
277,Revenue,CCHD,MH Purchasing - Younger,Residential Homes,Brightbow,904.84, 14-Jun-2011
278,Revenue,CCHD,Older People's Commissioned Se,Grants to Voluntary Bodies,Bristol Area Stroke Foundation,4500, 30-Jun-2011
279,Revenue,CCHD,Supporting People Programme,Grants to Voluntary Bodies,Bristol Care & Repair,9780.82, 20-Jun-2011
280,Revenue,CCHD,Purchase of Non-Res Care - PS,Private & Voluntary Day Care,Bristol City Council,468.86, 28-Jun-2011
281,Revenue,CCHD,Purchase of RAC places,Other L.A.'s - General,Bristol City Council,7707.04, 27-Jun-2011
282,Revenue,CCHD,Supporting People Programme,Grants to Voluntary Bodies,Bristol Houses,9639.6, 20-Jun-2011
283,Revenue,CCHD,Supported Living - KD,Private & Voluntary Home Care,Bristol Houses UK Ltd,1269.1, 14-Jun-2011
284,Revenue,CCHD,Supported Living - KD,Private & Voluntary Home Care,Bristol Houses UK Ltd,1269.1, 23-Jun-2011
285,Revenue,CCHD,Supported Living - KD,Private & Voluntary Home Care,Bristol Houses UK Ltd,994.7, 23-Jun-2011
286,Revenue,CCHD,Supported Living - KD,Private & Voluntary Home Care,Bristol Houses UK Ltd,1029, 08-Jun-2011
287,Revenue,CCHD,Supported Living - KD,Private & Voluntary Home Care,Bristol Houses UK Ltd,1706.43, 23-Jun-2011
288,Revenue,CCHD,Supported Living - KD,Private & Voluntary Home Care,Bristol Houses UK Ltd,2040.85, 14-Jun-2011
289,Revenue,CCHD,Day Care - North,Private & Voluntary Day Care,Bristol Houses UK Ltd,1538.87, 07-Jun-2011
290,Revenue,CCHD,Supported Living - KD,Private & Voluntary Home Care,Bristol Houses UK Ltd,1029, 23-Jun-2011
291,Revenue,CCHD,Day Care - North,Private & Voluntary Day Care,Bristol Houses UK Ltd,2864.05, 07-Jun-2011
292,Revenue,CCHD,Bed and Breakfast,Bed & Breakfast,Bristol Housing & Support Limited,465, 27-Jun-2011
293,Revenue,CCHD,Bed and Breakfast,Bed & Breakfast,Bristol Housing & Support Limited,854, 27-Jun-2011
294,Revenue,CCHD,Bed and Breakfast,Bed & Breakfast,Bristol Housing & Support Limited,854, 27-Jun-2011
295,Revenue,CCHD,Newton House,Water Charges,Bristol Wessex Billing Services Limited,3052.86, 06-Jun-2011
296,Revenue,CCHD,Supporting People Programme,Grants to Voluntary Bodies,Bromford Housing Group,14293.2, 20-Jun-2011
297,Revenue,CCHD,Elderly Purchasing - North,Residential Homes,Brook Lane Residential Home,1772.8, 14-Jun-2011
298,Revenue,CCHD,South Glos Users in South Glos Homes,Nursing Homes,Brunel Care,5433.84, 14-Jun-2011
299,Revenue,CCHD,Southmead Hospital Purchasing,Nursing Homes,Brunel Care,4398.75, 14-Jun-2011
300,Revenue,CCHD,Section 117 Placements,Nursing Homes,Brunel Care,3488, 14-Jun-2011
301,Revenue,CCHD,Southmead Hospital Purchasing,Residential Homes,Brunel Care,1237.12, 14-Jun-2011
302,Revenue,CCHD,Southmead Hospital Purchasing,Residential Homes,Brunel Care,1300.32, 14-Jun-2011
303,Revenue,CCHD,Elderly MH non-res purchasing,Private & Voluntary Day Care,Brunelcare,712.4, 08-Jun-2011
304,Revenue,CCHD,Contracts & Commissioning Team,Other Small Contracts,Brunelcare,13500, 03-Jun-2011
305,Revenue,CCHD,Contracts & Commissioning Team,Other Small Contracts,Brunelcare,13500, 13-Jun-2011
306,Revenue,CCHD,Contracts & Commissioning Team,Other Small Contracts,Brunelcare,13500, 17-Jun-2011
307,Revenue,CCHD,Contracts & Commissioning Team,Other Small Contracts,Brunelcare,13500, 24-Jun-2011
308,Revenue,CCHD,Elderly MH non-res purchasing,Private & Voluntary Day Care,Brunelcare,712.4, 02-Jun-2011
309,Revenue,CCHD,Information Systems - Software,Computer Equipment - Purchase,BT Global Services Solutions,759.31, 02-Jun-2011
310,Revenue,CCHD,Information Systems - Software,Computer Equipment - Purchase,BT Global Services Solutions,759.31, 02-Jun-2011
311,Revenue,CCHD,Information Systems - Software,Computer Equipment - Purchase,BT Global Services Solutions,759.31, 09-Jun-2011
312,Revenue,CCHD,Woodleaze,Cleaning & Domestic Supplies,Bunzl Cleaning & Hygiene Supplies,942.9, 07-Jun-2011
313,Revenue,CCHD,Woodleaze,Cleaning & Domestic Supplies,Bunzl Cleaning & Hygiene Supplies,800.33, 27-Jun-2011
314,Revenue,CCHD,Purchasing Phys Dis - North,Nursing Homes,Bupa Care Services  Bridge House,5700.16, 14-Jun-2011
315,Revenue,CCHD,South Glos Users in all other LA Homes,Nursing Homes,Bupa Care Services  Bridge House,598.4, 14-Jun-2011
316,Revenue,CCHD,Frenchay Hospital Purchasing,Nursing Homes,Bupa Care Services  Bridge House,692.16, 14-Jun-2011
317,Revenue,CCHD,Under 65s PWLD - KH,Residential Homes,Camphill Centre,3266.43, 14-Jun-2011
318,Revenue,CCHD,Supported Living - KD,Private & Voluntary Home Care,Camphill Communities Thornbury Limited,1907.92, 23-Jun-2011
319,Revenue,CCHD,Supported Living - KD,Private & Voluntary Home Care,Camphill Communities Thornbury Limited,1887.68, 23-Jun-2011
320,Revenue,CCHD,Supported Living - KD,Private & Voluntary Home Care,Camphill Communities Thornbury Limited,902.3, 07-Jun-2011
321,Revenue,CCHD,Purchase of Non-Res Care - KD,Private & Voluntary Day Care,Camphill Communities Thornbury Limited,1895.76, 14-Jun-2011
322,Revenue,CCHD,Supported Living - KD,Private & Voluntary Home Care,Camphill Communities Thornbury Limited,1640.56, 14-Jun-2011
323,Revenue,CCHD,Supported Living - KD,Private & Voluntary Home Care,Camphill Communities Thornbury Limited,1907.92, 14-Jun-2011
324,Revenue,CCHD,Supported Living - KD,Private & Voluntary Home Care,Camphill Communities Thornbury Limited,820.28, 14-Jun-2011
325,Revenue,CCHD,Supported Living - KD,Private & Voluntary Home Care,Camphill Communities Thornbury Limited,1335.54, 14-Jun-2011
326,Revenue,CCHD,Supported Living - KD,Private & Voluntary Home Care,Camphill Communities Thornbury Limited,1315.5, 16-Jun-2011
327,Revenue,CCHD,Supported Living - KD,Private & Voluntary Home Care,Camphill Communities Thornbury Limited,1887.68, 16-Jun-2011
328,Revenue,CCHD,Supported Living - KD,Private & Voluntary Home Care,Camphill Communities Thornbury Limited,1640.56, 23-Jun-2011
329,Revenue,CCHD,Supported Living - KD,Private & Voluntary Home Care,Camphill Communities Thornbury Limited,1640.56, 24-Jun-2011
330,Revenue,CCHD,Supported Living - KD,Private & Voluntary Home Care,Camphill Communities Thornbury Limited,1168, 28-Jun-2011
331,Revenue,CCHD,Under 65s PWLD - KD,Residential Homes,Camphill Devon Community,3143.88, 14-Jun-2011
332,Revenue,CCHD,Under 65s PWLD - KD,Residential Homes,Camphill Devon Community,2208.44, 14-Jun-2011
333,Revenue,CCHD,Home Care Purch South,Other Small Contracts,Care 1st Homecare,2766.1, 09-Jun-2011
334,Revenue,CCHD,Home Care Purch North,Other Small Contracts,Care 1st Homecare,3379.02, 09-Jun-2011
335,Revenue,CCHD,Day Care - South,Private & Voluntary Day Care,Care 1st Homecare,168.4, 09-Jun-2011
336,Revenue,CCHD,Day Care - North,Private & Voluntary Day Care,Care 1st Homecare,756.2, 09-Jun-2011
337,Revenue,CCHD,Elderly MH Home Care,Other Small Contracts,Care 1st Homecare,151.24, 09-Jun-2011
338,Revenue,CCHD,Elderly MH non-res purchasing,Private & Voluntary Day Care,Care 1st Homecare,41.04, 09-Jun-2011
339,Revenue,CCHD,PWLD Home Care - Under 65 - PS,Private & Voluntary Home Care,Care 1st Homecare,31.84, 09-Jun-2011
340,Revenue,CCHD,PWLD Home Care - Under 65 - KD,Private & Voluntary Home Care,Care 1st Homecare,15.92, 09-Jun-2011
341,Revenue,CCHD,PWLD Home Care - Under 65 - KH,Private & Voluntary Home Care,Care 1st Homecare,167.16, 09-Jun-2011
342,Revenue,CCHD,Home Care Purch South,Other Small Contracts,Care 1st Homecare,2598.94, 20-Jun-2011
343,Revenue,CCHD,Home Care Purch North,Other Small Contracts,Care 1st Homecare,3426.78, 20-Jun-2011
344,Revenue,CCHD,Day Care - South,Private & Voluntary Day Care,Care 1st Homecare,175.12, 20-Jun-2011
345,Revenue,CCHD,Day Care - North,Private & Voluntary Day Care,Care 1st Homecare,569.14, 20-Jun-2011
346,Revenue,CCHD,Elderly MH Home Care,Other Small Contracts,Care 1st Homecare,155.22, 20-Jun-2011
347,Revenue,CCHD,Elderly MH non-res purchasing,Private & Voluntary Day Care,Care 1st Homecare,51.74, 20-Jun-2011
348,Revenue,CCHD,PWLD Home Care - Under 65 - PS,Private & Voluntary Home Care,Care 1st Homecare,31.84, 20-Jun-2011
349,Revenue,CCHD,PWLD Home Care - Under 65 - KD,Private & Voluntary Home Care,Care 1st Homecare,15.92, 20-Jun-2011
350,Revenue,CCHD,PWLD Home Care - Under 65 - KH,Private & Voluntary Home Care,Care 1st Homecare,95.52, 20-Jun-2011
351,Revenue,CCHD,Home Care Purch South,Other Small Contracts,Care 1st Homecare,2682.52, 20-Jun-2011
352,Revenue,CCHD,Home Care Purch North,Other Small Contracts,Care 1st Homecare,3363.1, 20-Jun-2011
353,Revenue,CCHD,Day Care - South,Private & Voluntary Day Care,Care 1st Homecare,175.12, 20-Jun-2011
354,Revenue,CCHD,Day Care - North,Private & Voluntary Day Care,Care 1st Homecare,688.54, 20-Jun-2011
355,Revenue,CCHD,Elderly MH Home Care,Other Small Contracts,Care 1st Homecare,202.98, 20-Jun-2011
356,Revenue,CCHD,Elderly MH non-res purchasing,Private & Voluntary Day Care,Care 1st Homecare,115.42, 20-Jun-2011
357,Revenue,CCHD,PWLD Home Care - Under 65 - PS,Private & Voluntary Home Care,Care 1st Homecare,31.84, 20-Jun-2011
358,Revenue,CCHD,PWLD Home Care - Under 65 - KD,Private & Voluntary Home Care,Care 1st Homecare,15.92, 20-Jun-2011
359,Revenue,CCHD,PWLD Home Care - Under 65 - KH,Private & Voluntary Home Care,Care 1st Homecare,167.16, 20-Jun-2011
360,Revenue,CCHD,Home Care Purch South,Other Small Contracts,Care 1st Homecare,2718.34, 20-Jun-2011
361,Revenue,CCHD,Home Care Purch North,Other Small Contracts,Care 1st Homecare,3255.64, 20-Jun-2011
362,Revenue,CCHD,Day Care - South,Private & Voluntary Day Care,Care 1st Homecare,263.92, 20-Jun-2011
363,Revenue,CCHD,Day Care - North,Private & Voluntary Day Care,Care 1st Homecare,589.04, 20-Jun-2011
364,Revenue,CCHD,Elderly MH Home Care,Other Small Contracts,Care 1st Homecare,191.04, 20-Jun-2011
365,Revenue,CCHD,Elderly MH non-res purchasing,Private & Voluntary Day Care,Care 1st Homecare,108.7, 20-Jun-2011
366,Revenue,CCHD,PWLD Home Care - Under 65 - PS,Private & Voluntary Home Care,Care 1st Homecare,31.84, 20-Jun-2011
367,Revenue,CCHD,PWLD Home Care - Under 65 - KD,Private & Voluntary Home Care,Care 1st Homecare,15.92, 20-Jun-2011
368,Revenue,CCHD,PWLD Home Care - Under 65 - KH,Private & Voluntary Home Care,Care 1st Homecare,159.2, 20-Jun-2011
369,Revenue,CCHD,Purchase of Non-Res Care - KD,Private & Voluntary Day Care,Care Horizons Limited,1187.4, 02-Jun-2011
370,Revenue,CCHD,Supported Living - KH,Private & Voluntary Home Care,Care Horizons Limited,1914.02, 10-Jun-2011
371,Revenue,CCHD,Purchase of Non-Res Care - PS,Private & Voluntary Day Care,Care Horizons Limited,1402.15, 08-Jun-2011
372,Revenue,CCHD,Supported Living - KD,Private & Voluntary Home Care,Care Horizons Limited,5234.74, 14-Jun-2011
373,Revenue,CCHD,Supported Living - KD,Private & Voluntary Home Care,Care Horizons Limited,5674.53, 16-Jun-2011
374,Revenue,CCHD,Purchase of Non-Res Care - KD,Private & Voluntary Day Care,Care Horizons Limited,956.75, 16-Jun-2011
375,Revenue,CCHD,Purchase of Non-Res Care - KD,Private & Voluntary Day Care,Care Horizons Limited,1694.08, 16-Jun-2011
376,Revenue,CCHD,Purchase of Non-Res Care - KD,Private & Voluntary Day Care,Care Horizons Limited,1284.57, 16-Jun-2011
377,Revenue,CCHD,Purchase of Non-Res Care - KD,Private & Voluntary Day Care,Care Horizons Limited,1141.06, 16-Jun-2011
378,Revenue,CCHD,Purchase of Non-Res Care - KD,Private & Voluntary Day Care,Care Horizons Limited,1299.82, 16-Jun-2011
379,Revenue,CCHD,Supported Living - KH,Private & Voluntary Home Care,Care Horizons Limited,1972.79, 22-Jun-2011
380,Revenue,CCHD,Supported Living - KD,Private & Voluntary Home Care,Care Horizons Limited,5234.74, 27-Jun-2011
381,Revenue,CCHD,Purchase of Non-Res Care - PS,Private & Voluntary Day Care,Care Horizons Limited,1364.83, 27-Jun-2011
382,Revenue,CCHD,Supported Living - KD,Private & Voluntary Home Care,Care Horizons Limited,5307.72, 02-Jun-2011
383,Revenue,CCHD,Contracts & Commissioning Team,Other Small Contracts,Care UK Homecare,20000, 03-Jun-2011
384,Revenue,CCHD,Contracts & Commissioning Team,Other Small Contracts,Care UK Homecare,20000, 10-Jun-2011
385,Revenue,CCHD,Contracts & Commissioning Team,Other Small Contracts,Care UK Homecare,20000, 17-Jun-2011
386,Revenue,CCHD,Contracts & Commissioning Team,Other Small Contracts,Care UK Homecare,20000, 24-Jun-2011
387,Revenue,CCHD,Contracts & Commissioning Team,Other Small Contracts,Carewatch (Bristol),2500, 03-Jun-2011
388,Revenue,CCHD,Contracts & Commissioning Team,Other Small Contracts,Carewatch (Bristol),2500, 10-Jun-2011
389,Revenue,CCHD,Contracts & Commissioning Team,Other Small Contracts,Carewatch (Bristol),2500, 17-Jun-2011
390,Revenue,CCHD,Contracts & Commissioning Team,Other Small Contracts,Carewatch (Bristol),2500, 24-Jun-2011
391,Revenue,CCHD,Frenchay Hospital Purchasing,Nursing Homes,Caring Homes Group Ltd,2700.64, 14-Jun-2011
392,Revenue,CCHD,Under 65s PWLD - PS,Nursing Homes,Carriage Court,5756.08, 14-Jun-2011
393,Revenue,CCHD,Home Care Purch South,Other Small Contracts,Cash Friday at Lloyds TSB,689.7, 01-Jun-2011
394,Revenue,CCHD,Home Care Purch North,Other Small Contracts,Cash Friday at Lloyds TSB,2737.9, 01-Jun-2011
395,Revenue,CCHD,Day Care - South,Private & Voluntary Day Care,Cash Friday at Lloyds TSB,29.26, 01-Jun-2011
396,Revenue,CCHD,Day Care - North,Private & Voluntary Day Care,Cash Friday at Lloyds TSB,100.32, 01-Jun-2011
397,Revenue,CCHD,Elderly MH Home Care,Other Small Contracts,Cash Friday at Lloyds TSB,125.4, 01-Jun-2011
398,Revenue,CCHD,Home Care Purch South,Other Small Contracts,Cash Friday at Lloyds TSB,468.16, 27-Jun-2011
399,Revenue,CCHD,Home Care Purch North,Other Small Contracts,Cash Friday at Lloyds TSB,2775.52, 27-Jun-2011
400,Revenue,CCHD,Day Care - South,Private & Voluntary Day Care,Cash Friday at Lloyds TSB,33.44, 27-Jun-2011
401,Revenue,CCHD,Day Care - North,Private & Voluntary Day Care,Cash Friday at Lloyds TSB,137.94, 27-Jun-2011
402,Revenue,CCHD,Elderly MH Home Care,Other Small Contracts,Cash Friday at Lloyds TSB,121.22, 27-Jun-2011
403,Revenue,CCHD,Detained,Nursing Homes,Castlebeck Care (Teesdale) Limited,16218.98, 23-Jun-2011
404,Revenue,CCHD,Detained,Nursing Homes,Castlebeck Care (Teesdale) Limited,15695.79, 23-Jun-2011
405,Revenue,CCHD,Detained,Nursing Homes,Castlebeck Care (Teesdale) Limited,16218.98, 16-Jun-2011
406,Revenue,CCHD,Frenchay Hospital Purchasing,Nursing Homes,Cedar Care Homes Ltd,1051.8, 14-Jun-2011
407,Revenue,CCHD,Elderly Purchasing - South,Residential Homes,Cepen Lodge Care Home,2120, 14-Jun-2011
408,Revenue,CCHD,Elderly Purchasing - South,Residential Homes,Cepen Lodge Care Home,2120, 14-Jun-2011
409,Revenue,CCHD,Elderly Mental Health,Residential Homes,Chatsworth House,1280.24, 14-Jun-2011
410,Revenue,CCHD,Southmead Hospital Purchasing,Residential Homes,Chatsworth House,1008.6, 14-Jun-2011
411,Revenue,CCHD,Under 65s PWLD - KD,Residential Homes,Church House,5592.64, 14-Jun-2011
412,Revenue,CCHD,Under 65s PWLD - KH,Nursing Homes,Churchill House,9504.88, 14-Jun-2011
413,Revenue,CCHD,Under 65s PWLD - PS,Residential Homes,Churchill House,12380.9, 14-Jun-2011
414,Revenue,CCHD,Supported Living - KD,Private & Voluntary Home Care,Cintre Community,597.96, 08-Jun-2011
415,Revenue,CCHD,Homelessness Grant,Computer Services,Civica UK Limited,945, 15-Jun-2011
416,Revenue,CCHD,Homelessness Grant,Computer Services,Civica UK Limited,900, 16-Jun-2011
417,Revenue,CCHD,Elderly Purchasing - North,Residential Homes,Cleeve Lodge,1596.44, 14-Jun-2011
418,Revenue,CCHD,Southmead Hospital Purchasing,Residential Homes,Cleeve Lodge,1065.6, 14-Jun-2011
419,Revenue,CCHD,Southmead Hospital Purchasing,Residential Homes,Cleeve Lodge,1406.2, 14-Jun-2011
420,Revenue,CCHD,Elderly Purchasing - North,Residential Homes,Cleeve Lodge,1639.24, 14-Jun-2011
421,Revenue,CCHD,Elderly Purchasing - North,Residential Homes,Cleeve Lodge,3245.74, 14-Jun-2011
422,Revenue,CCHD,Elderly Purchasing - North,Residential Homes,Cleeve Lodge,1497.16, 14-Jun-2011
423,Revenue,CCHD,Frenchay Hospital Purchasing,Residential Homes,Cleeve Lodge,1831.76, 14-Jun-2011
424,Revenue,CCHD,Elderly Purchasing - South,Residential Homes,Cleeve Lodge,1290.08, 14-Jun-2011
425,Revenue,CCHD,Elderly Purchasing - South,Residential Homes,Cleeve Lodge,1305, 14-Jun-2011
426,Revenue,CCHD,Elderly Purchasing - North,Residential Homes,Cleeve Lodge,1474.32, 14-Jun-2011
427,Revenue,CCHD,Elderly Purchasing - North,Residential Homes,Cleeve Lodge,1647.6, 14-Jun-2011
428,Revenue,CCHD,Elderly Purchasing - North,Residential Homes,Cleeve Lodge,1752.2, 14-Jun-2011
429,Revenue,CCHD,Southmead Hospital Purchasing,Residential Homes,Cleeve Lodge,2582.66, 14-Jun-2011
430,Revenue,CCHD,Southmead Hospital Purchasing,Residential Homes,Cleeve Lodge,1692.09, 14-Jun-2011
431,Revenue,CCHD,Southmead Hospital Purchasing,Residential Homes,Cleeve Lodge,1421, 14-Jun-2011
432,Revenue,CCHD,Southmead Hospital Purchasing,Residential Homes,Cleeve Lodge,1141.22, 14-Jun-2011
433,Revenue,CCHD,Southmead Hospital Purchasing,Residential Homes,Cleeve Lodge,609, 14-Jun-2011
434,Revenue,CCHD,Southmead Hospital Purchasing,Residential Homes,Clifftop Care Home,7509.66, 14-Jun-2011
435,Revenue,CCHD,Elderly Purchasing - South,Residential Homes,Collingwood Residential Home,1066.44, 14-Jun-2011
436,Revenue,CCHD,Elderly Purchasing - South,Residential Homes,Collingwood Residential Home,1297.84, 14-Jun-2011
437,Revenue,CCHD,Frenchay Hospital Purchasing,Residential Homes,Collingwood Residential Home,1214.6, 14-Jun-2011
438,Revenue,CCHD,Elderly Mental Health,Residential Homes,Collingwood Residential Home,1286.88, 14-Jun-2011
439,Revenue,CCHD,Southmead Hospital Purchasing,Residential Homes,Collingwood Residential Home,1218.52, 14-Jun-2011
440,Revenue,CCHD,Elderly Purchasing - South,Residential Homes,Collingwood Residential Home,1231, 14-Jun-2011
441,Revenue,CCHD,Elderly Purchasing - North,Residential Homes,Collingwood Residential Home,1110, 14-Jun-2011
442,Revenue,CCHD,Elderly Purchasing - South,Residential Homes,Collingwood Residential Home,1176.32, 14-Jun-2011
443,Revenue,CCHD,S28A - Under 65,Residential Homes,Compass Care,9441.64, 14-Jun-2011
444,Revenue,CCHD,Bed and Breakfast,Bed & Breakfast,Connolly & Callaghan Limited,651, 01-Jun-2011
445,Revenue,CCHD,Bed and Breakfast,Bed & Breakfast,Connolly & Callaghan Limited,511, 15-Jun-2011
446,Revenue,CCHD,Bed and Breakfast,Bed & Breakfast,Connolly & Callaghan Limited,465, 16-Jun-2011
447,Revenue,CCHD,Bed and Breakfast,Bed & Breakfast,Connolly & Callaghan Limited,511, 15-Jun-2011
448,Revenue,CCHD,Bed and Breakfast,Bed & Breakfast,Connolly & Callaghan Limited,438, 16-Jun-2011
449,Revenue,CCHD,Bed and Breakfast,Bed & Breakfast,Connolly & Callaghan Limited,511, 16-Jun-2011
450,Revenue,CCHD,Bed and Breakfast,Bed & Breakfast,Connolly & Callaghan Limited,651, 15-Jun-2011
451,Revenue,CCHD,Bed and Breakfast,Bed & Breakfast,Connolly & Callaghan Limited,511, 16-Jun-2011
452,Revenue,CCHD,Bed and Breakfast,Bed & Breakfast,Connolly & Callaghan Limited,546, 16-Jun-2011
453,Revenue,CCHD,Bed and Breakfast,Bed & Breakfast,Connolly & Callaghan Limited,511, 16-Jun-2011
454,Revenue,CCHD,Bed and Breakfast,Bed & Breakfast,Connolly & Callaghan Limited,511, 16-Jun-2011
455,Revenue,CCHD,Bed and Breakfast,Bed & Breakfast,Connolly & Callaghan Limited,651, 16-Jun-2011
456,Revenue,CCHD,Bed and Breakfast,Bed & Breakfast,Connolly & Callaghan Limited,546, 16-Jun-2011
457,Revenue,CCHD,Bed and Breakfast,Bed & Breakfast,Connolly & Callaghan Limited,511, 16-Jun-2011
458,Revenue,CCHD,Bed and Breakfast,Bed & Breakfast,Connolly & Callaghan Limited,651, 30-Jun-2011
459,Revenue,CCHD,Bed and Breakfast,Bed & Breakfast,Connolly & Callaghan Limited,546, 27-Jun-2011
460,Revenue,CCHD,Bed and Breakfast,Bed & Breakfast,Connolly & Callaghan Limited,511, 27-Jun-2011
461,Revenue,CCHD,Under 65s PWLD - PS,Residential Homes,Consensus Support Services Ltd,9189.2, 01-Jun-2011
462,Revenue,CCHD,Blackhorse RAC,Gas,Corona Energy Retail 3 Limited,727.1, 17-Jun-2011
463,Revenue,CCHD,Downend Day Centre,Gas,Corona Energy Retail 3 Limited,1569.17, 17-Jun-2011
464,Revenue,CCHD,Newton House,Gas,Corona Energy Retail 3 Limited,1012.76, 17-Jun-2011
465,Revenue,CCHD,Kerr House,Gas,Corona Energy Retail 3 Limited,811.91, 17-Jun-2011
466,Revenue,CCHD,Woodleaze,Gas,Corona Energy Retail 3 Limited,744.77, 17-Jun-2011
467,Revenue,CCHD,Alexandra Way,Gas,Corona Energy Retail 3 Limited,1506.09, 17-Jun-2011
468,Revenue,CCHD,Charlton,Gas,Corona Energy Retail 3 Limited,558.44, 17-Jun-2011
469,Revenue,CCHD,Getting a Life Project,Other Supplies & Services,Council of the Isles of Scilly,2750, 21-Jun-2011
470,Revenue,CCHD,Elderly PWLD - KH,Residential Homes,Craegmoor Healthcare,4785.48, 14-Jun-2011
471,Revenue,CCHD,Under 65s PWLD - KH,Residential Homes,Craegmoor Healthcare,4017.52, 14-Jun-2011
472,Revenue,CCHD,Under 65s PWLD - KH,Residential Homes,Craegmoor Healthcare,4825.08, 14-Jun-2011
473,Revenue,CCHD,Under 65s PWLD - KH,Residential Homes,Craegmoor Healthcare,13468.64, 14-Jun-2011
474,Revenue,CCHD,Under 65s PWLD - PS,Residential Homes,Craegmoor Healthcare,5420.4, 14-Jun-2011
475,Revenue,CCHD,Elderly PWLD - KH,Residential Homes,Craegmoor Healthcare,4940.32, 14-Jun-2011
476,Revenue,CCHD,Under 65s PWLD - KD,Residential Homes,Craegmoor Healthcare,2720.8, 14-Jun-2011
477,Revenue,CCHD,S28A - Under 65,Residential Homes,Craegmoor Healthcare,4506.8, 14-Jun-2011
478,Revenue,CCHD,S28A - Under 65,Residential Homes,Craegmoor Healthcare,5453.72, 14-Jun-2011
479,Revenue,CCHD,S28A - Over 65,Residential Homes,Craegmoor Healthcare,5163.72, 14-Jun-2011
480,Revenue,CCHD,Under 65s PWLD - KH,Residential Homes,Craegmoor Healthcare,7036.88, 14-Jun-2011
481,Revenue,CCHD,Under 65s PWLD - KD,Residential Homes,Craegmoor Healthcare,2149.28, 14-Jun-2011
482,Revenue,CCHD,Under 65s PWLD - KH,Residential Homes,Craegmoor Healthcare,4801.96, 14-Jun-2011
483,Revenue,CCHD,S28A - Under 65,Residential Homes,Craegmoor Healthcare,5705, 14-Jun-2011
484,Revenue,CCHD,S28A - Under 65,Residential Homes,Cream Ii Ltd,7725.68, 14-Jun-2011
485,Revenue,CCHD,S28A - Under 65,Residential Homes,Creedy Court,8934.84, 14-Jun-2011
486,Revenue,CCHD,S28A - Over 65,Residential Homes,Creedy Court,7434.12, 14-Jun-2011
487,Revenue,CCHD,Under 65s PWLD - PS,Residential Homes,Cromwell House,7803.24, 14-Jun-2011
488,Revenue,CCHD,Purchase of Non-Res Care - KH,Private & Voluntary Day Care,Daneswood,4446, 14-Jun-2011
489,Revenue,CCHD,Purchase of Non-Res Care - KH,Private & Voluntary Day Care,Daneswood,5681, 14-Jun-2011
490,Revenue,CCHD,Purchase of Non-Res Care - KH,Private & Voluntary Day Care,Daneswood,4940, 30-Jun-2011
491,Revenue,CCHD,Under 65s PWLD - PS,Residential Homes,Daneswood,10588.2, 14-Jun-2011
492,Revenue,CCHD,Under 65s PWLD - KD,Residential Homes,Daneswood,8756, 14-Jun-2011
493,Revenue,CCHD,Learning Difficulties PSL,Rent,Individual,1800, 22-Jun-2011
494,Revenue,CCHD,Day Care - North,Private & Voluntary Day Care,Deafblind UK,1211.21, 07-Jun-2011
495,Revenue,CCHD,Day Care - North,Private & Voluntary Day Care,Deafblind UK,525.91, 07-Jun-2011
496,Revenue,CCHD,Day Care - South,Private & Voluntary Day Care,Deafblind UK,1030.1, 08-Jun-2011
497,Revenue,CCHD,Day Care - South,Private & Voluntary Day Care,Deafblind UK,1930, 08-Jun-2011
498,Revenue,CCHD,General EPH budgets,Other Supplies & Services,Derek Browne & Associates,4064, 16-Jun-2011
499,Revenue,CCHD,Frenchay Hospital Purchasing,Nursing Homes,Desai Care Homes  C/O Waltham House,2353.52, 14-Jun-2011
500,Revenue,CCHD,Day Care - South,Private & Voluntary Day Care,Dhek Bhal,835.6, 08-Jun-2011
501,Revenue,CCHD,Day Care - South,Private & Voluntary Day Care,Dhek Bhal,501.36, 08-Jun-2011
502,Revenue,CCHD,Day Care - South,Private & Voluntary Day Care,Dhek Bhal,877.38, 08-Jun-2011
503,Revenue,CCHD,Under 65s PWLD - KH,Residential Homes,Dimensions(Uk) Ltd,4696, 14-Jun-2011
504,Revenue,CCHD,Under 65s PWLD - PS,Residential Homes,Dimensions(Uk) Ltd,1708.92, 14-Jun-2011
505,Revenue,CCHD,Home Care Purch South,Other Small Contracts,DoCare Ltd,2064.6, 03-Jun-2011
506,Revenue,CCHD,Home Care Purch North,Other Small Contracts,DoCare Ltd,3115.5, 03-Jun-2011
507,Revenue,CCHD,Day Care - South,Private & Voluntary Day Care,DoCare Ltd,88.35, 03-Jun-2011
508,Revenue,CCHD,Day Care - North,Private & Voluntary Day Care,DoCare Ltd,334.8, 03-Jun-2011
509,Revenue,CCHD,Elderly MH Home Care,Other Small Contracts,DoCare Ltd,395.25, 03-Jun-2011
510,Revenue,CCHD,Elderly MH non-res purchasing,Private & Voluntary Day Care,DoCare Ltd,55.8, 03-Jun-2011
511,Revenue,CCHD,Home Care Purch South,Other Small Contracts,DoCare Ltd,1934.4, 03-Jun-2011
512,Revenue,CCHD,Home Care Purch North,Other Small Contracts,DoCare Ltd,3492.15, 03-Jun-2011
513,Revenue,CCHD,Day Care - South,Private & Voluntary Day Care,DoCare Ltd,125.55, 03-Jun-2011
514,Revenue,CCHD,Day Care - North,Private & Voluntary Day Care,DoCare Ltd,334.8, 03-Jun-2011
515,Revenue,CCHD,Elderly MH Home Care,Other Small Contracts,DoCare Ltd,381.3, 03-Jun-2011
516,Revenue,CCHD,Elderly MH non-res purchasing,Private & Voluntary Day Care,DoCare Ltd,111.6, 03-Jun-2011
517,Revenue,CCHD,Home Care Purch South,Other Small Contracts,DoCare Ltd,1966.95, 03-Jun-2011
518,Revenue,CCHD,Home Care Purch North,Other Small Contracts,DoCare Ltd,3255, 03-Jun-2011
519,Revenue,CCHD,Day Care - South,Private & Voluntary Day Care,DoCare Ltd,120.9, 03-Jun-2011
520,Revenue,CCHD,Day Care - North,Private & Voluntary Day Care,DoCare Ltd,330.15, 03-Jun-2011
521,Revenue,CCHD,Elderly MH Home Care,Other Small Contracts,DoCare Ltd,325.5, 03-Jun-2011
522,Revenue,CCHD,Elderly MH non-res purchasing,Private & Voluntary Day Care,DoCare Ltd,60.45, 03-Jun-2011
523,Revenue,CCHD,Home Care Purch South,Other Small Contracts,DoCare Ltd,1980.9, 09-Jun-2011
524,Revenue,CCHD,Home Care Purch North,Other Small Contracts,DoCare Ltd,3175.95, 09-Jun-2011
525,Revenue,CCHD,Day Care - South,Private & Voluntary Day Care,DoCare Ltd,65.1, 09-Jun-2011
526,Revenue,CCHD,Day Care - North,Private & Voluntary Day Care,DoCare Ltd,390.6, 09-Jun-2011
527,Revenue,CCHD,Elderly MH Home Care,Other Small Contracts,DoCare Ltd,316.2, 09-Jun-2011
528,Revenue,CCHD,Elderly MH non-res purchasing,Private & Voluntary Day Care,DoCare Ltd,111.6, 09-Jun-2011
529,Revenue,CCHD,Home Care Purch South,Other Small Contracts,DoCare Ltd,2227.35, 15-Jun-2011
530,Revenue,CCHD,Home Care Purch North,Other Small Contracts,DoCare Ltd,3450.3, 15-Jun-2011
531,Revenue,CCHD,Day Care - South,Private & Voluntary Day Care,DoCare Ltd,120.9, 15-Jun-2011
532,Revenue,CCHD,Day Care - North,Private & Voluntary Day Care,DoCare Ltd,474.3, 15-Jun-2011
533,Revenue,CCHD,Elderly MH Home Care,Other Small Contracts,DoCare Ltd,339.45, 15-Jun-2011
534,Revenue,CCHD,Home Care Purch South,Other Small Contracts,DoCare Ltd,2111.1, 01-Jun-2011
535,Revenue,CCHD,Home Care Purch North,Other Small Contracts,DoCare Ltd,3255, 01-Jun-2011
536,Revenue,CCHD,Day Care - South,Private & Voluntary Day Care,DoCare Ltd,130.2, 01-Jun-2011
537,Revenue,CCHD,Day Care - North,Private & Voluntary Day Care,DoCare Ltd,339.45, 01-Jun-2011
538,Revenue,CCHD,Elderly MH Home Care,Other Small Contracts,DoCare Ltd,381.3, 01-Jun-2011
539,Revenue,CCHD,Elderly MH non-res purchasing,Private & Voluntary Day Care,DoCare Ltd,55.8, 01-Jun-2011
540,Revenue,CCHD,Home Care Purch South,Other Small Contracts,DoCare Ltd,2101.8, 09-Jun-2011
541,Revenue,CCHD,Home Care Purch North,Other Small Contracts,DoCare Ltd,2948.1, 09-Jun-2011
542,Revenue,CCHD,Day Care - South,Private & Voluntary Day Care,DoCare Ltd,83.7, 09-Jun-2011
543,Revenue,CCHD,Day Care - North,Private & Voluntary Day Care,DoCare Ltd,339.45, 09-Jun-2011
544,Revenue,CCHD,Elderly MH Home Care,Other Small Contracts,DoCare Ltd,283.65, 09-Jun-2011
545,Revenue,CCHD,Elderly MH non-res purchasing,Private & Voluntary Day Care,DoCare Ltd,41.85, 09-Jun-2011
546,Revenue,CCHD,Home Care Purch South,Other Small Contracts,DoCare Ltd,2013.45, 09-Jun-2011
547,Revenue,CCHD,Home Care Purch North,Other Small Contracts,DoCare Ltd,3152.7, 09-Jun-2011
548,Revenue,CCHD,Day Care - South,Private & Voluntary Day Care,DoCare Ltd,125.55, 09-Jun-2011
549,Revenue,CCHD,Day Care - North,Private & Voluntary Day Care,DoCare Ltd,339.45, 09-Jun-2011
550,Revenue,CCHD,Elderly MH Home Care,Other Small Contracts,DoCare Ltd,302.25, 09-Jun-2011
551,Revenue,CCHD,Elderly MH non-res purchasing,Private & Voluntary Day Care,DoCare Ltd,37.2, 09-Jun-2011
552,Revenue,CCHD,Home Care Purch South,Other Small Contracts,DoCare Ltd,2013.45, 09-Jun-2011
553,Revenue,CCHD,Home Care Purch North,Other Small Contracts,DoCare Ltd,3408.45, 09-Jun-2011
554,Revenue,CCHD,Day Care - South,Private & Voluntary Day Care,DoCare Ltd,125.55, 09-Jun-2011
555,Revenue,CCHD,Day Care - North,Private & Voluntary Day Care,DoCare Ltd,385.95, 09-Jun-2011
556,Revenue,CCHD,Elderly MH Home Care,Other Small Contracts,DoCare Ltd,316.2, 09-Jun-2011
557,Revenue,CCHD,Elderly MH non-res purchasing,Private & Voluntary Day Care,DoCare Ltd,55.8, 09-Jun-2011
558,Revenue,CCHD,Elderly Purchasing - North,Residential Homes,Drakes Court,2979.56, 14-Jun-2011
559,Revenue,CCHD,Elderly PWLD - PS,Residential Homes,Drakes Court,2527.88, 14-Jun-2011
560,Revenue,CCHD,S28A - Over 65,Residential Homes,Drakes Court,3074.48, 14-Jun-2011
561,Revenue,CCHD,S28A - Over 65,Residential Homes,Drakes Court,3024.76, 14-Jun-2011
562,Revenue,CCHD,S28A - Over 65,Residential Homes,Drakes Court,1985.2, 14-Jun-2011
563,Revenue,CCHD,Elderly PWLD - PS,Residential Homes,Drakes Court,3638.16, 14-Jun-2011
564,Revenue,CCHD,Brokerage and Information Service,Grants to Voluntary Bodies,Drugs & Homeless Initiative,9210.09, 27-Jun-2011
565,Revenue,CCHD,Elderly Purchasing - South,Nursing Homes,Dunkirk Memorial House,1163.84, 14-Jun-2011
566,Revenue,CCHD,MH Purchasing - Younger,Residential Homes,Dunraven House,1791.6, 14-Jun-2011
567,Revenue,CCHD,Bed and Breakfast,Bed & Breakfast,E J Bartlett,637, 06-Jun-2011
568,Revenue,CCHD,Bed and Breakfast,Bed & Breakfast,E J Bartlett,455, 06-Jun-2011
569,Revenue,CCHD,Bed and Breakfast,Bed & Breakfast,E J Bartlett,637, 06-Jun-2011
570,Revenue,CCHD,Bed and Breakfast,Bed & Breakfast,E J Bartlett,637, 09-Jun-2011
571,Revenue,CCHD,Bed and Breakfast,Bed & Breakfast,E J Bartlett,637, 09-Jun-2011
572,Revenue,CCHD,Bed and Breakfast,Bed & Breakfast,E J Bartlett,455, 09-Jun-2011
573,Revenue,CCHD,Bed and Breakfast,Bed & Breakfast,E J Bartlett,637, 15-Jun-2011
574,Revenue,CCHD,Bed and Breakfast,Bed & Breakfast,E J Bartlett,637, 15-Jun-2011
575,Revenue,CCHD,Bed and Breakfast,Bed & Breakfast,E J Bartlett,455, 15-Jun-2011
576,Revenue,CCHD,Bed and Breakfast,Bed & Breakfast,E J Bartlett,546, 15-Jun-2011
577,Revenue,CCHD,Bed and Breakfast,Bed & Breakfast,E J Bartlett,637, 27-Jun-2011
578,Revenue,CCHD,Bed and Breakfast,Bed & Breakfast,E J Bartlett,546, 27-Jun-2011
579,Revenue,CCHD,Bed and Breakfast,Bed & Breakfast,E J Bartlett,455, 27-Jun-2011
580,Revenue,CCHD,Bed and Breakfast,Bed & Breakfast,E J Bartlett,546, 27-Jun-2011
581,Revenue,CCHD,Bed and Breakfast,Bed & Breakfast,E J Bartlett,546, 27-Jun-2011
582,Revenue,CCHD,Bed and Breakfast,Bed & Breakfast,E J Bartlett,637, 30-Jun-2011
583,Revenue,CCHD,Bed and Breakfast,Bed & Breakfast,E J Bartlett,546, 30-Jun-2011
584,Revenue,CCHD,Bed and Breakfast,Bed & Breakfast,E J Bartlett,546, 30-Jun-2011
585,Revenue,CCHD,Cambrian Drive,Electricity,E.ON,889.29, 21-Jun-2011
586,Revenue,CCHD,Under 65s PWLD - KH,Residential Homes,East Court,2136.36, 14-Jun-2011
587,Revenue,CCHD,Minor Adaptations Service,Operational Equipment,Eastman & Co (Timber) Limited,588, 17-Jun-2011
588,Revenue,CCHD,Blackhorse RAC,Electricity,EDF Energy 1 Limited,646.34, 21-Jun-2011
589,Revenue,CCHD,Charlton,Electricity,EDF Energy 1 Limited,1036.7, 14-Jun-2011
590,Revenue,CCHD,Kerr House,Electricity,EDF Energy 1 Limited,892.04, 14-Jun-2011
591,Revenue,CCHD,Wapley Court,Electricity,EDF Energy 1 Limited,1041.95, 14-Jun-2011
592,Revenue,CCHD,Woodleaze,Electricity,EDF Energy 1 Limited,957.7, 14-Jun-2011
593,Revenue,CCHD,Newton House,Electricity,EDF Energy 1 Limited,955.63, 14-Jun-2011
594,Revenue,CCHD,Downend Day Centre,Electricity,EDF Energy 1 Limited,815.66, 14-Jun-2011
595,Revenue,CCHD,Alexandra Way,Electricity,EDF Energy 1 Limited,1141.83, 14-Jun-2011
596,Revenue,CCHD,Emersons Green Offices,Electricity,EDF Energy 1 Limited,2865.39, 21-Jun-2011
597,Revenue,CCHD,Section 117 Placements,Residential Homes,Edgecumbe Lodge,1879.56, 14-Jun-2011
598,Revenue,CCHD,Frenchay Hospital Purchasing,Residential Homes,Edgecumbe Lodge,4068.96, 14-Jun-2011
599,Revenue,CCHD,Frenchay Hospital Purchasing,Residential Homes,Edgecumbe Lodge,1170, 14-Jun-2011
600,Revenue,CCHD,Elderly Purchasing - South,Residential Homes,Edgecumbe Lodge,1216.68, 14-Jun-2011
601,Revenue,CCHD,Frenchay Hospital Purchasing,Residential Homes,Edgecumbe Lodge,1229, 14-Jun-2011
602,Revenue,CCHD,Frenchay Hospital Purchasing,Residential Homes,Edgecumbe Lodge,614.5, 14-Jun-2011
603,Revenue,CCHD,Frenchay Hospital Purchasing,Residential Homes,Edgecumbe Lodge,1062.8, 14-Jun-2011
604,Revenue,CCHD,Elderly Mental Health,Residential Homes,Edgecumbe Lodge,1146.36, 14-Jun-2011
605,Revenue,CCHD,Elderly Mental Health,Residential Homes,Edgecumbe Lodge,4357.41, 14-Jun-2011
606,Revenue,CCHD,Elderly Mental Health,Residential Homes,Edgecumbe Lodge,1350.6, 14-Jun-2011
607,Revenue,CCHD,Frenchay Hospital Purchasing,Residential Homes,Edgecumbe Lodge,502.51, 14-Jun-2011
608,Revenue,CCHD,Elderly PWLD - PS,Residential Homes,Edgemont House Ltd,1299.16, 14-Jun-2011
609,Revenue,CCHD,Frenchay Hospital Purchasing,Residential Homes,Edgemont House Ltd,1240.12, 14-Jun-2011
610,Revenue,CCHD,Frenchay Hospital Purchasing,Residential Homes,Edgemont House Ltd,1245.28, 14-Jun-2011
611,Revenue,CCHD,Elderly Purchasing - South,Residential Homes,Edgemont House Ltd,1122.4, 14-Jun-2011
612,Revenue,CCHD,Elderly Purchasing - South,Residential Homes,Edgemont House Ltd,1262.6, 14-Jun-2011
613,Revenue,CCHD,Elderly Purchasing - South,Residential Homes,Edgemont House Ltd,2489.7, 14-Jun-2011
614,Revenue,CCHD,Elderly Purchasing - South,Residential Homes,Edgemont House Ltd,967.64, 14-Jun-2011
615,Revenue,CCHD,Elderly Mental Health,Nursing Homes,Edgemont View Nursing Home,600.36, 14-Jun-2011
616,Revenue,CCHD,Elderly Purchasing - South,Nursing Homes,Edgemont View Nursing Home,1405, 14-Jun-2011
617,Revenue,CCHD,Frenchay Hospital Purchasing,Nursing Homes,Edgemont View Nursing Home,1335.8, 14-Jun-2011
618,Revenue,CCHD,Elderly Purchasing - North,Nursing Homes,Edgemont View Nursing Home,1440.84, 14-Jun-2011
619,Revenue,CCHD,Elderly Purchasing - South,Nursing Homes,Edgemont View Nursing Home,1247.8, 14-Jun-2011
620,Revenue,CCHD,Elderly Purchasing - South,Nursing Homes,Edgemont View Nursing Home,1586.2, 14-Jun-2011
621,Revenue,CCHD,Frenchay Hospital Purchasing,Nursing Homes,Edgemont View Nursing Home,636.04, 14-Jun-2011
622,Revenue,CCHD,Frenchay Hospital Purchasing,Nursing Homes,Edgemont View Nursing Home,1253.16, 14-Jun-2011
623,Revenue,CCHD,Under 65s PWLD - KH,Residential Homes,Education & Services for People with Autism,31845.24, 21-Jun-2011
624,Revenue,CCHD,Elderly Purchasing - South,Residential Homes,Elmbridge Residential Home Ltd,3887.66, 14-Jun-2011
625,Revenue,CCHD,Supporting People Programme,Grants to Voluntary Bodies,English Churches Housing Group,559.82, 20-Jun-2011
626,Revenue,CCHD,Younger MH non-res purchasing,Private & Voluntary Day Care,Enham,638.72, 03-Jun-2011
627,Revenue,CCHD,Detained,Nursing Homes,Erminecare Limited,12960, 14-Jun-2011
628,Revenue,CCHD,Southmead Hospital Purchasing,Residential Homes,Fairview Court,1661.48, 14-Jun-2011
629,Revenue,CCHD,Elderly Mental Health,Nursing Homes,Fairview Court,983.52, 14-Jun-2011
630,Revenue,CCHD,Elderly Mental Health,Residential Homes,Fairview Court,1389, 14-Jun-2011
631,Revenue,CCHD,Frenchay Hospital Purchasing,Residential Homes,Fairview Court,1507.64, 14-Jun-2011
632,Revenue,CCHD,Elderly Mental Health,Residential Homes,Fairview Court,1878.8, 14-Jun-2011
633,Revenue,CCHD,Southmead Hospital Purchasing,Nursing Homes,Fairview Court Care Home,1536.49, 14-Jun-2011
634,Revenue,CCHD,South Glos Users in South Glos Homes,Nursing Homes,Fairview Court Care Home,2857.26, 14-Jun-2011
635,Revenue,CCHD,Purchasing Phys Dis - North,Nursing Homes,Fairview Court Care Home,1949.28, 14-Jun-2011
636,Revenue,CCHD,Elderly Mental Health,Nursing Homes,Fairview Court Care Home,5801.5, 14-Jun-2011
637,Revenue,CCHD,Section 117 Placements,Nursing Homes,Fairview Court Care Home,2346.11, 14-Jun-2011
638,Revenue,CCHD,Elderly Purchasing - South,Residential Homes,Fairview House,1304.36, 14-Jun-2011
639,Revenue,CCHD,Frenchay Hospital Purchasing,Residential Homes,Fairview House,1260, 14-Jun-2011
640,Revenue,CCHD,Frenchay Hospital Purchasing,Residential Homes,Fairview House,873.4, 14-Jun-2011
641,Revenue,CCHD,Section 117 Placements,Residential Homes,Fairview House,3680, 14-Jun-2011
642,Revenue,CCHD,Elderly Mental Health,Residential Homes,Fairview House,891.76, 14-Jun-2011
643,Revenue,CCHD,Elderly Mental Health,Residential Homes,Fairview House,2169.44, 14-Jun-2011
644,Revenue,CCHD,Frenchay Hospital Purchasing,Residential Homes,Fairview House,2449.07, 14-Jun-2011
645,Revenue,CCHD,Frenchay Hospital Purchasing,Residential Homes,Fairview House,2458, 14-Jun-2011
646,Revenue,CCHD,Frenchay Hospital Purchasing,Residential Homes,Fairview House,2029.42, 14-Jun-2011
647,Revenue,CCHD,Southmead Hospital Purchasing,Residential Homes,Fairview House,1210.02, 14-Jun-2011
648,Revenue,CCHD,Southmead Hospital Purchasing,Residential Homes,Fairview House,786.12, 14-Jun-2011
649,Revenue,CCHD,Southmead Hospital Purchasing,Residential Homes,Fairview House,1086.61, 14-Jun-2011
650,Revenue,CCHD,Elderly Mental Health,Residential Homes,Fairview House,2098.56, 14-Jun-2011
651,Revenue,CCHD,Elderly Mental Health,Residential Homes,Fairview House,2327.76, 14-Jun-2011
652,Revenue,CCHD,Frenchay Hospital Purchasing,Residential Homes,Fairview House,2538.64, 14-Jun-2011
653,Revenue,CCHD,Elderly Mental Health,Residential Homes,Fairview House,2123.44, 14-Jun-2011
654,Revenue,CCHD,Elderly Purchasing - North,Residential Homes,Faith House,892.2, 14-Jun-2011
655,Revenue,CCHD,Frenchay Hospital Purchasing,Residential Homes,Faith House,1284.48, 14-Jun-2011
656,Revenue,CCHD,Under 65s PWLD - KD,Residential Homes,Fernbank,16701.12, 14-Jun-2011
657,Revenue,CCHD,Under 65s PWLD - KD,Residential Homes,Forge House,3623.16, 14-Jun-2011
658,Revenue,CCHD,Southmead Hospital Purchasing,Residential Homes,Four Seasons Health Care,1136.2, 14-Jun-2011
659,Revenue,CCHD,Frenchay Hospital Purchasing,Residential Homes,Four Seasons Health Care,907.04, 14-Jun-2011
660,Revenue,CCHD,Frenchay Hospital Purchasing,Nursing Homes,Four Seasons Health Care,1003.56, 14-Jun-2011
661,Revenue,CCHD,Frenchay Hospital Purchasing,Nursing Homes,Four Seasons Health Care,669.04, 14-Jun-2011
662,Revenue,CCHD,Frenchay Hospital Purchasing,Nursing Homes,Four Seasons Health Care,1366.8, 14-Jun-2011
663,Revenue,CCHD,South Glos Users in South Glos Homes,Nursing Homes,Four Seasons Health Care,900.66, 14-Jun-2011
664,Revenue,CCHD,Elderly Purchasing - South,Nursing Homes,Four Seasons Health Care,835.52, 14-Jun-2011
665,Revenue,CCHD,Southmead Hospital Purchasing,Residential Homes,Four Seasons Health Care,1349, 14-Jun-2011
666,Revenue,CCHD,South Glos Users in South Glos Homes,Nursing Homes,Four Seasons Health Care,2362.08, 14-Jun-2011
667,Revenue,CCHD,Frenchay Hospital Purchasing,Nursing Homes,Four Seasons Health Care,1160.48, 14-Jun-2011
668,Revenue,CCHD,Elderly Purchasing - South,Residential Homes,Four Seasons Health Care,1225.8, 14-Jun-2011
669,Revenue,CCHD,Southmead Hospital Purchasing,Nursing Homes,Four Seasons Health Care,1349, 14-Jun-2011
670,Revenue,CCHD,Frenchay Hospital Purchasing,Nursing Homes,Four Seasons Health Care,1349, 14-Jun-2011
671,Revenue,CCHD,Cash for Change Discharges,Nursing Homes,Four Seasons Health Care,1349, 14-Jun-2011
672,Revenue,CCHD,Elderly Purchasing - South,Nursing Homes,Four Seasons Health Care,1349, 14-Jun-2011
673,Revenue,CCHD,Elderly Purchasing - South,Nursing Homes,Four Seasons Health Care,1349, 14-Jun-2011
674,Revenue,CCHD,South Glos Users in South Glos Homes,Nursing Homes,Four Seasons Health Care,14888.21, 14-Jun-2011
675,Revenue,CCHD,South Glos Users in South Glos Homes,Nursing Homes,Four Seasons Health Care,916.19, 14-Jun-2011
676,Revenue,CCHD,Southmead Hospital Purchasing,Residential Homes,Four Seasons Health Care,580.48, 14-Jun-2011
677,Revenue,CCHD,Frenchay Hospital Purchasing,Nursing Homes,Four Seasons Health Care,1349, 14-Jun-2011
678,Revenue,CCHD,Frenchay Hospital Purchasing,Nursing Homes,Four Seasons Health Care,1139, 14-Jun-2011
679,Revenue,CCHD,Elderly Purchasing - South,Nursing Homes,Four Seasons Health Care,1046.64, 14-Jun-2011
680,Revenue,CCHD,Southmead Hospital Purchasing,Nursing Homes,Four Seasons Health Care,1253.28, 14-Jun-2011
681,Revenue,CCHD,Elderly Purchasing - South,Nursing Homes,Four Seasons Health Care,1349, 14-Jun-2011
682,Revenue,CCHD,Elderly Purchasing - South,Nursing Homes,Four Seasons Health Care,1290.4, 14-Jun-2011
683,Revenue,CCHD,Elderly Purchasing - South,Residential Homes,Four Seasons Health Care,948.64, 14-Jun-2011
684,Revenue,CCHD,Elderly Purchasing - North,Nursing Homes,Four Seasons Health Care,1313, 14-Jun-2011
685,Revenue,CCHD,Frenchay Hospital Purchasing,Nursing Homes,Four Seasons Health Care,1052.2, 14-Jun-2011
686,Revenue,CCHD,Elderly Mental Health,Residential Homes,Four Seasons Health Care,1056.64, 14-Jun-2011
687,Revenue,CCHD,Frenchay Hospital Purchasing,Residential Homes,Four Seasons Health Care,1063.88, 14-Jun-2011
688,Revenue,CCHD,Elderly Purchasing - South,Nursing Homes,Four Seasons Health Care,1291.44, 14-Jun-2011
689,Revenue,CCHD,Elderly Mental Health,Nursing Homes,Four Seasons Health Care,1302.2, 14-Jun-2011
690,Revenue,CCHD,Elderly Purchasing - South,Nursing Homes,Four Seasons Health Care,1341.32, 14-Jun-2011
691,Revenue,CCHD,Frenchay Hospital Purchasing,Nursing Homes,Four Seasons Health Care,1297, 14-Jun-2011
692,Revenue,CCHD,Elderly Mental Health,Nursing Homes,Four Seasons Health Care,1199.32, 14-Jun-2011
693,Revenue,CCHD,Elderly Purchasing - North,Nursing Homes,Four Seasons Health Care,1000, 14-Jun-2011
694,Revenue,CCHD,Frenchay Hospital Purchasing,Nursing Homes,Four Seasons Health Care,1517, 14-Jun-2011
695,Revenue,CCHD,Frenchay Hospital Purchasing,Nursing Homes,Four Seasons Health Care,1283.16, 14-Jun-2011
696,Revenue,CCHD,Southmead Hospital Purchasing,Residential Homes,Four Seasons Health Care,1232, 14-Jun-2011
697,Revenue,CCHD,Elderly Purchasing - North,Residential Homes,Four Seasons Health Care,861.28, 14-Jun-2011
698,Revenue,CCHD,Elderly Mental Health,Nursing Homes,Four Seasons Health Care,1342.6, 14-Jun-2011
699,Revenue,CCHD,Elderly Mental Health,Nursing Homes,Four Seasons Health Care,1006.95, 14-Jun-2011
700,Revenue,CCHD,Elderly Purchasing - South,Nursing Homes,Four Seasons Health Care,1206.96, 14-Jun-2011
701,Revenue,CCHD,Elderly Mental Health,Nursing Homes,Four Seasons Health Care,1313, 14-Jun-2011
702,Revenue,CCHD,Frenchay Hospital Purchasing,Nursing Homes,Four Seasons Health Care,1268.08, 14-Jun-2011
703,Revenue,CCHD,Elderly Purchasing - South,Nursing Homes,Four Seasons Health Care,1349, 14-Jun-2011
704,Revenue,CCHD,Elderly Purchasing - South,Nursing Homes,Four Seasons Health Care,1459.32, 14-Jun-2011
705,Revenue,CCHD,Southmead Hospital Purchasing,Nursing Homes,Four Seasons Health Care,1349, 14-Jun-2011
706,Revenue,CCHD,Elderly Purchasing - South,Nursing Homes,Four Seasons Health Care,1349, 14-Jun-2011
707,Revenue,CCHD,Elderly Purchasing - South,Nursing Homes,Four Seasons Health Care,1808, 14-Jun-2011
708,Revenue,CCHD,Southmead Hospital Purchasing,Nursing Homes,Four Seasons Health Care,726, 14-Jun-2011
709,Revenue,CCHD,Elderly Mental Health,Nursing Homes,Four Seasons Health Care,1431.72, 14-Jun-2011
710,Revenue,CCHD,Elderly Purchasing - North,Nursing Homes,Four Seasons Health Care,1349, 14-Jun-2011
711,Revenue,CCHD,Elderly Purchasing - North,Nursing Homes,Four Seasons Health Care,1103.48, 14-Jun-2011
712,Revenue,CCHD,Southmead Hospital Purchasing,Nursing Homes,Four Seasons Health Care,1304.16, 14-Jun-2011
713,Revenue,CCHD,Southmead Hospital Purchasing,Nursing Homes,Four Seasons Health Care,1336.4, 14-Jun-2011
714,Revenue,CCHD,Frenchay Hospital Purchasing,Nursing Homes,Four Seasons Health Care,1284.56, 14-Jun-2011
715,Revenue,CCHD,Elderly Mental Health,Nursing Homes,Four Seasons Health Care,1517, 14-Jun-2011
716,Revenue,CCHD,Elderly Purchasing - North,Residential Homes,Four Seasons Health Care,729.44, 14-Jun-2011
717,Revenue,CCHD,Elderly Purchasing - North,Nursing Homes,Four Seasons Health Care,719.68, 14-Jun-2011
718,Revenue,CCHD,Elderly Mental Health,Nursing Homes,Four Seasons Health Care,3489.86, 14-Jun-2011
719,Revenue,CCHD,Elderly Mental Health,Nursing Homes,Four Seasons Health Care,1416, 14-Jun-2011
720,Revenue,CCHD,Frenchay Hospital Purchasing,Nursing Homes,Four Seasons Health Care,1323.8, 14-Jun-2011
721,Revenue,CCHD,Elderly Purchasing - North,Nursing Homes,Four Seasons Health Care,1349, 14-Jun-2011
722,Revenue,CCHD,Elderly Purchasing - South,Residential Homes,Four Seasons Health Care,1229, 14-Jun-2011
723,Revenue,CCHD,Elderly Purchasing - North,Nursing Homes,Four Seasons Health Care,1346.48, 14-Jun-2011
724,Revenue,CCHD,Southmead Hospital Purchasing,Residential Homes,Four Seasons Health Care,4178.51, 14-Jun-2011
725,Revenue,CCHD,Southmead Hospital Purchasing,Residential Homes,Four Seasons Health Care,729.36, 14-Jun-2011
726,Revenue,CCHD,Elderly Mental Health,Nursing Homes,Four Seasons Health Care,1402.52, 14-Jun-2011
727,Revenue,CCHD,Elderly Mental Health,Nursing Homes,Four Seasons Health Care,1404.08, 14-Jun-2011
728,Revenue,CCHD,Southmead Hospital Purchasing,Nursing Homes,Four Seasons Health Care,1349, 14-Jun-2011
729,Revenue,CCHD,Frenchay Hospital Purchasing,Nursing Homes,Four Seasons Health Care,1199.6, 14-Jun-2011
730,Revenue,CCHD,Elderly Purchasing - North,Nursing Homes,Four Seasons Health Care,921, 14-Jun-2011
731,Revenue,CCHD,Elderly Purchasing - North,Nursing Homes,Four Seasons Health Care,1458.32, 14-Jun-2011
732,Revenue,CCHD,Southmead Hospital Purchasing,Nursing Homes,Four Seasons Health Care,620.92, 14-Jun-2011
733,Revenue,CCHD,Elderly Purchasing - South,Nursing Homes,Four Seasons Health Care,1276.6, 14-Jun-2011
734,Revenue,CCHD,Frenchay Hospital Purchasing,Nursing Homes,Four Seasons Health Care,1161.72, 14-Jun-2011
735,Revenue,CCHD,Elderly Mental Health,Residential Homes,Four Seasons Health Care,1202.24, 14-Jun-2011
736,Revenue,CCHD,Southmead Hospital Purchasing,Nursing Homes,Four Seasons Health Care,1349, 14-Jun-2011
737,Revenue,CCHD,Southmead Hospital Purchasing,Residential Homes,Four Seasons Health Care,1246.8, 14-Jun-2011
738,Revenue,CCHD,Elderly Mental Health,Nursing Homes,Four Seasons Health Care,1349, 14-Jun-2011
739,Revenue,CCHD,Elderly Mental Health,Residential Homes,Four Seasons Health Care,1344.16, 14-Jun-2011
740,Revenue,CCHD,Elderly Purchasing - North,Nursing Homes,Four Seasons Health Care,1341.32, 14-Jun-2011
741,Revenue,CCHD,Elderly Mental Health,Nursing Homes,Four Seasons Health Care,1034.84, 14-Jun-2011
742,Revenue,CCHD,Frenchay Hospital Purchasing,Nursing Homes,Four Seasons Health Care,1349, 14-Jun-2011
743,Revenue,CCHD,Elderly Mental Health,Residential Homes,Four Seasons Health Care,1139.16, 14-Jun-2011
744,Revenue,CCHD,Frenchay Hospital Purchasing,Nursing Homes,Four Seasons Health Care,1349, 14-Jun-2011
745,Revenue,CCHD,Frenchay Hospital Purchasing,Nursing Homes,Four Seasons Health Care,1108.1, 14-Jun-2011
746,Revenue,CCHD,Southmead Hospital Purchasing,Nursing Homes,Four Seasons Health Care,833.4, 14-Jun-2011
747,Revenue,CCHD,Southmead Hospital Purchasing,Nursing Homes,Four Seasons Health Care,1952.57, 14-Jun-2011
748,Revenue,CCHD,Southmead Hospital Purchasing,Nursing Homes,Four Seasons Health Care,770.85, 14-Jun-2011
749,Revenue,CCHD,Frenchay Hospital Purchasing,Nursing Homes,Four Seasons Health Care,1349, 14-Jun-2011
750,Revenue,CCHD,Frenchay Hospital Purchasing,Nursing Homes,Four Seasons Health Care,1304.44, 14-Jun-2011
751,Revenue,CCHD,Elderly Purchasing - South,Nursing Homes,Four Seasons Health Care,1251.72, 14-Jun-2011
752,Revenue,CCHD,Frenchay Hospital Purchasing,Nursing Homes,Four Seasons Health Care,1121.16, 14-Jun-2011
753,Revenue,CCHD,Elderly Purchasing - North,Nursing Homes,Four Seasons Health Care,1097.76, 14-Jun-2011
754,Revenue,CCHD,Elderly Mental Health,Nursing Homes,Four Seasons Health Care,1224.72, 14-Jun-2011
755,Revenue,CCHD,Frenchay Hospital Purchasing,Nursing Homes,Four Seasons Health Care,1277, 14-Jun-2011
756,Revenue,CCHD,Frenchay Hospital Purchasing,Nursing Homes,Four Seasons Health Care,803.08, 14-Jun-2011
757,Revenue,CCHD,Frenchay Hospital Purchasing,Nursing Homes,Four Seasons Health Care,1349, 14-Jun-2011
758,Revenue,CCHD,Frenchay Hospital Purchasing,Nursing Homes,Four Seasons Health Care,1349, 14-Jun-2011
759,Revenue,CCHD,Frenchay Hospital Purchasing,Nursing Homes,Four Seasons Health Care,1349, 14-Jun-2011
760,Revenue,CCHD,Frenchay Hospital Purchasing,Nursing Homes,Four Seasons Health Care,1349, 14-Jun-2011
761,Revenue,CCHD,Frenchay Hospital Purchasing,Nursing Homes,Four Seasons Health Care,1365, 14-Jun-2011
762,Revenue,CCHD,Elderly Purchasing - South,Nursing Homes,Four Seasons Health Care,1057.92, 14-Jun-2011
763,Revenue,CCHD,Elderly Purchasing - North,Nursing Homes,Four Seasons Health Care,857.96, 14-Jun-2011
764,Revenue,CCHD,Southmead Hospital Purchasing,Residential Homes,Four Seasons Health Care,1103.44, 14-Jun-2011
765,Revenue,CCHD,Southmead Hospital Purchasing,Nursing Homes,Four Seasons Health Care,1131.04, 14-Jun-2011
766,Revenue,CCHD,Southmead Hospital Purchasing,Nursing Homes,Four Seasons Health Care,1317.56, 14-Jun-2011
767,Revenue,CCHD,Purchasing Phys Dis - North,Nursing Homes,Four Seasons Health Care,1355.08, 14-Jun-2011
768,Revenue,CCHD,Purchasing Phys Dis - North,Nursing Homes,Four Seasons Health Care,1285, 14-Jun-2011
769,Revenue,CCHD,Elderly Purchasing - South,Nursing Homes,Four Seasons Health Care,1225.28, 14-Jun-2011
770,Revenue,CCHD,Southmead Hospital Purchasing,Residential Homes,Four Seasons Health Care,782.96, 14-Jun-2011
771,Revenue,CCHD,Frenchay Hospital Purchasing,Nursing Homes,Four Seasons Health Care,1808, 14-Jun-2011
772,Revenue,CCHD,Southmead Hospital Purchasing,Nursing Homes,Four Seasons Health Care,1275.28, 14-Jun-2011
773,Revenue,CCHD,Elderly Mental Health,Residential Homes,Four Seasons Health Care,1375.96, 14-Jun-2011
774,Revenue,CCHD,South Glos Users in South Glos Homes,Nursing Homes,Four Seasons Health Care,2515.63, 14-Jun-2011
775,Revenue,CCHD,South Glos Users in South Glos Homes,Nursing Homes,Four Seasons Health Care,916.19, 14-Jun-2011
776,Revenue,CCHD,Elderly Mental Health,Residential Homes,Four Seasons Health Care,1280.12, 14-Jun-2011
777,Revenue,CCHD,Southmead Hospital Purchasing,Residential Homes,Four Seasons Health Care,1151.56, 14-Jun-2011
778,Revenue,CCHD,Elderly PWLD - PS,Residential Homes,Four Seasons Health Care,1229, 14-Jun-2011
779,Revenue,CCHD,Frenchay Hospital Purchasing,Nursing Homes,Four Seasons Health Care,1349, 14-Jun-2011
780,Revenue,CCHD,Frenchay Hospital Purchasing,Nursing Homes,Four Seasons Health Care,1808, 14-Jun-2011
781,Revenue,CCHD,South Glos Users in South Glos Homes,Nursing Homes,Four Seasons Health Care,1040.41, 14-Jun-2011
782,Revenue,CCHD,South Glos Users in South Glos Homes,Nursing Homes,Four Seasons Health Care,916.19, 14-Jun-2011
783,Revenue,CCHD,Elderly Purchasing - South,Nursing Homes,Four Seasons Health Care,1265.52, 14-Jun-2011
784,Revenue,CCHD,Elderly Purchasing - South,Nursing Homes,Four Seasons Health Care,1335.64, 14-Jun-2011
785,Revenue,CCHD,Elderly Purchasing - South,Residential Homes,Four Seasons Health Care,859.68, 14-Jun-2011
786,Revenue,CCHD,Elderly Purchasing - South,Residential Homes,Four Seasons Health Care,1764.56, 14-Jun-2011
787,Revenue,CCHD,Elderly Purchasing - South,Residential Homes,Four Seasons Health Care,1008.32, 14-Jun-2011
788,Revenue,CCHD,Frenchay Hospital Purchasing,Nursing Homes,Four Seasons Health Care,1341.12, 14-Jun-2011
789,Revenue,CCHD,South Glos Users in South Glos Homes,Nursing Homes,Four Seasons Health Care,574.56, 14-Jun-2011
790,Revenue,CCHD,Elderly Purchasing - South,Nursing Homes,Four Seasons Health Care,1225.36, 14-Jun-2011
791,Revenue,CCHD,Frenchay Hospital Purchasing,Nursing Homes,Four Seasons Health Care,774.32, 14-Jun-2011
792,Revenue,CCHD,Elderly Purchasing - South,Residential Homes,Four Seasons Health Care,846.2, 14-Jun-2011
793,Revenue,CCHD,Elderly Purchasing - South,Residential Homes,Four Seasons Health Care,1102.04, 14-Jun-2011
794,Revenue,CCHD,Elderly Purchasing - South,Nursing Homes,Four Seasons Health Care,960.32, 14-Jun-2011
795,Revenue,CCHD,Frenchay Hospital Purchasing,Residential Homes,Four Seasons Health Care,1227.8, 14-Jun-2011
796,Revenue,CCHD,Frenchay Hospital Purchasing,Residential Homes,Four Seasons Health Care,1195.84, 14-Jun-2011
797,Revenue,CCHD,Elderly Purchasing - South,Nursing Homes,Four Seasons Health Care,1349, 14-Jun-2011
798,Revenue,CCHD,Section 117 Placements,Residential Homes,Four Seasons Health Care,1688, 14-Jun-2011
799,Revenue,CCHD,Frenchay Hospital Purchasing,Residential Homes,Four Seasons Health Care,1092.96, 14-Jun-2011
800,Revenue,CCHD,Elderly Mental Health,Residential Homes,Four Seasons Health Care,1665.33, 14-Jun-2011
801,Revenue,CCHD,Elderly Mental Health,Residential Homes,Four Seasons Health Care,1413, 14-Jun-2011
802,Revenue,CCHD,Elderly Mental Health,Residential Homes,Four Seasons Health Care,1665.33, 14-Jun-2011
803,Revenue,CCHD,Elderly Mental Health,Residential Homes,Four Seasons Health Care,1413, 14-Jun-2011
804,Revenue,CCHD,Frenchay Hospital Purchasing,Residential Homes,Four Seasons Health Care,1237.4, 14-Jun-2011
805,Revenue,CCHD,Southmead Hospital Purchasing,Residential Homes,Four Seasons Health Care,1241, 14-Jun-2011
806,Revenue,CCHD,Frenchay Hospital Purchasing,Nursing Homes,Four Seasons Health Care,1345.8, 14-Jun-2011
807,Revenue,CCHD,Southmead Hospital Purchasing,Nursing Homes,Four Seasons Health Care,739, 14-Jun-2011
808,Revenue,CCHD,Elderly Mental Health,Nursing Homes,Four Seasons Health Care,1339.16, 14-Jun-2011
809,Revenue,CCHD,Elderly Purchasing - North,Nursing Homes,Four Seasons Health Care,1285.16, 14-Jun-2011
810,Revenue,CCHD,Elderly Mental Health,Nursing Homes,Four Seasons Health Care,1349, 14-Jun-2011
811,Revenue,CCHD,Frenchay Hospital Purchasing,Nursing Homes,Four Seasons Health Care,3186.22, 14-Jun-2011
812,Revenue,CCHD,Frenchay Hospital Purchasing,Nursing Homes,Four Seasons Health Care,1273.32, 14-Jun-2011
813,Revenue,CCHD,Frenchay Hospital Purchasing,Nursing Homes,Four Seasons Health Care,774.32, 14-Jun-2011
814,Revenue,CCHD,Elderly Purchasing - North,Nursing Homes,Four Seasons Health Care,1349, 14-Jun-2011
815,Revenue,CCHD,Freeways,Residential Homes,Freeways Trust Limited,53090.23, 09-Jun-2011
816,Revenue,CCHD,Purchase of Non-Res Care - KD,Private & Voluntary Day Care,Freeways Trust Limited,620.88, 01-Jun-2011
817,Revenue,CCHD,Supported Living - PS,Private & Voluntary Home Care,Freeways Trust Limited,1295.25, 07-Jun-2011
818,Revenue,CCHD,Purchase of Non-Res Care - KH,Private & Voluntary Day Care,Freeways Trust Limited,938.57, 22-Jun-2011
819,Revenue,CCHD,Purchase of Non-Res Care - KD,Private & Voluntary Day Care,Freeways Trust Limited,540, 06-Jun-2011
820,Revenue,CCHD,Purchase of Non-Res Care - KD,Private & Voluntary Day Care,Freeways Trust Limited,620.88, 16-Jun-2011
821,Revenue,CCHD,Supported Living - PS,Private & Voluntary Home Care,Freeways Trust Limited,1770.98, 17-Jun-2011
822,Revenue,CCHD,Purchase of Non-Res Care - KD,Private & Voluntary Day Care,Freeways Trust Limited,620.88, 16-Jun-2011
823,Revenue,CCHD,Supported Living - PS,Private & Voluntary Home Care,Freeways Trust Limited,1245.75, 16-Jun-2011
824,Revenue,CCHD,Supported Living - PS,Private & Voluntary Home Care,Freeways Trust Limited,600, 20-Jun-2011
825,Revenue,CCHD,Supported Living - PS,Private & Voluntary Home Care,Freeways Trust Limited,1072.5, 23-Jun-2011
826,Revenue,CCHD,Under 65s PWLD - KD,Residential Homes,Freeways Trust Ltd,2757, 14-Jun-2011
827,Revenue,CCHD,S28A - Under 65,Residential Homes,Freeways Trust Ltd,2838.8, 14-Jun-2011
828,Revenue,CCHD,Under 65s PWLD - KD,Residential Homes,Freeways Trust Ltd,2206.88, 14-Jun-2011
829,Revenue,CCHD,Under 65s PWLD - KD,Residential Homes,Freeways Trust Ltd,2217.28, 14-Jun-2011
830,Revenue,CCHD,Under 65s PWLD - KD,Residential Homes,Freeways Trust Ltd,2633.48, 14-Jun-2011
831,Revenue,CCHD,Under 65s PWLD - KH,Residential Homes,Freeways Trust Ltd,3216.52, 14-Jun-2011
832,Revenue,CCHD,Elderly PWLD - KD,Residential Homes,Freeways Trust Ltd,2192.48, 14-Jun-2011
833,Revenue,CCHD,Under 65s PWLD - KH,Residential Homes,Freeways Trust Ltd,2335.12, 14-Jun-2011
834,Revenue,CCHD,Under 65s PWLD - KH,Residential Homes,Freeways Trust Ltd,2633.48, 14-Jun-2011
835,Revenue,CCHD,Elderly Mental Health,Residential Homes,Gatchell House,3920.54, 14-Jun-2011
836,Revenue,CCHD,Cambrian Green Day Service,Gas,Gazprom Marketing & Trading Retail Ltd,417.34, 30-Jun-2011
837,Revenue,CCHD,Newton House,R & M by Departments,Geoff Lewis Flooring Limited,525, 06-Jun-2011
838,Revenue,CCHD,Alexandra Way,Prop.Serv. General Repairs,Geoff Lewis Flooring Limited,9600, 16-Jun-2011
839,Revenue,CCHD,Charlton,Prop.Serv. General Repairs,Geoff Lewis Flooring Limited,965, 30-Jun-2011
840,Revenue,CCHD,Under 65s PWLD - PS,Residential Homes,Glasallt Fawr,4442.2, 14-Jun-2011
841,Revenue,CCHD,Elderly Purchasing - North,Nursing Homes,Glebe House Nursing Home,1366.64, 14-Jun-2011
842,Revenue,CCHD,South Glos Users in South Glos Homes,Nursing Homes,Glebe House Nursing Home,916.19, 14-Jun-2011
843,Revenue,CCHD,South Glos Users in South Glos Homes,Nursing Homes,Glebe House Nursing Home,916.19, 14-Jun-2011
844,Revenue,CCHD,Elderly Purchasing - North,Nursing Homes,Glebe House Nursing Home,1285, 14-Jun-2011
845,Revenue,CCHD,Southmead Hospital Purchasing,Nursing Homes,Glebe House Nursing Home,1644, 14-Jun-2011
846,Revenue,CCHD,South Glos Users in South Glos Homes,Nursing Homes,Glebe House Nursing Home,590.09, 14-Jun-2011
847,Revenue,CCHD,Elderly Purchasing - North,Nursing Homes,Glebe House Nursing Home,1285, 14-Jun-2011
848,Revenue,CCHD,Elderly Purchasing - North,Nursing Homes,Glebe House Nursing Home,550.72, 14-Jun-2011
849,Revenue,CCHD,Purchasing Phys Dis - South,Nursing Homes,Glenside Centre For Brain Injury,6955.52, 14-Jun-2011
850,Revenue,CCHD,Under 65s PWLD - KH,Residential Homes,Gordena Care Home,2040.52, 14-Jun-2011
851,Revenue,CCHD,Elderly PWLD - KH,Residential Homes,Gordena Care Home,4624.36, 14-Jun-2011
852,Revenue,CCHD,Elderly PWLD - KH,Residential Homes,Gordena Care Home,2866.12, 14-Jun-2011
853,Revenue,CCHD,Under 65s PWLD - KH,Residential Homes,Gordena Care Home,2036.68, 14-Jun-2011
854,Revenue,CCHD,Home Care Purch South,Other Small Contracts,Greenbanks Homecare (Western) Limited,4280.74, 06-Jun-2011
855,Revenue,CCHD,Home Care Purch North,Other Small Contracts,Greenbanks Homecare (Western) Limited,636.9, 06-Jun-2011
856,Revenue,CCHD,Day Care - South,Private & Voluntary Day Care,Greenbanks Homecare (Western) Limited,108.08, 06-Jun-2011
857,Revenue,CCHD,Day Care - North,Private & Voluntary Day Care,Greenbanks Homecare (Western) Limited,108.08, 06-Jun-2011
858,Revenue,CCHD,Carer`s Grant - South,Carers Breaks & Services,Greenbanks Homecare (Western) Limited,100.36, 06-Jun-2011
859,Revenue,CCHD,Under 65s -MH  Home Care Purch,Other Small Contracts,Greenbanks Homecare (Western) Limited,150.54, 06-Jun-2011
860,Revenue,CCHD,Elderly MH Home Care,Other Small Contracts,Greenbanks Homecare (Western) Limited,389.86, 06-Jun-2011
861,Revenue,CCHD,Home Care Purch South,Other Small Contracts,Greenbanks Homecare (Western) Limited,4365.66, 20-Jun-2011
862,Revenue,CCHD,Home Care Purch North,Other Small Contracts,Greenbanks Homecare (Western) Limited,104.22, 20-Jun-2011
863,Revenue,CCHD,Day Care - South,Private & Voluntary Day Care,Greenbanks Homecare (Western) Limited,142.82, 20-Jun-2011
864,Revenue,CCHD,Day Care - North,Private & Voluntary Day Care,Greenbanks Homecare (Western) Limited,61.76, 20-Jun-2011
865,Revenue,CCHD,Carer`s Grant - South,Carers Breaks & Services,Greenbanks Homecare (Western) Limited,108.08, 20-Jun-2011
866,Revenue,CCHD,Elderly MH Home Care,Other Small Contracts,Greenbanks Homecare (Western) Limited,370.56, 20-Jun-2011
867,Revenue,CCHD,Home Care Purch South,Other Small Contracts,Greenbanks Homecare (Western) Limited,4296.18, 13-Jun-2011
868,Revenue,CCHD,Home Care Purch North,Other Small Contracts,Greenbanks Homecare (Western) Limited,721.82, 13-Jun-2011
869,Revenue,CCHD,Day Care - South,Private & Voluntary Day Care,Greenbanks Homecare (Western) Limited,158.26, 13-Jun-2011
870,Revenue,CCHD,Day Care - North,Private & Voluntary Day Care,Greenbanks Homecare (Western) Limited,104.22, 13-Jun-2011
871,Revenue,CCHD,Carer`s Grant - South,Carers Breaks & Services,Greenbanks Homecare (Western) Limited,108.08, 13-Jun-2011
872,Revenue,CCHD,Under 65s -MH  Home Care Purch,Other Small Contracts,Greenbanks Homecare (Western) Limited,146.68, 13-Jun-2011
873,Revenue,CCHD,Elderly MH Home Care,Other Small Contracts,Greenbanks Homecare (Western) Limited,355.12, 13-Jun-2011
874,Revenue,CCHD,Home Care Purch South,Other Small Contracts,Greenbanks Homecare (Western) Limited,4184.24, 06-Jun-2011
875,Revenue,CCHD,Home Care Purch North,Other Small Contracts,Greenbanks Homecare (Western) Limited,663.92, 06-Jun-2011
876,Revenue,CCHD,Day Care - South,Private & Voluntary Day Care,Greenbanks Homecare (Western) Limited,196.86, 06-Jun-2011
877,Revenue,CCHD,Day Care - North,Private & Voluntary Day Care,Greenbanks Homecare (Western) Limited,104.22, 06-Jun-2011
878,Revenue,CCHD,Carer`s Grant - South,Carers Breaks & Services,Greenbanks Homecare (Western) Limited,61.76, 06-Jun-2011
879,Revenue,CCHD,Under 65s -MH  Home Care Purch,Other Small Contracts,Greenbanks Homecare (Western) Limited,146.68, 06-Jun-2011
880,Revenue,CCHD,Elderly MH Home Care,Other Small Contracts,Greenbanks Homecare (Western) Limited,397.58, 06-Jun-2011
881,Revenue,CCHD,Home Care Purch South,Other Small Contracts,Greenbanks Homecare (Western) Limited,4342.5, 06-Jun-2011
882,Revenue,CCHD,Home Care Purch North,Other Small Contracts,Greenbanks Homecare (Western) Limited,671.64, 06-Jun-2011
883,Revenue,CCHD,Day Care - South,Private & Voluntary Day Care,Greenbanks Homecare (Western) Limited,108.08, 06-Jun-2011
884,Revenue,CCHD,Day Care - North,Private & Voluntary Day Care,Greenbanks Homecare (Western) Limited,104.22, 06-Jun-2011
885,Revenue,CCHD,Carer`s Grant - South,Carers Breaks & Services,Greenbanks Homecare (Western) Limited,65.62, 06-Jun-2011
886,Revenue,CCHD,Elderly MH Home Care,Other Small Contracts,Greenbanks Homecare (Western) Limited,409.16, 06-Jun-2011
887,Revenue,CCHD,Home Care Purch South,Other Small Contracts,Greenbanks Homecare (Western) Limited,4373.38, 06-Jun-2011
888,Revenue,CCHD,Home Care Purch North,Other Small Contracts,Greenbanks Homecare (Western) Limited,679.36, 06-Jun-2011
889,Revenue,CCHD,Day Care - South,Private & Voluntary Day Care,Greenbanks Homecare (Western) Limited,270.2, 06-Jun-2011
890,Revenue,CCHD,Day Care - North,Private & Voluntary Day Care,Greenbanks Homecare (Western) Limited,104.22, 06-Jun-2011
891,Revenue,CCHD,Carer`s Grant - South,Carers Breaks & Services,Greenbanks Homecare (Western) Limited,108.08, 06-Jun-2011
892,Revenue,CCHD,Under 65s -MH  Home Care Purch,Other Small Contracts,Greenbanks Homecare (Western) Limited,138.96, 06-Jun-2011
893,Revenue,CCHD,Elderly MH Home Care,Other Small Contracts,Greenbanks Homecare (Western) Limited,339.68, 06-Jun-2011
894,Revenue,CCHD,Home Care Purch South,Other Small Contracts,Greenbanks Homecare (Western) Limited,4377.24, 20-Jun-2011
895,Revenue,CCHD,Home Care Purch North,Other Small Contracts,Greenbanks Homecare (Western) Limited,413.02, 20-Jun-2011
896,Revenue,CCHD,Day Care - South,Private & Voluntary Day Care,Greenbanks Homecare (Western) Limited,123.52, 20-Jun-2011
897,Revenue,CCHD,Day Care - North,Private & Voluntary Day Care,Greenbanks Homecare (Western) Limited,104.22, 20-Jun-2011
898,Revenue,CCHD,Carer`s Grant - South,Carers Breaks & Services,Greenbanks Homecare (Western) Limited,108.08, 20-Jun-2011
899,Revenue,CCHD,Elderly MH Home Care,Other Small Contracts,Greenbanks Homecare (Western) Limited,366.7, 20-Jun-2011
900,Revenue,CCHD,Home Care Purch South,Other Small Contracts,Greenbanks Homecare (Western) Limited,4388.82, 06-Jun-2011
901,Revenue,CCHD,Home Care Purch North,Other Small Contracts,Greenbanks Homecare (Western) Limited,660.06, 06-Jun-2011
902,Revenue,CCHD,Day Care - South,Private & Voluntary Day Care,Greenbanks Homecare (Western) Limited,193, 06-Jun-2011
903,Revenue,CCHD,Day Care - North,Private & Voluntary Day Care,Greenbanks Homecare (Western) Limited,46.32, 06-Jun-2011
904,Revenue,CCHD,Carer`s Grant - South,Carers Breaks & Services,Greenbanks Homecare (Western) Limited,108.08, 06-Jun-2011
905,Revenue,CCHD,Under 65s -MH  Home Care Purch,Other Small Contracts,Greenbanks Homecare (Western) Limited,146.68, 06-Jun-2011
906,Revenue,CCHD,Elderly MH Home Care,Other Small Contracts,Greenbanks Homecare (Western) Limited,467.06, 06-Jun-2011
907,Revenue,CCHD,Home Care Purch South,Other Small Contracts,Greenbanks Homecare (Western) Limited,4504.62, 06-Jun-2011
908,Revenue,CCHD,Home Care Purch North,Other Small Contracts,Greenbanks Homecare (Western) Limited,806.74, 06-Jun-2011
909,Revenue,CCHD,Day Care - South,Private & Voluntary Day Care,Greenbanks Homecare (Western) Limited,158.26, 06-Jun-2011
910,Revenue,CCHD,Day Care - North,Private & Voluntary Day Care,Greenbanks Homecare (Western) Limited,81.06, 06-Jun-2011
911,Revenue,CCHD,Carer`s Grant - South,Carers Breaks & Services,Greenbanks Homecare (Western) Limited,61.76, 06-Jun-2011
912,Revenue,CCHD,Under 65s -MH  Home Care Purch,Other Small Contracts,Greenbanks Homecare (Western) Limited,150.54, 06-Jun-2011
913,Revenue,CCHD,Elderly MH Home Care,Other Small Contracts,Greenbanks Homecare (Western) Limited,362.84, 06-Jun-2011
914,Revenue,CCHD,Home Care Purch South,Other Small Contracts,Greenbanks Homecare (Western) Limited,4230.56, 20-Jun-2011
915,Revenue,CCHD,Home Care Purch North,Other Small Contracts,Greenbanks Homecare (Western) Limited,123.52, 20-Jun-2011
916,Revenue,CCHD,Day Care - South,Private & Voluntary Day Care,Greenbanks Homecare (Western) Limited,138.96, 20-Jun-2011
917,Revenue,CCHD,Day Care - North,Private & Voluntary Day Care,Greenbanks Homecare (Western) Limited,54.04, 20-Jun-2011
918,Revenue,CCHD,Carer`s Grant - South,Carers Breaks & Services,Greenbanks Homecare (Western) Limited,111.94, 20-Jun-2011
919,Revenue,CCHD,Elderly MH Home Care,Other Small Contracts,Greenbanks Homecare (Western) Limited,428.46, 20-Jun-2011
920,Revenue,CCHD,Elderly Purchasing - North,Residential Homes,Greensleeves,2567.37, 14-Jun-2011
921,Revenue,CCHD,Elderly Purchasing - South,Residential Homes,Gwendoline House,3886.41, 14-Jun-2011
922,Revenue,CCHD,Elderly Purchasing - South,Residential Homes,Gwendoline House,754.99, 14-Jun-2011
923,Revenue,CCHD,Elderly Purchasing - South,Residential Homes,Gwendoline House,1146.28, 14-Jun-2011
924,Revenue,CCHD,Elderly Purchasing - South,Residential Homes,Gwendoline House,1202.32, 14-Jun-2011
925,Revenue,CCHD,Elderly Mental Health,Residential Homes,Gwendoline House,1219.6, 14-Jun-2011
926,Revenue,CCHD,Elderly Purchasing - South,Residential Homes,Gwendoline House,807.97, 14-Jun-2011
927,Revenue,CCHD,Elderly Purchasing - South,Residential Homes,Gwendoline House,1111.56, 14-Jun-2011
928,Revenue,CCHD,Elderly Purchasing - South,Residential Homes,Gwendoline House,987.72, 14-Jun-2011
929,Revenue,CCHD,Elderly Purchasing - South,Residential Homes,Harefield Hall,1471.92, 14-Jun-2011
930,Revenue,CCHD,Elderly Purchasing - South,Residential Homes,Harefield Hall,1256.88, 14-Jun-2011
931,Revenue,CCHD,Elderly Mental Health,Residential Homes,Harefield Hall,1109.4, 14-Jun-2011
932,Revenue,CCHD,Southmead Hospital Team,Agency Staff (Operational)/PCT Pay,Hays Specialist Recruitment,1122.23, 07-Jun-2011
933,Revenue,CCHD,Southmead Hospital Team,Agency Staff (Operational)/PCT Pay,Hays Specialist Recruitment,1122.23, 06-Jun-2011
934,Revenue,CCHD,Housing Needs,Agency Staff (Admin/Support Staff) Pay,Hays Specialist Recruitment,431.07, 09-Jun-2011
935,Revenue,CCHD,Southmead Hospital Team,Agency Staff (Operational)/PCT Pay,Hays Specialist Recruitment,1076.72, 06-Jun-2011
936,Revenue,CCHD,Southmead Hospital Team,Agency Staff (Operational)/PCT Pay,Hays Specialist Recruitment,909.92, 06-Jun-2011
937,Revenue,CCHD,Southmead Hospital Team,Agency Staff (Operational)/PCT Pay,Hays Specialist Recruitment,1122.23, 06-Jun-2011
938,Revenue,CCHD,Southmead Hospital Team,Agency Staff (Operational)/PCT Pay,Hays Specialist Recruitment,894.74, 09-Jun-2011
939,Revenue,CCHD,Southmead Hospital Team,Agency Staff (Operational)/PCT Pay,Hays Specialist Recruitment,1122.22, 08-Jun-2011
940,Revenue,CCHD,Southmead Hospital Team,Agency Staff (Operational)/PCT Pay,Hays Specialist Recruitment,1122.23, 08-Jun-2011
941,Revenue,CCHD,Under 65s PWLD - KH,Residential Homes,Heath Farm,12745.2, 14-Jun-2011
942,Revenue,CCHD,Elderly Mental Health,Residential Homes,Heather House,1229, 14-Jun-2011
943,Revenue,CCHD,Elderly Mental Health,Residential Homes,Heathwood Rest Home,1510.15, 14-Jun-2011
944,Revenue,CCHD,Community Support ACM - North,Preventative Assistance,Helen & Douglas House,1500, 10-Jun-2011
945,Revenue,CCHD,Supported Living - KH,Private & Voluntary Home Care,HFT,3660.6, 23-Jun-2011
946,Revenue,CCHD,Under 65s PWLD - KD,Nursing Homes,Holmleigh Care Homes Ltd,3908.68, 14-Jun-2011
947,Revenue,CCHD,Under 65s PWLD - KD,Residential Homes,Holmleigh Care Homes Ltd,65912.96, 14-Jun-2011
948,Revenue,CCHD,Under 65s PWLD - KH,Residential Homes,Holmleigh Care Homes Ltd,4909.68, 14-Jun-2011
949,Revenue,CCHD,Frenchay Hospital Purchasing,Nursing Homes,Holmwood House,1296.4, 14-Jun-2011
950,Revenue,CCHD,Under 65s PWLD - KD,Residential Homes,Home Farm,7115.92, 14-Jun-2011
951,Revenue,CCHD,Under 65s PWLD - KD,Residential Homes,Home Farm Trust Ltd  5-6 Brook Office Pa,2749.36, 14-Jun-2011
952,Revenue,CCHD,Under 65s PWLD - KD,Residential Homes,Home Farm Trust Ltd  5-6 Brook Office Pa,2209.88, 14-Jun-2011
953,Revenue,CCHD,Under 65s PWLD - PS,Residential Homes,Home Farm Trust Ltd  5-6 Brook Office Pa,2380.6, 14-Jun-2011
954,Revenue,CCHD,Under 65s PWLD - PS,Residential Homes,Home Farm Trust Ltd  5-6 Brook Office Pa,3063.38, 14-Jun-2011
955,Revenue,CCHD,Under 65s PWLD - KD,Residential Homes,Home Farm Trust Ltd  5-6 Brook Office Pa,3319.88, 14-Jun-2011
956,Revenue,CCHD,Under 65s PWLD - PS,Residential Homes,Home Farm Trust Ltd  5-6 Brook Office Pa,4428.64, 14-Jun-2011
957,Revenue,CCHD,Elderly Purchasing - North,Nursing Homes,Horfield Care Limited,4222.42, 09-Jun-2011
958,Revenue,CCHD,Frenchay Hospital Purchasing,Nursing Homes,Horfield Care Limited,6425.25, 09-Jun-2011
959,Revenue,CCHD,Southmead Hospital Purchasing,Nursing Homes,Horfield Care Limited,1008.12, 09-Jun-2011
960,Revenue,CCHD,Purchasing Phys Dis - North,Nursing Homes,Horfield Care Limited,2228.57, 09-Jun-2011
961,Revenue,CCHD,S28A - Over 65,Nursing Homes,Horfield Care Limited,2657.15, 09-Jun-2011
962,Revenue,CCHD,Home Care Purch North,Private & Voluntary Home Care,Housing 21,35220.9, 10-Jun-2011
963,Revenue,CCHD,Home Care Purch South,Private & Voluntary Home Care,Housing 21,22092.54, 01-Jun-2011
964,Revenue,CCHD,Information Systems - Software,Software Support & Maintenance,IBM United Kingdom,1230, 22-Jun-2011
965,Revenue,CCHD,Elderly Purchasing - South,Residential Homes,Jah-Jireh Charity Homes,2482, 14-Jun-2011
966,Revenue,CCHD,Training - Adult Services,Training Expenses,Jo Williams,1020, 28-Jun-2011
967,Revenue,CCHD,Training - Adult Services,Training Expenses,Jo Williams,700, 28-Jun-2011
968,Revenue,CCHD,Under 65s PWLD - PS,Residential Homes,Keepers Cottage,3924.11, 14-Jun-2011
969,Revenue,CCHD,Under 65s PWLD - KD,Residential Homes,Kelly House,3482.2, 14-Jun-2011
970,Revenue,CCHD,S28A - Under 65,Residential Homes,Kelly House,3366.04, 14-Jun-2011
971,Revenue,CCHD,Elderly Mental Health,Residential Homes,Kenver House Residential Home,1496.44, 14-Jun-2011
972,Revenue,CCHD,Section 117 Placements,Residential Homes,Kenver House Residential Home,1848, 14-Jun-2011
973,Revenue,CCHD,Frenchay Hospital Purchasing,Residential Homes,Kenver House Residential Home,1389, 14-Jun-2011
974,Revenue,CCHD,Frenchay Hospital Purchasing,Residential Homes,Kenver House Residential Home,1595.28, 14-Jun-2011
975,Revenue,CCHD,Frenchay Hospital Purchasing,Residential Homes,Kenver House Residential Home,1046.32, 14-Jun-2011
976,Revenue,CCHD,Elderly Mental Health,Residential Homes,Kenver House Residential Home,1341.44, 14-Jun-2011
977,Revenue,CCHD,Elderly Mental Health,Residential Homes,Kenver House Residential Home,1178.52, 14-Jun-2011
978,Revenue,CCHD,Elderly Mental Health,Residential Homes,Kenver House Residential Home,1074.99, 14-Jun-2011
979,Revenue,CCHD,Frenchay Hospital Purchasing,Residential Homes,Kenver House Residential Home,1399.56, 14-Jun-2011
980,Revenue,CCHD,Elderly Purchasing - South,Residential Homes,Kenver House Residential Home,1228.24, 14-Jun-2011
981,Revenue,CCHD,Elderly Mental Health,Residential Homes,Kenver House Residential Home,1174.16, 14-Jun-2011
982,Revenue,CCHD,Elderly Mental Health,Residential Homes,Kenver House Residential Home,1387.64, 14-Jun-2011
983,Revenue,CCHD,Elderly Purchasing - South,Residential Homes,Kenver House Residential Home,1382.24, 14-Jun-2011
984,Revenue,CCHD,Frenchay Hospital Purchasing,Residential Homes,Kenver House Residential Home,1550.32, 14-Jun-2011
985,Revenue,CCHD,Elderly Mental Health,Residential Homes,Kenver House Residential Home,1093.04, 14-Jun-2011
986,Revenue,CCHD,Elderly Mental Health,Residential Homes,Kenver House Residential Home,1229.1, 14-Jun-2011
987,Revenue,CCHD,Elderly Purchasing - South,Residential Homes,Kenver House Residential Home,1315.04, 14-Jun-2011
988,Revenue,CCHD,Elderly Purchasing - South,Residential Homes,Kenver House Residential Home,1565.12, 14-Jun-2011
989,Revenue,CCHD,Elderly Mental Health,Residential Homes,Kenver House Residential Home,1284.48, 14-Jun-2011
990,Revenue,CCHD,Frenchay Hospital Purchasing,Residential Homes,Kingswood Lodge Care Centre,1135.84, 14-Jun-2011
991,Revenue,CCHD,Elderly Purchasing - North,Residential Homes,Kingswood Lodge Care Centre,1189.24, 14-Jun-2011
992,Revenue,CCHD,Supporting People Programme,Grants to Voluntary Bodies,Kingswood Young Homeless Project,2502.72, 22-Jun-2011
993,Revenue,CCHD,Supporting People Programme,Grants to Voluntary Bodies,Kingswood Young Homeless Project,5133.12, 22-Jun-2011
994,Revenue,CCHD,Supporting People Programme,Grants to Voluntary Bodies,Knightstone Housing Association Limited,516.64, 20-Jun-2011
995,Revenue,CCHD,Supporting People Programme,Grants to Voluntary Bodies,Knightstone Housing Association Limited,1387.68, 20-Jun-2011
996,Revenue,CCHD,Supporting People Programme,Grants to Voluntary Bodies,Knightstone Housing Association Limited,1968, 20-Jun-2011
997,Revenue,CCHD,Supporting People Programme,Grants to Voluntary Bodies,Knightstone Housing Association Limited,2193.84, 20-Jun-2011
998,Revenue,CCHD,Supporting People Programme,Grants to Voluntary Bodies,Knightstone Housing Association Limited,2194.4, 20-Jun-2011
999,Revenue,CCHD,Supporting People Programme,Grants to Voluntary Bodies,Knightstone Housing Association Limited,6717.92, 20-Jun-2011
1000,Revenue,CCHD,Supporting People Programme,Grants to Voluntary Bodies,Knightstone Housing Association Limited,19485.84, 20-Jun-2011
1001,Revenue,CCHD,Contracts & Commissioning Team,Other Small Contracts,Kumari Care Limited,7500, 03-Jun-2011
1002,Revenue,CCHD,Contracts & Commissioning Team,Other Small Contracts,Kumari Care Limited,7500, 10-Jun-2011
1003,Revenue,CCHD,Contracts & Commissioning Team,Other Small Contracts,Kumari Care Limited,7500, 17-Jun-2011
1004,Revenue,CCHD,Contracts & Commissioning Team,Other Small Contracts,Kumari Care Limited,7500, 24-Jun-2011
1005,Revenue,CCHD,Home Care Purch North,Other Small Contracts,Kumari Care Limited,890.85, 01-Jun-2011
1006,Revenue,CCHD,Home Care Purch North,Other Small Contracts,Kumari Care Limited,890.85, 01-Jun-2011
1007,Revenue,CCHD,Home Care Purch North,Other Small Contracts,Kumari Care Limited,890.85, 09-Jun-2011
1008,Revenue,CCHD,Home Care Purch North,Other Small Contracts,Kumari Care Limited,809.87, 09-Jun-2011
1009,Revenue,CCHD,Home Care Purch North,Other Small Contracts,Kumari Care Limited,809.87, 09-Jun-2011
1010,Revenue,CCHD,Home Care Purch North,Other Small Contracts,Kumari Care Limited,809.87, 30-Jun-2011
1011,Revenue,CCHD,Home Care Purch North,Other Small Contracts,Kumari Care Limited,890.85, 30-Jun-2011
1012,Revenue,CCHD,Purchasing Phys Dis - North,Nursing Homes,Leonard Cheshire  National Account Centr,2588.28, 14-Jun-2011
1013,Revenue,CCHD,Purchasing Phys Dis - North,Residential Homes,Leonard Cheshire  National Account Centr,2303.36, 14-Jun-2011
1014,Revenue,CCHD,Under 65s PWLD - KH,Residential Homes,Leonard Cheshire  National Account Centr,2894.92, 14-Jun-2011
1015,Revenue,CCHD,Purchasing Phys Dis - North,Nursing Homes,Leonard Cheshire  National Account Centr,2693.2, 14-Jun-2011
1016,Revenue,CCHD,Under 65s PWLD - KD,Residential Homes,Leonard Cheshire  National Account Centr,5732.24, 14-Jun-2011
1017,Revenue,CCHD,Under 65s PWLD - KD,Residential Homes,Leonard Cheshire  National Account Centr,5730.72, 14-Jun-2011
1018,Revenue,CCHD,Elderly Purchasing - South,Residential Homes,Leonard Cheshire  National Account Centr,4353.96, 14-Jun-2011
1019,Revenue,CCHD,Purchasing Phys Dis - North,Nursing Homes,Leonard Cheshire  National Account Centr,2777.24, 14-Jun-2011
1020,Revenue,CCHD,Purchasing Phys Dis - North,Nursing Homes,Leonard Cheshire  National Account Centr,3143.8, 14-Jun-2011
1021,Revenue,CCHD,Purchasing Phys Dis - North,Residential Homes,Leonard Cheshire  National Account Centr,2837.08, 14-Jun-2011
1022,Revenue,CCHD,Purchasing Phys Dis - South,Nursing Homes,Leonard Cheshire  National Account Centr,6280.8, 14-Jun-2011
1023,Revenue,CCHD,Purchasing Phys Dis - South,Nursing Homes,Leonard Cheshire  National Account Centr,5956.56, 14-Jun-2011
1024,Revenue,CCHD,Purchasing Phys Dis - North,Nursing Homes,Leonard Cheshire  National Account Centr,5378.48, 14-Jun-2011
1025,Revenue,CCHD,Purchasing Phys Dis - North,Nursing Homes,Leonard Cheshire  National Account Centr,3235.6, 14-Jun-2011
1026,Revenue,CCHD,Frenchay Hospital Purchasing,Residential Homes,Leonard Cheshire  National Account Centr,3687.8, 14-Jun-2011
1027,Revenue,CCHD,Elderly Purchasing - North,Nursing Homes,Leonard Cheshire  National Account Centr,4408.84, 14-Jun-2011
1028,Revenue,CCHD,S28A - Over 65,Residential Homes,Leonard Cheshire  National Account Centr,2841.44, 14-Jun-2011
1029,Revenue,CCHD,Tenancy Start Up Scheme,Other Supplies & Services,Lifestyle Lettings (Deposit),1050, 20-Jun-2011
1030,Revenue,CCHD,Supported Living - KH,Private & Voluntary Home Care,Lifeways Community Care (Gloucester) Ltd,11373, 09-Jun-2011
1031,Revenue,CCHD,Supported Living - KH,Private & Voluntary Home Care,Lifeways Community Care (Gloucester) Ltd,8792, 09-Jun-2011
1032,Revenue,CCHD,Supported Living - KH,Private & Voluntary Home Care,Lifeways Community Care (Gloucester) Ltd,8792, 14-Jun-2011
1033,Revenue,CCHD,Under 65s PWLD - KD,Residential Homes,Littlecroft Residential Homes  Longcroft,6427.88, 14-Jun-2011
1034,Revenue,CCHD,Supported Living - KH,Private & Voluntary Day Care,Lloyds TSB Commercial Finance Limited,5152.99, 16-Jun-2011
1035,Revenue,CCHD,Supported Living - KH,Private & Voluntary Home Care,Lloyds TSB Commercial Finance Limited,5419.78, 14-Jun-2011
1036,Revenue,CCHD,Supported Living - KH,Private & Voluntary Home Care,Lloyds TSB Commercial Finance Limited,5542.39, 14-Jun-2011
1037,Revenue,CCHD,Supported Living - KH,Private & Voluntary Home Care,Lloyds TSB Commercial Finance Limited,5507.93, 22-Jun-2011
1038,Revenue,CCHD,Supported Living - PS,Private & Voluntary Home Care,Lloyds TSB Commercial Finance Limited,3869.54, 16-Jun-2011
1039,Revenue,CCHD,Supported Living - KD,Private & Voluntary Home Care,Lloyds TSB Commercial Finance Limited,3819.77, 08-Jun-2011
1040,Revenue,CCHD,Supported Living - PS,Private & Voluntary Home Care,Lloyds TSB Commercial Finance Limited,6062.1, 15-Jun-2011
1041,Revenue,CCHD,Supported Living - PS,Private & Voluntary Home Care,Lloyds TSB Commercial Finance Limited,5969.07, 08-Jun-2011
1042,Revenue,CCHD,Supported Living - KD,Private & Voluntary Home Care,Lloyds TSB Commercial Finance Limited,3728.97, 08-Jun-2011
1043,Revenue,CCHD,Supported Living - PS,Private & Voluntary Home Care,Lloyds TSB Commercial Finance Limited,3912.51, 07-Jun-2011
1044,Revenue,CCHD,Supported Living - PS,Private & Voluntary Home Care,Lloyds TSB Commercial Finance Limited,4052.28, 16-Jun-2011
1045,Revenue,CCHD,Supported Living - PS,Private & Voluntary Home Care,Lloyds TSB Commercial Finance Limited,3670.87, 15-Jun-2011
1046,Revenue,CCHD,Supported Living - PS,Private & Voluntary Home Care,Lloyds TSB Commercial Finance Limited,3608.55, 15-Jun-2011
1047,Revenue,CCHD,Supported Living - KD,Private & Voluntary Home Care,Lloyds TSB Commercial Finance Limited,3358.94, 08-Jun-2011
1048,Revenue,CCHD,Home Care Purch North,Other Small Contracts,Lloyds TSB Commercial Finance Limited,4894.02, 09-Jun-2011
1049,Revenue,CCHD,Day Care - North,Private & Voluntary Day Care,Lloyds TSB Commercial Finance Limited,379.17, 09-Jun-2011
1050,Revenue,CCHD,Elderly MH Home Care,Other Small Contracts,Lloyds TSB Commercial Finance Limited,22.98, 09-Jun-2011
1051,Revenue,CCHD,Elderly MH non-res purchasing,Private & Voluntary Day Care,Lloyds TSB Commercial Finance Limited,49.79, 09-Jun-2011
1052,Revenue,CCHD,Supported Living - KH,Private & Voluntary Home Care,Lloyds TSB Commercial Finance Limited,573.05, 14-Jun-2011
1053,Revenue,CCHD,Supported Living - KH,Private & Voluntary Home Care,Lloyds TSB Commercial Finance Limited,580.9, 14-Jun-2011
1054,Revenue,CCHD,Supported Living - PS,Private & Voluntary Home Care,Lloyds TSB Commercial Finance Limited,755.75, 16-Jun-2011
1055,Revenue,CCHD,Home Care Purch North,Other Small Contracts,Lloyds TSB Commercial Finance Limited,4807.43, 09-Jun-2011
1056,Revenue,CCHD,Day Care - North,Private & Voluntary Day Care,Lloyds TSB Commercial Finance Limited,459.6, 09-Jun-2011
1057,Revenue,CCHD,Elderly MH Home Care,Other Small Contracts,Lloyds TSB Commercial Finance Limited,111.07, 09-Jun-2011
1058,Revenue,CCHD,Elderly MH non-res purchasing,Private & Voluntary Day Care,Lloyds TSB Commercial Finance Limited,76.6, 09-Jun-2011
1059,Revenue,CCHD,Home Care Purch North,Other Small Contracts,Lloyds TSB Commercial Finance Limited,4735.29, 09-Jun-2011
1060,Revenue,CCHD,Day Care - North,Private & Voluntary Day Care,Lloyds TSB Commercial Finance Limited,432.79, 09-Jun-2011
1061,Revenue,CCHD,Elderly MH Home Care,Other Small Contracts,Lloyds TSB Commercial Finance Limited,57.45, 09-Jun-2011
1062,Revenue,CCHD,Elderly MH non-res purchasing,Private & Voluntary Day Care,Lloyds TSB Commercial Finance Limited,122.56, 09-Jun-2011
1063,Revenue,CCHD,Home Care Purch South,Other Small Contracts,Lloyds TSB Commercial Finance Limited,34.47, 09-Jun-2011
1064,Revenue,CCHD,Home Care Purch North,Other Small Contracts,Lloyds TSB Commercial Finance Limited,4354.35, 09-Jun-2011
1065,Revenue,CCHD,Day Care - North,Private & Voluntary Day Care,Lloyds TSB Commercial Finance Limited,425.13, 09-Jun-2011
1066,Revenue,CCHD,Elderly MH Home Care,Other Small Contracts,Lloyds TSB Commercial Finance Limited,130.22, 09-Jun-2011
1067,Revenue,CCHD,Elderly MH non-res purchasing,Private & Voluntary Day Care,Lloyds TSB Commercial Finance Limited,80.43, 09-Jun-2011
1068,Revenue,CCHD,Home Care Purch North,Other Small Contracts,Lloyds TSB Commercial Finance Limited,4186.46, 13-Jun-2011
1069,Revenue,CCHD,Day Care - North,Private & Voluntary Day Care,Lloyds TSB Commercial Finance Limited,344.7, 13-Jun-2011
1070,Revenue,CCHD,Elderly MH Home Care,Other Small Contracts,Lloyds TSB Commercial Finance Limited,153.2, 13-Jun-2011
1071,Revenue,CCHD,Elderly MH non-res purchasing,Private & Voluntary Day Care,Lloyds TSB Commercial Finance Limited,122.56, 13-Jun-2011
1072,Revenue,CCHD,Home Care Purch North,Other Small Contracts,Lloyds TSB Commercial Finance Limited,4133.7, 09-Jun-2011
1073,Revenue,CCHD,Day Care - North,Private & Voluntary Day Care,Lloyds TSB Commercial Finance Limited,352.36, 09-Jun-2011
1074,Revenue,CCHD,Elderly MH Home Care,Other Small Contracts,Lloyds TSB Commercial Finance Limited,149.37, 09-Jun-2011
1075,Revenue,CCHD,Elderly MH non-res purchasing,Private & Voluntary Day Care,Lloyds TSB Commercial Finance Limited,91.92, 09-Jun-2011
1076,Revenue,CCHD,Home Care Purch North,Other Small Contracts,Lloyds TSB Commercial Finance Limited,4770.83, 09-Jun-2011
1077,Revenue,CCHD,Day Care - North,Private & Voluntary Day Care,Lloyds TSB Commercial Finance Limited,448.11, 09-Jun-2011
1078,Revenue,CCHD,Elderly MH Home Care,Other Small Contracts,Lloyds TSB Commercial Finance Limited,68.94, 09-Jun-2011
1079,Revenue,CCHD,Elderly MH non-res purchasing,Private & Voluntary Day Care,Lloyds TSB Commercial Finance Limited,111.07, 09-Jun-2011
1080,Revenue,CCHD,Under 65s PWLD - KH,Residential Homes,Lufton Manor College,2466.51, 14-Jun-2011
1081,Revenue,CCHD,Southmead Hospital Purchasing,Nursing Homes,Majestic 3 Limited,959.37, 14-Jun-2011
1082,Revenue,CCHD,Elderly Purchasing - North,Residential Homes,Manton Hall Residential Home,7342.86, 14-Jun-2011
1083,Revenue,CCHD,Supporting People Programme,Grants to Voluntary Bodies,Maples Community Housing Limited,2401.2, 22-Jun-2011
1084,Revenue,CCHD,Elderly Mental Health,Nursing Homes,Meadow Care Home,1452.96, 14-Jun-2011
1085,Revenue,CCHD,Home Care Purch South,Other Small Contracts,Mears Care,1367.7, 06-Jun-2011
1086,Revenue,CCHD,Home Care Purch North,Other Small Contracts,Mears Care,9597.4, 06-Jun-2011
1087,Revenue,CCHD,Day Care - South,Private & Voluntary Day Care,Mears Care,230.3, 06-Jun-2011
1088,Revenue,CCHD,Day Care - North,Private & Voluntary Day Care,Mears Care,441.8, 06-Jun-2011
1089,Revenue,CCHD,Carer`s Grant - North,Carers Breaks & Services,Mears Care,37.6, 06-Jun-2011
1090,Revenue,CCHD,Under 65s -MH  Home Care Purch,Other Small Contracts,Mears Care,141, 06-Jun-2011
1091,Revenue,CCHD,Elderly MH Home Care,Other Small Contracts,Mears Care,864.8, 06-Jun-2011
1092,Revenue,CCHD,Elderly MH non-res purchasing,Private & Voluntary Day Care,Mears Care,112.8, 06-Jun-2011
1093,Revenue,CCHD,Home Care - Elderly LD - KH,Private & Voluntary Home Care,Mears Care,65.8, 06-Jun-2011
1094,Revenue,CCHD,Home Care Purch South,Other Small Contracts,Mears Care,1334.8, 06-Jun-2011
1095,Revenue,CCHD,Home Care Purch North,Other Small Contracts,Mears Care,9653.8, 06-Jun-2011
1096,Revenue,CCHD,Day Care - South,Private & Voluntary Day Care,Mears Care,230.3, 06-Jun-2011
1097,Revenue,CCHD,Day Care - North,Private & Voluntary Day Care,Mears Care,437.1, 06-Jun-2011
1098,Revenue,CCHD,Carer`s Grant - North,Carers Breaks & Services,Mears Care,37.6, 06-Jun-2011
1099,Revenue,CCHD,Under 65s -MH  Home Care Purch,Other Small Contracts,Mears Care,141, 06-Jun-2011
1100,Revenue,CCHD,Elderly MH Home Care,Other Small Contracts,Mears Care,883.6, 06-Jun-2011
1101,Revenue,CCHD,Elderly MH non-res purchasing,Private & Voluntary Day Care,Mears Care,112.8, 06-Jun-2011
1102,Revenue,CCHD,Home Care - Elderly LD - KH,Private & Voluntary Home Care,Mears Care,65.8, 06-Jun-2011
1103,Revenue,CCHD,Home Care Purch South,Other Small Contracts,Mears Care,1358.3, 23-Jun-2011
1104,Revenue,CCHD,Home Care Purch North,Other Small Contracts,Mears Care,9578.6, 23-Jun-2011
1105,Revenue,CCHD,Day Care - South,Private & Voluntary Day Care,Mears Care,230.3, 23-Jun-2011
1106,Revenue,CCHD,Day Care - North,Private & Voluntary Day Care,Mears Care,423, 23-Jun-2011
1107,Revenue,CCHD,Carer`s Grant - North,Carers Breaks & Services,Mears Care,37.6, 23-Jun-2011
1108,Revenue,CCHD,Under 65s -MH  Home Care Purch,Other Small Contracts,Mears Care,141, 23-Jun-2011
1109,Revenue,CCHD,Elderly MH Home Care,Other Small Contracts,Mears Care,935.3, 23-Jun-2011
1110,Revenue,CCHD,Elderly MH non-res purchasing,Private & Voluntary Day Care,Mears Care,112.8, 23-Jun-2011
1111,Revenue,CCHD,Home Care - Elderly LD - KH,Private & Voluntary Home Care,Mears Care,65.8, 23-Jun-2011
1112,Revenue,CCHD,Home Care Purch South,Other Small Contracts,Mears Care,1231.4, 23-Jun-2011
1113,Revenue,CCHD,Home Care Purch North,Other Small Contracts,Mears Care,9409.4, 23-Jun-2011
1114,Revenue,CCHD,Day Care - South,Private & Voluntary Day Care,Mears Care,225.6, 23-Jun-2011
1115,Revenue,CCHD,Day Care - North,Private & Voluntary Day Care,Mears Care,488.8, 23-Jun-2011
1116,Revenue,CCHD,Carer`s Grant - North,Carers Breaks & Services,Mears Care,37.6, 23-Jun-2011
1117,Revenue,CCHD,Under 65s -MH  Home Care Purch,Other Small Contracts,Mears Care,141, 23-Jun-2011
1118,Revenue,CCHD,Elderly MH Home Care,Other Small Contracts,Mears Care,855.4, 23-Jun-2011
1119,Revenue,CCHD,Elderly MH non-res purchasing,Private & Voluntary Day Care,Mears Care,94, 23-Jun-2011
1120,Revenue,CCHD,Home Care - Elderly LD - KH,Private & Voluntary Home Care,Mears Care,65.8, 23-Jun-2011
1121,Revenue,CCHD,Home Care Purch South,Other Small Contracts,Mears Care,1433.5, 30-Jun-2011
1122,Revenue,CCHD,Home Care Purch North,Other Small Contracts,Mears Care,9155.6, 30-Jun-2011
1123,Revenue,CCHD,Day Care - South,Private & Voluntary Day Care,Mears Care,230.3, 30-Jun-2011
1124,Revenue,CCHD,Day Care - North,Private & Voluntary Day Care,Mears Care,479.4, 30-Jun-2011
1125,Revenue,CCHD,Carer`s Grant - North,Carers Breaks & Services,Mears Care,37.6, 30-Jun-2011
1126,Revenue,CCHD,Under 65s -MH  Home Care Purch,Other Small Contracts,Mears Care,141, 30-Jun-2011
1127,Revenue,CCHD,Elderly MH Home Care,Other Small Contracts,Mears Care,860.1, 30-Jun-2011
1128,Revenue,CCHD,Elderly MH non-res purchasing,Private & Voluntary Day Care,Mears Care,112.8, 30-Jun-2011
1129,Revenue,CCHD,Home Care - Elderly LD - KH,Private & Voluntary Home Care,Mears Care,65.8, 30-Jun-2011
1130,Revenue,CCHD,Home Care Purch South,Other Small Contracts,Medacs Home Care,369.36, 06-Jun-2011
1131,Revenue,CCHD,Home Care Purch North,Other Small Contracts,Medacs Home Care,1054, 06-Jun-2011
1132,Revenue,CCHD,Day Care - North,Private & Voluntary Day Care,Medacs Home Care,54.4, 06-Jun-2011
1133,Revenue,CCHD,Elderly MH Home Care,Other Small Contracts,Medacs Home Care,214.2, 06-Jun-2011
1134,Revenue,CCHD,Elderly MH non-res purchasing,Private & Voluntary Day Care,Medacs Home Care,105.4, 06-Jun-2011
1135,Revenue,CCHD,Home Care Purch South,Other Small Contracts,Medacs Home Care,364.88, 20-Jun-2011
1136,Revenue,CCHD,Home Care Purch North,Other Small Contracts,Medacs Home Care,1125.4, 20-Jun-2011
1137,Revenue,CCHD,Day Care - North,Private & Voluntary Day Care,Medacs Home Care,54.4, 20-Jun-2011
1138,Revenue,CCHD,Elderly MH Home Care,Other Small Contracts,Medacs Home Care,265.2, 20-Jun-2011
1139,Revenue,CCHD,Elderly MH non-res purchasing,Private & Voluntary Day Care,Medacs Home Care,78.2, 20-Jun-2011
1140,Revenue,CCHD,Home Care Purch South,Other Small Contracts,Medacs Home Care,329.8, 07-Jun-2011
1141,Revenue,CCHD,Home Care Purch North,Other Small Contracts,Medacs Home Care,1043.8, 07-Jun-2011
1142,Revenue,CCHD,Day Care - North,Private & Voluntary Day Care,Medacs Home Care,98.6, 07-Jun-2011
1143,Revenue,CCHD,Elderly MH Home Care,Other Small Contracts,Medacs Home Care,241.4, 07-Jun-2011
1144,Revenue,CCHD,Elderly MH non-res purchasing,Private & Voluntary Day Care,Medacs Home Care,64.6, 07-Jun-2011
1145,Revenue,CCHD,Home Care Purch South,Other Small Contracts,Medacs Home Care,346.8, 06-Jun-2011
1146,Revenue,CCHD,Home Care Purch North,Other Small Contracts,Medacs Home Care,1139, 06-Jun-2011
1147,Revenue,CCHD,Day Care - North,Private & Voluntary Day Care,Medacs Home Care,27.2, 06-Jun-2011
1148,Revenue,CCHD,Elderly MH Home Care,Other Small Contracts,Medacs Home Care,187, 06-Jun-2011
1149,Revenue,CCHD,Elderly MH non-res purchasing,Private & Voluntary Day Care,Medacs Home Care,74.8, 06-Jun-2011
1150,Revenue,CCHD,Home Care Purch South,Other Small Contracts,Medacs Home Care,350.2, 06-Jun-2011
1151,Revenue,CCHD,Home Care Purch North,Other Small Contracts,Medacs Home Care,1108.4, 06-Jun-2011
1152,Revenue,CCHD,Day Care - North,Private & Voluntary Day Care,Medacs Home Care,27.2, 06-Jun-2011
1153,Revenue,CCHD,Elderly MH Home Care,Other Small Contracts,Medacs Home Care,248.2, 06-Jun-2011
1154,Revenue,CCHD,Elderly MH non-res purchasing,Private & Voluntary Day Care,Medacs Home Care,78.2, 06-Jun-2011
1155,Revenue,CCHD,Home Care Purch South,Other Small Contracts,Medacs Home Care,340.72, 13-Jun-2011
1156,Revenue,CCHD,Home Care Purch North,Other Small Contracts,Medacs Home Care,958.8, 13-Jun-2011
1157,Revenue,CCHD,Elderly MH Home Care,Other Small Contracts,Medacs Home Care,142.8, 13-Jun-2011
1158,Revenue,CCHD,Elderly MH non-res purchasing,Private & Voluntary Day Care,Medacs Home Care,54.4, 13-Jun-2011
1159,Revenue,CCHD,Home Care Purch South,Other Small Contracts,Medacs Home Care,360.4, 06-Jun-2011
1160,Revenue,CCHD,Home Care Purch North,Other Small Contracts,Medacs Home Care,989.4, 06-Jun-2011
1161,Revenue,CCHD,Day Care - North,Private & Voluntary Day Care,Medacs Home Care,51, 06-Jun-2011
1162,Revenue,CCHD,Elderly MH Home Care,Other Small Contracts,Medacs Home Care,207.4, 06-Jun-2011
1163,Revenue,CCHD,Elderly MH non-res purchasing,Private & Voluntary Day Care,Medacs Home Care,61.2, 06-Jun-2011
1164,Revenue,CCHD,Home Care Purch South,Other Small Contracts,Medacs Home Care,363.8, 20-Jun-2011
1165,Revenue,CCHD,Home Care Purch North,Other Small Contracts,Medacs Home Care,1224, 20-Jun-2011
1166,Revenue,CCHD,Day Care - North,Private & Voluntary Day Care,Medacs Home Care,54.4, 20-Jun-2011
1167,Revenue,CCHD,Elderly MH Home Care,Other Small Contracts,Medacs Home Care,258.4, 20-Jun-2011
1168,Revenue,CCHD,Elderly MH non-res purchasing,Private & Voluntary Day Care,Medacs Home Care,68, 20-Jun-2011
1169,Revenue,CCHD,NRS Contract,Daily Living Equipment,Medequip Assistive Technology Ltd,31844.75, 23-Jun-2011
1170,Revenue,CCHD,NRS Contract,Daily Living Equipment,Medequip Assistive Technology Ltd,41964.55, 23-Jun-2011
1171,Revenue,CCHD,NRS Contract,Other Supplies & Services,Medequip Assistive Technology Ltd,8895.48, 23-Jun-2011
1172,Revenue,CCHD,Contracts & Commissioning Team,Other Small Contracts,Medico Nursing & Homecare Ltd,18000, 03-Jun-2011
1173,Revenue,CCHD,Contracts & Commissioning Team,Other Small Contracts,Medico Nursing & Homecare Ltd,18000, 10-Jun-2011
1174,Revenue,CCHD,Contracts & Commissioning Team,Other Small Contracts,Medico Nursing & Homecare Ltd,18000, 17-Jun-2011
1175,Revenue,CCHD,Contracts & Commissioning Team,Other Small Contracts,Medico Nursing & Homecare Ltd,18000, 24-Jun-2011
1176,Revenue,CCHD,Home Care Purch North,Other Small Contracts,Medico Nursing & Homecare Ltd,1927.73, 03-Jun-2011
1177,Revenue,CCHD,Home Care Purch North,Other Small Contracts,Medico Nursing & Homecare Ltd,1927.73, 14-Jun-2011
1178,Revenue,CCHD,Home Care Purch North,Other Small Contracts,Medico Nursing & Homecare Ltd,1927.73, 17-Jun-2011
1179,Revenue,CCHD,Home Care Purch North,Other Small Contracts,Medico Nursing & Homecare Ltd,1927.73, 24-Jun-2011
1180,Revenue,CCHD,Under 65s PWLD - KH,Residential Homes,Mencap,2173.8, 14-Jun-2011
1181,Revenue,CCHD,Supported Living (S28a),Private & Voluntary Home Care,Mencap - PSH West,3689, 07-Jun-2011
1182,Revenue,CCHD,Supported Living (S28a),Private & Voluntary Home Care,Mencap - PSH West,3689, 07-Jun-2011
1183,Revenue,CCHD,Supported Living (S28a),Private & Voluntary Home Care,Mencap - PSH West,3689, 07-Jun-2011
1184,Revenue,CCHD,Supported Living (S28a),Private & Voluntary Home Care,Mencap - PSH West,3689, 07-Jun-2011
1185,Revenue,CCHD,Supported Living (S28a),Private & Voluntary Home Care,Mencap - PSH West,3689, 07-Jun-2011
1186,Revenue,CCHD,Younger MH non-res purchasing,Private & Voluntary Day Care,Mental Health Community Support Services Ltd,1523.17, 07-Jun-2011
1187,Revenue,CCHD,Supporting People Programme,Grants to Voluntary Bodies,Merlin Housing Society,2172.8, 20-Jun-2011
1188,Revenue,CCHD,Supporting People Programme,Grants to Voluntary Bodies,Merlin Housing Society,2186.3, 20-Jun-2011
1189,Revenue,CCHD,Supporting People Programme,Grants to Voluntary Bodies,Merlin Housing Society,2416.44, 20-Jun-2011
1190,Revenue,CCHD,Supporting People Programme,Grants to Voluntary Bodies,Merlin Housing Society,3452.84, 20-Jun-2011
1191,Revenue,CCHD,Supporting People Programme,Grants to Voluntary Bodies,Merlin Housing Society,13808.8, 20-Jun-2011
1192,Revenue,CCHD,Supporting People Programme,Grants to Voluntary Bodies,Merlin Housing Society,41424.66, 20-Jun-2011
1193,Revenue,CCHD,12 Moravian Court,Rent,Merlin Housing Society,3833.28, 27-Jun-2011
1194,Revenue,CCHD,Intermediate Care Accommodation,Other Supplies & Services,Merlin Housing Society,925.72, 07-Jun-2011
1195,Revenue,CCHD,Intermediate Care Accommodation,Other Supplies & Services,Merlin Housing Society,1157.15, 21-Jun-2011
1196,Revenue,CCHD,Frenchay Hospital Purchasing,Residential Homes,Milburn Finance,1026.12, 14-Jun-2011
1197,Revenue,CCHD,Contracts & Commissioning Team,Other Small Contracts,Milestones Outreach Dementia Services,2000, 03-Jun-2011
1198,Revenue,CCHD,Contracts & Commissioning Team,Other Small Contracts,Milestones Outreach Dementia Services,2000, 10-Jun-2011
1199,Revenue,CCHD,Contracts & Commissioning Team,Other Small Contracts,Milestones Outreach Dementia Services,2000, 17-Jun-2011
1200,Revenue,CCHD,Contracts & Commissioning Team,Other Small Contracts,Milestones Outreach Dementia Services,2000, 24-Jun-2011
1201,Revenue,CCHD,Supported Living - KH,Private & Voluntary Home Care,Milestones Trust,1016.03, 06-Jun-2011
1202,Revenue,CCHD,Purchase of Non-Res Care - KD,Private & Voluntary Day Care,Milestones Trust,1826.42, 08-Jun-2011
1203,Revenue,CCHD,Supported Living - KH,Private & Voluntary Day Care,Milestones Trust,1098.92, 15-Jun-2011
1204,Revenue,CCHD,Purchase of Non-Res Care - PS,Private & Voluntary Day Care,Milestones Trust,963.08, 08-Jun-2011
1205,Revenue,CCHD,Purchase of Non-Res Care - PS,Private & Voluntary Day Care,Milestones Trust,902.42, 08-Jun-2011
1206,Revenue,CCHD,Purchase of Non-Res Care - KH,Private & Voluntary Day Care,Milestones Trust,1459.26, 14-Jun-2011
1207,Revenue,CCHD,Purchase of Non-Res Care - PS,Private & Voluntary Day Care,Milestones Trust,1794.59, 14-Jun-2011
1208,Revenue,CCHD,Purchase of Non-Res Care - PS,Private & Voluntary Day Care,Milestones Trust,1187.05, 14-Jun-2011
1209,Revenue,CCHD,Supported Living - PS,Private & Voluntary Home Care,Milestones Trust,883.26, 08-Jun-2011
1210,Revenue,CCHD,Purchase of Non-Res Care - PS,Private & Voluntary Day Care,Milestones Trust,1615.87, 08-Jun-2011
1211,Revenue,CCHD,Purchase of Non-Res Care - KH,Private & Voluntary Day Care,Milestones Trust,722.7, 14-Jun-2011
1212,Revenue,CCHD,Purchase of Non-Res Care - KH,Private & Voluntary Day Care,Milestones Trust,1371.46, 14-Jun-2011
1213,Revenue,CCHD,Purchase of Non-Res Care - PS,Private & Voluntary Day Care,Milestones Trust,1437.56, 08-Jun-2011
1214,Revenue,CCHD,Purchase of Non-Res Care - KH,Private & Voluntary Day Care,Milestones Trust,1347.87, 14-Jun-2011
1215,Revenue,CCHD,Supported Living - KD,Private & Voluntary Home Care,Milestones Trust,5784.33, 14-Jun-2011
1216,Revenue,CCHD,Purchase of Non-Res Care - PS,Private & Voluntary Day Care,Milestones Trust,753.2, 14-Jun-2011
1217,Revenue,CCHD,Purchase of Non-Res Care - KH,Private & Voluntary Day Care,Milestones Trust,1140.99, 16-Jun-2011
1218,Revenue,CCHD,Purchase of Non-Res Care - PS,Private & Voluntary Day Care,Milestones Trust,1250.71, 14-Jun-2011
1219,Revenue,CCHD,Purchase of Non-Res Care - PS,Private & Voluntary Day Care,Milestones Trust,1031.89, 14-Jun-2011
1220,Revenue,CCHD,Purchase of Non-Res Care - PS,Private & Voluntary Day Care,Milestones Trust,1272.84, 09-Jun-2011
1221,Revenue,CCHD,Purchase of Non-Res Care - KH,Private & Voluntary Day Care,Milestones Trust,569.86, 15-Jun-2011
1222,Revenue,CCHD,Purchase of Non-Res Care - PS,Private & Voluntary Day Care,Milestones Trust,1143.35, 14-Jun-2011
1223,Revenue,CCHD,Purchase of Non-Res Care - KH,Private & Voluntary Day Care,Milestones Trust,1364.95, 16-Jun-2011
1224,Revenue,CCHD,Purchase of Non-Res Care - KH,Private & Voluntary Day Care,Milestones Trust,1047.88, 16-Jun-2011
1225,Revenue,CCHD,Supported Living - PS,Private & Voluntary Home Care,Milestones Trust,511.94, 08-Jun-2011
1226,Revenue,CCHD,Supported Living - PS,Private & Voluntary Home Care,Milestones Trust,519.4, 08-Jun-2011
1227,Revenue,CCHD,Purchase of Non-Res Care - KD,Private & Voluntary Day Care,Milestones Trust,1487.97, 14-Jun-2011
1228,Revenue,CCHD,Supported Living - KH,Private & Voluntary Home Care,Milestones Trust,795.24, 16-Jun-2011
1229,Revenue,CCHD,Supported Living - PS,Private & Voluntary Home Care,Milestones Trust,903.93, 08-Jun-2011
1230,Revenue,CCHD,Supported Living - PS,Private & Voluntary Home Care,Milestones Trust,924.08, 08-Jun-2011
1231,Revenue,CCHD,Supported Living - KH,Private & Voluntary Home Care,Milestones Trust,762.1, 16-Jun-2011
1232,Revenue,CCHD,Supported Living - PS,Private & Voluntary Home Care,Milestones Trust,1178.76, 08-Jun-2011
1233,Revenue,CCHD,Supported Living - PS,Private & Voluntary Home Care,Milestones Trust,1370.15, 08-Jun-2011
1234,Revenue,CCHD,Supported Living - PS,Private & Voluntary Home Care,Milestones Trust,826.32, 08-Jun-2011
1235,Revenue,CCHD,Elderly MH non-res purchasing,Private & Voluntary Day Care,Milestones Trust,957.6, 14-Jun-2011
1236,Revenue,CCHD,Elderly MH non-res purchasing,Private & Voluntary Day Care,Milestones Trust,510.72, 14-Jun-2011
1237,Revenue,CCHD,Supported Living - KH,Private & Voluntary Home Care,Milestones Trust,3046.71, 16-Jun-2011
1238,Revenue,CCHD,Elderly MH non-res purchasing,Private & Voluntary Day Care,Milestones Trust,602.13, 16-Jun-2011
1239,Revenue,CCHD,Section 117 Placements MH Younger,Private & Voluntary Day Care,Milestones Trust,934.88, 14-Jun-2011
1240,Revenue,CCHD,Section 117 Placements,Private & Voluntary Day Care,Milestones Trust,715.98, 14-Jun-2011
1241,Revenue,CCHD,Elderly MH non-res purchasing,Private & Voluntary Day Care,Milestones Trust,531.28, 20-Jun-2011
1242,Revenue,CCHD,Elderly MH non-res purchasing,Private & Voluntary Day Care,Milestones Trust,509.68, 21-Jun-2011
1243,Revenue,CCHD,Elderly MH non-res purchasing,Private & Voluntary Day Care,Milestones Trust,581.1, 21-Jun-2011
1244,Revenue,CCHD,Supported Living - KD,Private & Voluntary Home Care,Milestones Trust,5397.98, 22-Jun-2011
1245,Revenue,CCHD,Southmead Hospital Purchasing,Nursing Homes,Mimosa Healthcare Holdings Ltd,757.63, 14-Jun-2011
1246,Revenue,CCHD,Southmead Hospital Purchasing,Residential Homes,Mostyn Lodge Residential Home,1253, 14-Jun-2011
1247,Revenue,CCHD,Section 117 Placements,Residential Homes,Mostyn Lodge Residential Home,1848, 14-Jun-2011
1248,Revenue,CCHD,Mental Illness SLA's,Grants to Voluntary Bodies,Mothers for Mothers,2100, 30-Jun-2011
1249,Revenue,CCHD,Supported Living - PS,Private & Voluntary Home Care,Moving On,6239.67, 08-Jun-2011
1250,Revenue,CCHD,Supported Living - PS,Private & Voluntary Home Care,Moving On,6440.99, 21-Jun-2011
1251,Revenue,CCHD,Under 65s PWLD - KH,Residential Homes,Mr J Davis & Mrs S Davis,1840, 21-Jun-2011
1252,Revenue,CCHD,Supported Living - KD,Private & Voluntary Home Care,Mrs B Kimber,3750.31, 14-Jun-2011
1253,Revenue,CCHD,Elderly MH non-res purchasing,Private & Voluntary Day Care,Mrs B Kimber,601.16, 07-Jun-2011
1254,Revenue,CCHD,Elderly MH non-res purchasing,Private & Voluntary Day Care,Mrs B Kimber,813.78, 07-Jun-2011
1255,Revenue,CCHD,Elderly MH non-res purchasing,Private & Voluntary Day Care,Mrs B Kimber,506.18, 07-Jun-2011
1256,Revenue,CCHD,Purchase of Non-Res Care - KD,Private & Voluntary Day Care,Mrs B Kimber,816.38, 14-Jun-2011
1257,Revenue,CCHD,Supported Living - KD,Private & Voluntary Home Care,Mrs B Kimber,1306.37, 14-Jun-2011
1258,Revenue,CCHD,Purchase of Non-Res Care - KH,Private & Voluntary Day Care,Mrs B Kimber,1472.16, 22-Jun-2011
1259,Revenue,CCHD,Elderly MH non-res purchasing,Private & Voluntary Day Care,Mrs B Kimber,772.15, 07-Jun-2011
1260,Revenue,CCHD,Day Care - South,Private & Voluntary Day Care,Mrs B Kimber,717.42, 09-Jun-2011
1261,Revenue,CCHD,Supported Living - PS,Private & Voluntary Home Care,Mrs B Kimber,1370.86, 02-Jun-2011
1262,Revenue,CCHD,Supported Living - KH,Private & Voluntary Home Care,Mrs B Kimber,1382.22, 14-Jun-2011
1263,Revenue,CCHD,Purchase of Non-Res Care - KD,Private & Voluntary Day Care,Mrs B Kimber,741.27, 14-Jun-2011
1264,Revenue,CCHD,Supported Living - KD,Private & Voluntary Home Care,Mrs B Kimber,1161.84, 14-Jun-2011
1265,Revenue,CCHD,Supported Living - KH,Private & Voluntary Home Care,Mrs B Kimber,944.84, 14-Jun-2011
1266,Revenue,CCHD,Supported Living - PS,Private & Voluntary Home Care,Mrs B Kimber,8475.36, 21-Jun-2011
1267,Revenue,CCHD,Supported Living - PS,Private & Voluntary Home Care,Mrs B Kimber,11312.74, 21-Jun-2011
1268,Revenue,CCHD,Day Care - North,Private & Voluntary Day Care,Mrs B Kimber,534.44, 28-Jun-2011
1269,Revenue,CCHD,Day Care - North,Private & Voluntary Day Care,Mrs B Kimber,1239.7, 28-Jun-2011
1270,Revenue,CCHD,Day Care - North,Private & Voluntary Day Care,Mrs B Kimber,908.42, 28-Jun-2011
1271,Revenue,CCHD,Supported Living - KH,Private & Voluntary Home Care,Mrs B Kimber,1701.84, 22-Jun-2011
1272,Revenue,CCHD,Purchase of Non-Res Care - KD,Private & Voluntary Day Care,Mrs B Kimber,795.78, 16-Jun-2011
1273,Revenue,CCHD,Supported Living - KD,Private & Voluntary Home Care,Mrs B Kimber,1311.71, 16-Jun-2011
1274,Revenue,CCHD,Elderly MH non-res purchasing,Private & Voluntary Day Care,Mrs B Kimber,654.12, 22-Jun-2011
1275,Revenue,CCHD,Elderly MH non-res purchasing,Private & Voluntary Day Care,Mrs B Kimber,522.06, 22-Jun-2011
1276,Revenue,CCHD,Supported Living - KH,Private & Voluntary Home Care,Mrs B Kimber,944.84, 22-Jun-2011
1277,Revenue,CCHD,Purchase of Non-Res Care - KH,Private & Voluntary Day Care,Mrs B Kimber,1953.24, 22-Jun-2011
1278,Revenue,CCHD,Contracts & Commissioning Team,Other Small Contracts,Mrs B Kimber,8000, 03-Jun-2011
1279,Revenue,CCHD,Contracts & Commissioning Team,Other Small Contracts,Mrs B Kimber,8000, 10-Jun-2011
1280,Revenue,CCHD,Contracts & Commissioning Team,Other Small Contracts,Mrs B Kimber,8000, 17-Jun-2011
1281,Revenue,CCHD,Contracts & Commissioning Team,Other Small Contracts,Mrs B Kimber,8000, 24-Jun-2011
1282,Revenue,CCHD,Younger MH non-res purchasing,Private & Voluntary Home Care,Mrs Felicity Cooksley,1676, 06-Jun-2011
1283,Revenue,CCHD,Eclipse Park Office,Rent,Mrs M Pendrell,4498.75, 24-Jun-2011
1284,Revenue,CCHD,Purchase of Non-Res Care - KD,Private & Voluntary Day Care,Mrs W Thompson,1460, 14-Jun-2011
1285,Revenue,CCHD,Purchase of Non-Res Care - KD,Private & Voluntary Day Care,Mrs W Thompson,1460, 30-Jun-2011
1286,Revenue,CCHD,Alexandra Way,Cleaning & Domestic Supplies,Muzzell Healthcare,608.4, 01-Jun-2011
1287,Revenue,CCHD,Younger MH non-res purchasing,Private & Voluntary Day Care,NAS Services Limited,586.65, 10-Jun-2011
1288,Revenue,CCHD,Younger MH non-res purchasing,Private & Voluntary Day Care,NAS Services Limited,567.04, 10-Jun-2011
1289,Revenue,CCHD,Younger MH non-res purchasing,Private & Voluntary Day Care,NAS Services Limited,1456.16, 10-Jun-2011
1290,Revenue,CCHD,Younger MH non-res purchasing,Private & Voluntary Day Care,NAS Services Limited,1664.08, 17-Jun-2011
1291,Revenue,CCHD,Purchase of Non-Res Care - KD,Private & Voluntary Day Care,Natureworks Training Community Interest,735.88, 15-Jun-2011
1292,Revenue,CCHD,Learning Difficulties Development Fund,Other Supplies & Services,Natureworks Training Community Interest,13420, 06-Jun-2011
1293,Revenue,CCHD,Contracts & Commissioning Team,Other Small Contracts,Network Health & Social Care,2500, 03-Jun-2011
1294,Revenue,CCHD,Contracts & Commissioning Team,Other Small Contracts,Network Health & Social Care,2500, 10-Jun-2011
1295,Revenue,CCHD,Contracts & Commissioning Team,Other Small Contracts,Network Health & Social Care,2500, 17-Jun-2011
1296,Revenue,CCHD,Contracts & Commissioning Team,Other Small Contracts,Network Health & Social Care,2500, 24-Jun-2011
1297,Revenue,CCHD,Elderly Purchasing - North,Residential Homes,Newton House,785.1, 14-Jun-2011
1298,Revenue,CCHD,Under 65s PWLD - KH,Residential Homes,Nightingale Nursing Home,3037.08, 14-Jun-2011
1299,Revenue,CCHD,Information Systems - Software,Software Support & Maintenance,Northgate Information Solutions UK Limited,1418, 17-Jun-2011
1300,Revenue,CCHD,LD - Kingswood PCT,Gas,npower,961.98, 06-Jun-2011
1301,Revenue,CCHD,Home Care Purch South,Other Small Contracts,Nursing Solutions Limited,826.2, 01-Jun-2011
1302,Revenue,CCHD,Elderly MH Home Care,Other Small Contracts,Nursing Solutions Limited,449.55, 01-Jun-2011
1303,Revenue,CCHD,Elderly MH non-res purchasing,Private & Voluntary Day Care,Nursing Solutions Limited,101.25, 01-Jun-2011
1304,Revenue,CCHD,Home Care Purch South,Other Small Contracts,Nursing Solutions Limited,793.8, 01-Jun-2011
1305,Revenue,CCHD,Elderly MH Home Care,Other Small Contracts,Nursing Solutions Limited,429.3, 01-Jun-2011
1306,Revenue,CCHD,Elderly MH non-res purchasing,Private & Voluntary Day Care,Nursing Solutions Limited,243, 01-Jun-2011
1307,Revenue,CCHD,Home Care Purch South,Other Small Contracts,Nursing Solutions Limited,874.8, 01-Jun-2011
1308,Revenue,CCHD,Elderly MH Home Care,Other Small Contracts,Nursing Solutions Limited,405, 01-Jun-2011
1309,Revenue,CCHD,Elderly MH non-res purchasing,Private & Voluntary Day Care,Nursing Solutions Limited,303.75, 01-Jun-2011
1310,Revenue,CCHD,Home Care Purch South,Other Small Contracts,Nursing Solutions Limited,923.4, 13-Jun-2011
1311,Revenue,CCHD,Elderly MH Home Care,Other Small Contracts,Nursing Solutions Limited,392.85, 13-Jun-2011
1312,Revenue,CCHD,Elderly MH non-res purchasing,Private & Voluntary Day Care,Nursing Solutions Limited,303.75, 13-Jun-2011
1313,Revenue,CCHD,Home Care Purch South,Other Small Contracts,Nursing Solutions Limited,903.15, 13-Jun-2011
1314,Revenue,CCHD,Elderly MH Home Care,Other Small Contracts,Nursing Solutions Limited,405, 13-Jun-2011
1315,Revenue,CCHD,Elderly MH non-res purchasing,Private & Voluntary Day Care,Nursing Solutions Limited,251.1, 13-Jun-2011
1316,Revenue,CCHD,Home Care Purch South,Other Small Contracts,Nursing Solutions Limited,960.11, 13-Jun-2011
1317,Revenue,CCHD,Day Care - South,Private & Voluntary Day Care,Nursing Solutions Limited,162, 13-Jun-2011
1318,Revenue,CCHD,Elderly MH Home Care,Other Small Contracts,Nursing Solutions Limited,409.05, 13-Jun-2011
1319,Revenue,CCHD,Elderly MH non-res purchasing,Private & Voluntary Day Care,Nursing Solutions Limited,145.8, 13-Jun-2011
1320,Revenue,CCHD,Home Care Purch South,Other Small Contracts,Nursing Solutions Limited,959.85, 21-Jun-2011
1321,Revenue,CCHD,Elderly MH Home Care,Other Small Contracts,Nursing Solutions Limited,417.15, 21-Jun-2011
1322,Revenue,CCHD,Elderly MH non-res purchasing,Private & Voluntary Day Care,Nursing Solutions Limited,307.8, 21-Jun-2011
1323,Revenue,CCHD,Home Care Purch South,Other Small Contracts,Nursing Solutions Limited,911.25, 23-Jun-2011
1324,Revenue,CCHD,Elderly MH Home Care,Other Small Contracts,Nursing Solutions Limited,417.15, 23-Jun-2011
1325,Revenue,CCHD,Elderly MH non-res purchasing,Private & Voluntary Day Care,Nursing Solutions Limited,307.8, 23-Jun-2011
1326,Revenue,CCHD,Home Care Purch South,Other Small Contracts,Nursing Solutions Limited,907.2, 27-Jun-2011
1327,Revenue,CCHD,Elderly MH Home Care,Other Small Contracts,Nursing Solutions Limited,437.4, 27-Jun-2011
1328,Revenue,CCHD,Elderly MH non-res purchasing,Private & Voluntary Day Care,Nursing Solutions Limited,311.85, 27-Jun-2011
1329,Revenue,CCHD,Charlton,Refuse Collection Charges,OCS Group UK Ltd,557.43, 21-Jun-2011
1330,Revenue,CCHD,Home Care Purch South,Other Small Contracts,On the Up,320.76, 23-Jun-2011
1331,Revenue,CCHD,Day Care - South,Private & Voluntary Day Care,On the Up,68.04, 23-Jun-2011
1332,Revenue,CCHD,Elderly MH non-res purchasing,Private & Voluntary Day Care,On the Up,155.52, 23-Jun-2011
1333,Revenue,CCHD,Home Care Purch South,Other Small Contracts,On the Up,359.64, 23-Jun-2011
1334,Revenue,CCHD,Day Care - South,Private & Voluntary Day Care,On the Up,68.04, 23-Jun-2011
1335,Revenue,CCHD,Elderly MH non-res purchasing,Private & Voluntary Day Care,On the Up,121.5, 23-Jun-2011
1336,Revenue,CCHD,Home Care Purch South,Other Small Contracts,On the Up,398.52, 23-Jun-2011
1337,Revenue,CCHD,Day Care - South,Private & Voluntary Day Care,On the Up,68.04, 23-Jun-2011
1338,Revenue,CCHD,Elderly MH non-res purchasing,Private & Voluntary Day Care,On the Up,145.8, 23-Jun-2011
1339,Revenue,CCHD,Home Care Purch South,Other Small Contracts,On the Up,398.52, 23-Jun-2011
1340,Revenue,CCHD,Day Care - South,Private & Voluntary Day Care,On the Up,68.04, 23-Jun-2011
1341,Revenue,CCHD,Elderly MH non-res purchasing,Private & Voluntary Day Care,On the Up,155.52, 23-Jun-2011
1342,Revenue,CCHD,S28A - Under 65,Residential Homes,Orchard End Limited,7466.16, 14-Jun-2011
1343,Revenue,CCHD,Elderly Mental Health,Residential Homes,Osborne House,1404.12, 14-Jun-2011
1344,Revenue,CCHD,Southmead Hospital Purchasing,Residential Homes,Osbourne Court,1736.61, 14-Jun-2011
1345,Revenue,CCHD,Elderly Mental Health,Residential Homes,Osbourne Court,1389, 14-Jun-2011
1346,Revenue,CCHD,Elderly Purchasing - North,Residential Homes,Osbourne Court,967.84, 14-Jun-2011
1347,Revenue,CCHD,Elderly Mental Health,Nursing Homes,Osbourne Court,1365.84, 14-Jun-2011
1348,Revenue,CCHD,Section 117 Placements,Residential Homes,Osbourne Court,1848, 14-Jun-2011
1349,Revenue,CCHD,Elderly Purchasing - North,Residential Homes,Osbourne Court,1030.76, 14-Jun-2011
1350,Revenue,CCHD,Elderly Mental Health,Residential Homes,Osbourne Court,1421, 14-Jun-2011
1351,Revenue,CCHD,Section 117 Placements,Residential Homes,Osbourne Court,1848, 14-Jun-2011
1352,Revenue,CCHD,Frenchay Hospital Purchasing,Residential Homes,Osbourne Court,1187.8, 14-Jun-2011
1353,Revenue,CCHD,Under 65s PWLD - PS,Residential Homes,Osprey Court,8046.68, 14-Jun-2011
1354,Revenue,CCHD,S28A - Under 65,Residential Homes,Osprey Court,4491.76, 14-Jun-2011
1355,Revenue,CCHD,S28A - Under 65,Residential Homes,Osprey Court,6658.4, 14-Jun-2011
1356,Revenue,CCHD,Elderly Mental Health,Residential Homes,Park Farm House,1331.48, 14-Jun-2011
1357,Revenue,CCHD,Elderly Purchasing - South,Residential Homes,Park Farm House,1498.8, 14-Jun-2011
1358,Revenue,CCHD,Southmead Hospital Purchasing,Residential Homes,Park Farm House,1510.6, 14-Jun-2011
1359,Revenue,CCHD,Elderly Mental Health,Residential Homes,Park Farm House,1566.4, 14-Jun-2011
1360,Revenue,CCHD,Elderly Mental Health,Residential Homes,Park Farm House,1038.94, 14-Jun-2011
1361,Revenue,CCHD,Elderly Purchasing - South,Residential Homes,Park Street Home,3806.4, 14-Jun-2011
1362,Revenue,CCHD,Under 65s PWLD - KH,Residential Homes,Penleigh House Care Home,4389.32, 14-Jun-2011
1363,Revenue,CCHD,Elderly PWLD - KD,Residential Homes,Penleigh House Care Home,4162.72, 14-Jun-2011
1364,Revenue,CCHD,Under 65s PWLD - KD,Residential Homes,Penleigh House Care Home,4326.72, 14-Jun-2011
1365,Revenue,CCHD,S28A - Under 65,Residential Homes,Penleigh House Care Home,5288.92, 14-Jun-2011
1366,Revenue,CCHD,Section 117 Placements,Nursing Homes,Pennwood Lodge Nursing Home,1911.96, 14-Jun-2011
1367,Revenue,CCHD,Elderly Mental Health,Nursing Homes,Pennwood Lodge Nursing Home,961, 14-Jun-2011
1368,Revenue,CCHD,Elderly Purchasing - North,Residential Homes,Pennwood Lodge Nursing Home,1463.32, 14-Jun-2011
1369,Revenue,CCHD,Elderly Mental Health,Nursing Homes,Pennwood Lodge Nursing Home,1453, 14-Jun-2011
1370,Revenue,CCHD,Elderly Mental Health,Nursing Homes,Pennwood Lodge Nursing Home,1210.68, 14-Jun-2011
1371,Revenue,CCHD,Elderly Mental Health,Nursing Homes,Pennwood Lodge Nursing Home,1453, 14-Jun-2011
1372,Revenue,CCHD,Elderly Mental Health,Nursing Homes,Pennwood Lodge Nursing Home,1166.48, 14-Jun-2011
1373,Revenue,CCHD,Elderly Mental Health,Nursing Homes,Pennwood Lodge Nursing Home,874.28, 14-Jun-2011
1374,Revenue,CCHD,Elderly Mental Health,Nursing Homes,Pennwood Lodge Nursing Home,4684.64, 14-Jun-2011
1375,Revenue,CCHD,Elderly Mental Health,Nursing Homes,Pennwood Lodge Nursing Home,1049.04, 14-Jun-2011
1376,Revenue,CCHD,Blackhorse RAC,Contract Hire & Operational Leases,PHS Group Plc,647.58, 17-Jun-2011
1377,Revenue,CCHD,Kingswood District Office,Cleaning & Domestic Supplies,PHS Group Plc,1144.25, 17-Jun-2011
1378,Revenue,CCHD,Bed and Breakfast,Bed & Breakfast,Pleasant Bed & Breakfast Limited,588, 17-Jun-2011
1379,Revenue,CCHD,Bed and Breakfast,Bed & Breakfast,Pleasant Bed & Breakfast Limited,504, 24-Jun-2011
1380,Revenue,CCHD,Home Care Purch North,Other Small Contracts,Premier Homecare Limited,7295.04, 01-Jun-2011
1381,Revenue,CCHD,Day Care - North,Private & Voluntary Day Care,Premier Homecare Limited,1071.68, 01-Jun-2011
1382,Revenue,CCHD,Elderly MH Home Care,Other Small Contracts,Premier Homecare Limited,179.52, 01-Jun-2011
1383,Revenue,CCHD,Elderly MH non-res purchasing,Private & Voluntary Day Care,Premier Homecare Limited,250.24, 01-Jun-2011
1384,Revenue,CCHD,Home Care Purch North,Other Small Contracts,Premier Homecare Limited,7039.36, 13-Jun-2011
1385,Revenue,CCHD,Day Care - North,Private & Voluntary Day Care,Premier Homecare Limited,859.52, 13-Jun-2011
1386,Revenue,CCHD,Elderly MH Home Care,Other Small Contracts,Premier Homecare Limited,179.52, 13-Jun-2011
1387,Revenue,CCHD,Elderly MH non-res purchasing,Private & Voluntary Day Care,Premier Homecare Limited,250.24, 13-Jun-2011
1388,Revenue,CCHD,Home Care Purch North,Other Small Contracts,Premier Homecare Limited,6364.8, 17-Jun-2011
1389,Revenue,CCHD,Day Care - North,Private & Voluntary Day Care,Premier Homecare Limited,826.88, 17-Jun-2011
1390,Revenue,CCHD,Elderly MH Home Care,Other Small Contracts,Premier Homecare Limited,136, 17-Jun-2011
1391,Revenue,CCHD,Elderly MH non-res purchasing,Private & Voluntary Day Care,Premier Homecare Limited,250.24, 17-Jun-2011
1392,Revenue,CCHD,Home Care Purch North,Other Small Contracts,Premier Homecare Limited,5967.68, 20-Jun-2011
1393,Revenue,CCHD,Day Care - North,Private & Voluntary Day Care,Premier Homecare Limited,674.56, 20-Jun-2011
1394,Revenue,CCHD,Elderly MH Home Care,Other Small Contracts,Premier Homecare Limited,179.52, 20-Jun-2011
1395,Revenue,CCHD,Elderly MH non-res purchasing,Private & Voluntary Day Care,Premier Homecare Limited,250.24, 20-Jun-2011
1396,Revenue,CCHD,Contracts & Commissioning Team,Other Small Contracts,Prestige Nursing,4500, 03-Jun-2011
1397,Revenue,CCHD,Contracts & Commissioning Team,Other Small Contracts,Prestige Nursing,4500, 10-Jun-2011
1398,Revenue,CCHD,Contracts & Commissioning Team,Other Small Contracts,Prestige Nursing,4500, 17-Jun-2011
1399,Revenue,CCHD,Contracts & Commissioning Team,Other Small Contracts,Prestige Nursing,4500, 24-Jun-2011
1400,Revenue,CCHD,Carers STF,Grants to Voluntary Bodies,Princess Royal Trust Carers Centre,37500, 30-Jun-2011
1401,Revenue,CCHD,Carers STF,Grants to Voluntary Bodies,Princess Royal Trust Carers Centre,1930.75, 30-Jun-2011
1402,Revenue,CCHD,Elderly Mental Health,Residential Homes,Prior Mews Care Home,3869.99, 14-Jun-2011
1403,Revenue,CCHD,Kingswood District Office,Postages,Purchase Power,513, 07-Jun-2011
1404,Revenue,CCHD,Elderly Purchasing - South,Residential Homes,Quality Care Homes Ltd,1238.96, 14-Jun-2011
1405,Revenue,CCHD,Elderly Purchasing - South,Residential Homes,Quality Care Homes Ltd,1229, 14-Jun-2011
1406,Revenue,CCHD,Elderly Purchasing - South,Residential Homes,Quality Care Homes Ltd,1396, 14-Jun-2011
1407,Revenue,CCHD,Elderly Purchasing - South,Residential Homes,Quality Care Homes Ltd,1116.92, 14-Jun-2011
1408,Revenue,CCHD,Elderly Purchasing - South,Residential Homes,Quality Care Homes Ltd,1242.8, 14-Jun-2011
1409,Revenue,CCHD,Southmead Hospital Purchasing,Residential Homes,Quality Care Homes Ltd,1199.04, 14-Jun-2011
1410,Revenue,CCHD,Southmead Hospital Purchasing,Residential Homes,Quality Care Homes Ltd,1232.16, 14-Jun-2011
1411,Revenue,CCHD,General EPH budgets,Furniture & Fittings Loose,R & J Decorators (Bristol) Limited,10080, 17-Jun-2011
1412,Revenue,CCHD,Section 117 Placements,Nursing Homes,Redholme Memory Care Limited,1912, 14-Jun-2011
1413,Revenue,CCHD,Elderly Purchasing - South,Nursing Homes,Regent House,1620.8, 14-Jun-2011
1414,Revenue,CCHD,Elderly Purchasing - South,Nursing Homes,Regent House,800.24, 14-Jun-2011
1415,Revenue,CCHD,Elderly Purchasing - South,Nursing Homes,Regent House,1620.8, 14-Jun-2011
1416,Revenue,CCHD,Elderly Purchasing - South,Nursing Homes,Regent House,1708.3, 14-Jun-2011
1417,Revenue,CCHD,Elderly Purchasing - South,Nursing Homes,Regent House,621.2, 14-Jun-2011
1418,Revenue,CCHD,Southmead Hospital Purchasing,Nursing Homes,Regent House,1367, 14-Jun-2011
1419,Revenue,CCHD,Elderly Purchasing - South,Nursing Homes,Regent House,1102.6, 14-Jun-2011
1420,Revenue,CCHD,Elderly Mental Health,Nursing Homes,Regent House,1906.2, 14-Jun-2011
1421,Revenue,CCHD,Elderly Purchasing - South,Nursing Homes,Regent House,1002.5, 14-Jun-2011
1422,Revenue,CCHD,Elderly Mental Health,Nursing Homes,Regent House,1444.2, 14-Jun-2011
1423,Revenue,CCHD,Elderly Mental Health,Nursing Homes,Regent House,1053.04, 14-Jun-2011
1424,Revenue,CCHD,Elderly Mental Health,Nursing Homes,Regent House,1906.2, 14-Jun-2011
1425,Revenue,CCHD,Elderly Mental Health,Nursing Homes,Regent House,1282.72, 14-Jun-2011
1426,Revenue,CCHD,Elderly PWLD - PS,Residential Homes,Renaissance,2156.6, 14-Jun-2011
1427,Revenue,CCHD,Under 65s PWLD - PS,Residential Homes,Ridgeway House,3373.32, 14-Jun-2011
1428,Revenue,CCHD,Elderly Purchasing - South,Nursing Homes,Riversway Nursing Home,1146.88, 14-Jun-2011
1429,Revenue,CCHD,Southmead Hospital Purchasing,Nursing Homes,Riversway Nursing Home,1334.52, 14-Jun-2011
1430,Revenue,CCHD,Southmead Hospital Purchasing,Nursing Homes,Riversway Nursing Home,1690.2, 14-Jun-2011
1431,Revenue,CCHD,Elderly PWLD - PS,Residential Homes,Rockleaze,2134.16, 14-Jun-2011
1432,Revenue,CCHD,Elderly PWLD - PS,Residential Homes,Rockleaze,1386.56, 14-Jun-2011
1433,Revenue,CCHD,S28A - Over 65,Residential Homes,Rockleaze,2015.52, 14-Jun-2011
1434,Revenue,CCHD,Under 65s PWLD - PS,Residential Homes,Rockleaze,2335.08, 14-Jun-2011
1435,Revenue,CCHD,Elderly PWLD - PS,Residential Homes,Rockleaze,1386.56, 14-Jun-2011
1436,Revenue,CCHD,Under 65s PWLD - PS,Residential Homes,Rosewood Lodge & Brook House,7838.16, 14-Jun-2011
1437,Revenue,CCHD,Elderly Mental Health,Residential Homes,Ross Healthcare,1265.36, 14-Jun-2011
1438,Revenue,CCHD,Frenchay Hospital Purchasing,Residential Homes,Roundham Court,1229, 14-Jun-2011
1439,Revenue,CCHD,Community Support ACM - North,Preventative Assistance,Royal National Institute For Deaf People,510.78, 14-Jun-2011
1440,Revenue,CCHD,LD - Kingswood PCT,Agency Staff (Operational)/PCT Pay,Ryeford Cleaning Services Limited,628.33, 01-Jun-2011
1441,Revenue,CCHD,Learning Difficulties PSL,Rent,Individual,1400, 01-Jun-2011
1442,Revenue,CCHD,Woodleaze,"Provisions (Food, etc)",School Milk Services Limited,738.31, 30-Jun-2011
1443,Revenue,CCHD,Charlton,"Provisions (Food, etc)",School Milk Services Limited,672.33, 30-Jun-2011
1444,Revenue,CCHD,Under 65s PWLD - KH,Residential Homes,Scope   Accounts Dept,9853.2, 14-Jun-2011
1445,Revenue,CCHD,Frenchay Hospital Purchasing,Nursing Homes,Sedbury Park Care Centre,1247.12, 14-Jun-2011
1446,Revenue,CCHD,Purchase of Non-Res Care - KD,Private & Voluntary Day Care,Selborne Care Ltd,1568.68, 20-Jun-2011
1447,Revenue,CCHD,Purchase of Non-Res Care - KD,Private & Voluntary Day Care,Selborne Care Ltd,778.96, 08-Jun-2011
1448,Revenue,CCHD,Supported Living - PS,Private & Voluntary Home Care,Selborne Care Ltd,2107.12, 02-Jun-2011
1449,Revenue,CCHD,Supported Living - PS,Private & Voluntary Home Care,Selborne Care Ltd,4997.44, 07-Jun-2011
1450,Revenue,CCHD,Supported Living - PS,Private & Voluntary Home Care,Selborne Care Ltd,2530.48, 02-Jun-2011
1451,Revenue,CCHD,Purchase of Non-Res Care - KD,Private & Voluntary Day Care,Selborne Care Ltd,587.68, 14-Jun-2011
1452,Revenue,CCHD,Purchase of Non-Res Care - KD,Private & Voluntary Day Care,Selborne Care Ltd,1437.76, 14-Jun-2011
1453,Revenue,CCHD,Supported Living - PS,Private & Voluntary Home Care,Selborne Care Ltd,4997.44, 23-Jun-2011
1454,Revenue,CCHD,Purchase of Non-Res Care - KD,Private & Voluntary Day Care,Selborne Care Ltd,878.08, 14-Jun-2011
1455,Revenue,CCHD,Supported Living - KH,Private & Voluntary Home Care,Selborne Care Ltd,1128, 07-Jun-2011
1456,Revenue,CCHD,Purchase of Non-Res Care - KD,Private & Voluntary Day Care,Selborne Care Ltd,816.64, 08-Jun-2011
1457,Revenue,CCHD,Purchase of Non-Res Care - KD,Private & Voluntary Day Care,Selborne Care Ltd,767.52, 14-Jun-2011
1458,Revenue,CCHD,Supported Living - KH,Private & Voluntary Home Care,Selborne Care Ltd,540.44, 07-Jun-2011
1459,Revenue,CCHD,Purchase of Non-Res Care - KD,Private & Voluntary Day Care,Selborne Care Ltd,887.36, 08-Jun-2011
1460,Revenue,CCHD,Purchase of Non-Res Care - PS,Private & Voluntary Day Care,Selborne Care Ltd,1706.4, 15-Jun-2011
1461,Revenue,CCHD,Supported Living - PS,Private & Voluntary Home Care,Selborne Care Ltd,2312.64, 16-Jun-2011
1462,Revenue,CCHD,Purchase of Non-Res Care - KD,Private & Voluntary Day Care,Selborne Care Ltd,608.48, 15-Jun-2011
1463,Revenue,CCHD,Supported Living - PS,Private & Voluntary Home Care,Selborne Care Ltd,1128.96, 16-Jun-2011
1464,Revenue,CCHD,Purchase of Non-Res Care - KD,Private & Voluntary Day Care,Selborne Care Ltd,1343.68, 15-Jun-2011
1465,Revenue,CCHD,Supported Living - PS,Private & Voluntary Home Care,Selborne Care Ltd,4895, 16-Jun-2011
1466,Revenue,CCHD,Supported Living - PS,Private & Voluntary Home Care,Selborne Care Ltd,4997.44, 23-Jun-2011
1467,Revenue,CCHD,Supported Living - KH,Private & Voluntary Home Care,Selborne Care Ltd,1134.4, 23-Jun-2011
1468,Revenue,CCHD,Purchase of Non-Res Care - KD,Private & Voluntary Day Care,Selborne Care Ltd,816.64, 15-Jun-2011
1469,Revenue,CCHD,Supported Living - PS,Private & Voluntary Home Care,Selborne Care Ltd,4557, 16-Jun-2011
1470,Revenue,CCHD,Purchase of Non-Res Care - KD,Private & Voluntary Day Care,Selborne Care Ltd,760.32, 15-Jun-2011
1471,Revenue,CCHD,Supported Living - KH,Private & Voluntary Home Care,Selborne Care Ltd,540.44, 23-Jun-2011
1472,Revenue,CCHD,Supported Living - PS,Private & Voluntary Home Care,Selborne Care Ltd,1827.79, 16-Jun-2011
1473,Revenue,CCHD,Purchase of Non-Res Care - KD,Private & Voluntary Day Care,Selborne Care Ltd,879.96, 15-Jun-2011
1474,Revenue,CCHD,Supported Living - KD,Private & Voluntary Home Care,Self Unlimited,1821.51, 14-Jun-2011
1475,Revenue,CCHD,Supported Living - KD,Private & Voluntary Home Care,Self Unlimited,1762.5, 21-Jun-2011
1476,Revenue,CCHD,Purchase of Non-Res Care - KH,Private & Voluntary Day Care,Servoca Nursing & Care,1293.05, 02-Jun-2011
1477,Revenue,CCHD,Purchase of Non-Res Care - KH,Private & Voluntary Day Care,Servoca Nursing & Care,1083.49, 02-Jun-2011
1478,Revenue,CCHD,Purchase of Non-Res Care - KH,Private & Voluntary Day Care,Servoca Nursing & Care,1238.77, 07-Jun-2011
1479,Revenue,CCHD,Elderly Mental Health,Nursing Homes,Shaw Healthcare Ltd,1231.84, 14-Jun-2011
1480,Revenue,CCHD,S28A - Under 65,Residential Homes,Shaw Healthcare Ltd,10446.72, 14-Jun-2011
1481,Revenue,CCHD,S28A - Under 65,Residential Homes,Shaw Healthcare Ltd,1614.97, 14-Jun-2011
1482,Revenue,CCHD,S28A - Under 65,Residential Homes,Shaw Healthcare Ltd,10446.72, 14-Jun-2011
1483,Revenue,CCHD,S28A - Under 65,Residential Homes,Shaw Healthcare Ltd,1614.97, 14-Jun-2011
1484,Revenue,CCHD,S28A - Under 65,Residential Homes,Shaw Healthcare Ltd,10446.72, 14-Jun-2011
1485,Revenue,CCHD,S28A - Under 65,Residential Homes,Shaw Healthcare Ltd,1614.97, 14-Jun-2011
1486,Revenue,CCHD,S117 Placements PCT,Residential Homes,Shaw Healthcare Ltd,15925.32, 14-Jun-2011
1487,Revenue,CCHD,Under 65s PWLD - PS,Nursing Homes,Shaw Healthcare Ltd,9886.84, 14-Jun-2011
1488,Revenue,CCHD,Under 65s PWLD - KD,Residential Homes,Shaw Healthcare Ltd,10321.36, 14-Jun-2011
1489,Revenue,CCHD,S28A - Under 65,Residential Homes,Shaw Healthcare Ltd,10944.96, 14-Jun-2011
1490,Revenue,CCHD,S28A - Under 65,Residential Homes,Shaw Healthcare Ltd,11746.04, 14-Jun-2011
1491,Revenue,CCHD,S28A - Under 65,Residential Homes,Shaw Healthcare Ltd,5048.8, 14-Jun-2011
1492,Revenue,CCHD,S28A - Over 65,Residential Homes,Shaw Healthcare Ltd,5697.12, 14-Jun-2011
1493,Revenue,CCHD,S28A - Over 65,Residential Homes,Shaw Healthcare Ltd,4858.4, 14-Jun-2011
1494,Revenue,CCHD,Under 65s PWLD - PS,Nursing Homes,Shaw Healthcare Ltd,9886.84, 14-Jun-2011
1495,Revenue,CCHD,S28A - Over 65,Residential Homes,Shaw Healthcare Ltd,4850.4, 14-Jun-2011
1496,Revenue,CCHD,S28A - Over 65,Residential Homes,Shaw Healthcare Ltd,4858.4, 14-Jun-2011
1497,Revenue,CCHD,S28A - Over 65,Residential Homes,Shaw Healthcare Ltd,4866.4, 14-Jun-2011
1498,Revenue,CCHD,S28A - Under 65,Residential Homes,Shaw Healthcare Ltd,9120.92, 14-Jun-2011
1499,Revenue,CCHD,S28A - Over 65,Residential Homes,Shaw Healthcare Ltd,100089.57, 14-Jun-2011
1500,Revenue,CCHD,Purchase of Non-Res Care - KD,Private & Voluntary Day Care,Shaw Healthcare Specialist Services Ltd,851.11, 06-Jun-2011
1501,Revenue,CCHD,Purchase of Non-Res Care - KD,Private & Voluntary Day Care,Shaw Healthcare Specialist Services Ltd,1173.25, 14-Jun-2011
1502,Revenue,CCHD,Purchase of Non-Res Care - KD,Private & Voluntary Day Care,Shaw Healthcare Specialist Services Ltd,778.24, 23-Jun-2011
1503,Revenue,CCHD,Supported Living - KH,Private & Voluntary Home Care,Silva Care Limited,4415.44, 07-Jun-2011
1504,Revenue,CCHD,Supported Living - KH,Private & Voluntary Home Care,Silva Care Limited,4415.44, 23-Jun-2011
1505,Revenue,CCHD,Elderly Purchasing - North,Residential Homes,Simeon Care For The Elderly,1426.64, 14-Jun-2011
1506,Revenue,CCHD,TSG Practice Placements,Training Expenses,Sir Bernard Lovell School,558, 24-Jun-2011
1507,Revenue,CCHD,Alexandra Way,Refuse Collection Charges,SITA UK LTD,614.1, 08-Jun-2011
1508,Revenue,CCHD,Under 65s PWLD - KD,Residential Homes,Small House Homes Limited,17072.43, 14-Jun-2011
1509,Revenue,CCHD,Purchase of Non-Res Care - PS,Private & Voluntary Day Care,Smile Independent Living Support Limited,1252.65, 06-Jun-2011
1510,Revenue,CCHD,Supported Living - KD,Private & Voluntary Home Care,Smile Independent Living Support Limited,1800.9, 02-Jun-2011
1511,Revenue,CCHD,Supported Living - KD,Private & Voluntary Home Care,Smile Independent Living Support Limited,3985.9, 08-Jun-2011
1512,Revenue,CCHD,Purchase of Non-Res Care - PS,Private & Voluntary Day Care,Smile Independent Living Support Limited,665, 15-Jun-2011
1513,Revenue,CCHD,Supported Living - PS,Private & Voluntary Home Care,Smile Independent Living Support Limited,635.05, 15-Jun-2011
1514,Revenue,CCHD,Purchase of Non-Res Care - PS,Private & Voluntary Day Care,Smile Independent Living Support Limited,1229.65, 15-Jun-2011
1515,Revenue,CCHD,Purchase of Non-Res Care - KD,Private & Voluntary Day Care,Smile Independent Living Support Limited,1308, 16-Jun-2011
1516,Revenue,CCHD,Purchase of Non-Res Care - KD,Private & Voluntary Day Care,Smile Independent Living Support Limited,1093.9, 16-Jun-2011
1517,Revenue,CCHD,Supported Living - KD,Private & Voluntary Home Care,Smile Independent Living Support Limited,938.88, 16-Jun-2011
1518,Revenue,CCHD,Purchase of Non-Res Care - KD,Private & Voluntary Day Care,Smile Independent Living Support Limited,597.55, 16-Jun-2011
1519,Revenue,CCHD,Purchase of Non-Res Care - KD,Private & Voluntary Day Care,Smile Independent Living Support Limited,550.15, 16-Jun-2011
1520,Revenue,CCHD,Purchase of Non-Res Care - KD,Private & Voluntary Day Care,Smile Independent Living Support Limited,1027.63, 16-Jun-2011
1521,Revenue,CCHD,Purchase of Non-Res Care - KD,Private & Voluntary Day Care,Smile Independent Living Support Limited,898.9, 16-Jun-2011
1522,Revenue,CCHD,Purchase of Non-Res Care - KD,Private & Voluntary Day Care,Smile Independent Living Support Limited,1055.58, 16-Jun-2011
1523,Revenue,CCHD,Purchase of Non-Res Care - KD,Private & Voluntary Day Care,Smile Independent Living Support Limited,788.09, 16-Jun-2011
1524,Revenue,CCHD,Purchase of Non-Res Care - KD,Private & Voluntary Day Care,Smile Independent Living Support Limited,633.3, 16-Jun-2011
1525,Revenue,CCHD,Supported Living - KD,Private & Voluntary Home Care,Smile Independent Living Support Limited,1831, 16-Jun-2011
1526,Revenue,CCHD,Supported Living - KD,Private & Voluntary Home Care,Smile Independent Living Support Limited,4067.96, 16-Jun-2011
1527,Revenue,CCHD,Supported Living - KD,Private & Voluntary Home Care,Smile Independent Living Support Limited,4088.11, 16-Jun-2011
1528,Revenue,CCHD,Purchase of Non-Res Care - KD,Private & Voluntary Day Care,Smile Independent Living Support Limited,3361.71, 16-Jun-2011
1529,Revenue,CCHD,Carers STF,Grants to Voluntary Bodies,South Gloucestershire Crossroads,16223, 30-Jun-2011
1530,Revenue,CCHD,Contracts & Commissioning Team,Other Small Contracts,South Gloucestershire Crossroads,5000, 03-Jun-2011
1531,Revenue,CCHD,Contracts & Commissioning Team,Other Small Contracts,South Gloucestershire Crossroads,5000, 10-Jun-2011
1532,Revenue,CCHD,Contracts & Commissioning Team,Other Small Contracts,South Gloucestershire Crossroads,5000, 17-Jun-2011
1533,Revenue,CCHD,Contracts & Commissioning Team,Other Small Contracts,South Gloucestershire Crossroads,5000, 27-Jun-2011
1534,Revenue,CCHD,Block Contracts,Nursing Homes,South Gloucestershire Primary Care Trust,33044.57, 24-Jun-2011
1535,Revenue,CCHD,Hydrotherapy,Prop.Serv. General Repairs,South Gloucestershire Primary Care Trust,522.16, 21-Jun-2011
1536,Revenue,CCHD,Hydrotherapy,Programmed General Maintenance,South Gloucestershire Primary Care Trust,82.5, 21-Jun-2011
1537,Revenue,CCHD,Hydrotherapy,Electricity,South Gloucestershire Primary Care Trust,2472.1, 21-Jun-2011
1538,Revenue,CCHD,Hydrotherapy,Gas,South Gloucestershire Primary Care Trust,767.37, 21-Jun-2011
1539,Revenue,CCHD,Hydrotherapy,Cleaning & Domestic Supplies,South Gloucestershire Primary Care Trust,24.58, 21-Jun-2011
1540,Revenue,CCHD,Hydrotherapy,Refuse Collection Charges,South Gloucestershire Primary Care Trust,86, 21-Jun-2011
1541,Revenue,CCHD,Hydrotherapy,Other Premises Costs,South Gloucestershire Primary Care Trust,180.87, 21-Jun-2011
1542,Revenue,CCHD,Hydrotherapy,Uniforms & Clothing,South Gloucestershire Primary Care Trust,39.4, 21-Jun-2011
1543,Revenue,CCHD,Hydrotherapy,Drugs & Medical Supplies,South Gloucestershire Primary Care Trust,17.1, 21-Jun-2011
1544,Revenue,CCHD,LD - Kingswood PCT,Prop.Serv. General Repairs,South Gloucestershire Primary Care Trust,307.16, 21-Jun-2011
1545,Revenue,CCHD,LD - Kingswood PCT,Other Premises Costs,South Gloucestershire Primary Care Trust,688.43, 21-Jun-2011
1546,Revenue,CCHD,LD - Kingswood PCT,Staff Travel Expenses,South Gloucestershire Primary Care Trust,138.69, 21-Jun-2011
1547,Revenue,CCHD,LD - Kingswood PCT,Radio Pager/Mobile Phones,South Gloucestershire Primary Care Trust,6.96, 21-Jun-2011
1548,Revenue,CCHD,Adult LD - Fiveways PCT,Radio Pager/Mobile Phones,South Gloucestershire Primary Care Trust,46.51, 21-Jun-2011
1549,Revenue,CCHD,Minor Adaptations Service,Maintenance by Contractor,Southern Electric Contracting Limited,709.87, 01-Jun-2011
1550,Revenue,CCHD,Under 65s PWLD - KH,Residential Homes,St Brigas,2014.4, 14-Jun-2011
1551,Revenue,CCHD,Under 65s PWLD - PS,Residential Homes,St Brigas,2907.24, 14-Jun-2011
1552,Revenue,CCHD,Under 65s PWLD - KH,Residential Homes,St Brigas,1963.52, 14-Jun-2011
1553,Revenue,CCHD,South Glos Users in South Glos Homes,Nursing Homes,St Monicas Trust,896.88, 14-Jun-2011
1554,Revenue,CCHD,Frenchay Hospital Purchasing,Residential Homes,St Monicas Trust,1232.16, 14-Jun-2011
1555,Revenue,CCHD,Community Support ACM - South,Preventative Assistance,St Roses School,2912, 01-Jun-2011
1556,Revenue,CCHD,Community Support ACM - South,Preventative Assistance,St Roses School,2912, 08-Jun-2011
1557,Revenue,CCHD,Under 65s PWLD - PS,Residential Homes,Stepping Stones Re-Sett. Unit,8464.68, 14-Jun-2011
1558,Revenue,CCHD,Frenchay Hospital Purchasing,Residential Homes,Stonebow House Residential Home,1192.86, 14-Jun-2011
1559,Revenue,CCHD,Elderly Purchasing - South,Nursing Homes,Sunnymede Nursing Home,2265.36, 14-Jun-2011
1560,Revenue,CCHD,Southmead Hospital Purchasing,Nursing Homes,Sunnymede Nursing Home,2570, 14-Jun-2011
1561,Revenue,CCHD,South Glos Users in B&NES Homes,Nursing Homes,Sunnymede Nursing Home,869.6, 14-Jun-2011
1562,Revenue,CCHD,Frenchay Hospital Purchasing,Nursing Homes,Sunnymede Nursing Home,1220.36, 14-Jun-2011
1563,Revenue,CCHD,Frenchay Hospital Purchasing,Nursing Homes,Sunnymede Nursing Home,1089.6, 14-Jun-2011
1564,Revenue,CCHD,Supported Living - KD,Private & Voluntary Home Care,Supported Independance Ltd,975, 30-Jun-2011
1565,Revenue,CCHD,Supported Living - KD,Private & Voluntary Home Care,Supported Independance Ltd,770.25, 30-Jun-2011
1566,Revenue,CCHD,Supported Living - PS,Private & Voluntary Home Care,Supported Independent Living Schemes,638.93, 07-Jun-2011
1567,Revenue,CCHD,Supported Living - PS,Private & Voluntary Home Care,Supported Independent Living Schemes,638.93, 16-Jun-2011
1568,Revenue,CCHD,Housing Needs,Agency Staff (Admin/Support Staff) Pay,SWIM Recruitment,541.66, 16-Jun-2011
1569,Revenue,CCHD,Preventative Technology Grant,Other Supplies & Services,Telecare Services Association,1002, 02-Jun-2011
1570,Revenue,CCHD,Elderly Purchasing - South,Residential Homes,The Beeches,1060.25, 14-Jun-2011
1571,Revenue,CCHD,Purchase of Non-Res Care - KD,Private & Voluntary Day Care,The Brandon Trust,1265.88, 14-Jun-2011
1572,Revenue,CCHD,Purchase of Non-Res Care - KD,Private & Voluntary Day Care,The Brandon Trust,1163.38, 07-Jun-2011
1573,Revenue,CCHD,Purchase of Non-Res Care - KD,Private & Voluntary Day Care,The Brandon Trust,1158.25, 07-Jun-2011
1574,Revenue,CCHD,Purchase of Non-Res Care - KD,Private & Voluntary Day Care,The Brandon Trust,830.25, 07-Jun-2011
1575,Revenue,CCHD,Purchase of Non-Res Care - KH,Private & Voluntary Day Care,The Brandon Trust,522.75, 10-Jun-2011
1576,Revenue,CCHD,Purchase of Non-Res Care - KD,Private & Voluntary Day Care,The Brandon Trust,3918.34, 07-Jun-2011
1577,Revenue,CCHD,Purchase of Non-Res Care - KD,Private & Voluntary Day Care,The Brandon Trust,1183.88, 14-Jun-2011
1578,Revenue,CCHD,Purchase of Non-Res Care - KD,Private & Voluntary Day Care,The Brandon Trust,1091.63, 07-Jun-2011
1579,Revenue,CCHD,Purchase of Non-Res Care - KH,Private & Voluntary Day Care,The Brandon Trust,1017.9, 09-Jun-2011
1580,Revenue,CCHD,Purchase of Non-Res Care - KH,Private & Voluntary Day Care,The Brandon Trust,4592, 10-Jun-2011
1581,Revenue,CCHD,Purchase of Non-Res Care - KH,Private & Voluntary Day Care,The Brandon Trust,2833.45, 07-Jun-2011
1582,Revenue,CCHD,Purchase of Non-Res Care - KH,Private & Voluntary Day Care,The Brandon Trust,812.08, 14-Jun-2011
1583,Revenue,CCHD,Purchase of Non-Res Care - KD,Private & Voluntary Day Care,The Brandon Trust,881.5, 07-Jun-2011
1584,Revenue,CCHD,Purchase of Non-Res Care - KD,Private & Voluntary Day Care,The Brandon Trust,3715.84, 08-Jun-2011
1585,Revenue,CCHD,Supported Living - KH,Private & Voluntary Home Care,The Brandon Trust,559.98, 07-Jun-2011
1586,Revenue,CCHD,Purchase of Non-Res Care - KD,Private & Voluntary Day Care,The Brandon Trust,1547.75, 07-Jun-2011
1587,Revenue,CCHD,Supported Living - KH,Private & Voluntary Home Care,The Brandon Trust,746.64, 10-Jun-2011
1588,Revenue,CCHD,Purchase of Non-Res Care - PS,Private & Voluntary Day Care,The Brandon Trust,1648.64, 02-Jun-2011
1589,Revenue,CCHD,Supported Living - KD,Private & Voluntary Home Care,The Brandon Trust,8856.25, 14-Jun-2011
1590,Revenue,CCHD,Purchase of Non-Res Care - KD,Private & Voluntary Day Care,The Brandon Trust,519.1, 16-Jun-2011
1591,Revenue,CCHD,Supported Living - KD,Private & Voluntary Home Care,The Brandon Trust,9151.46, 27-Jun-2011
1592,Revenue,CCHD,Purchase of Non-Res Care - KH,Private & Voluntary Day Care,The Brandon Trust,615, 23-Jun-2011
1593,Revenue,CCHD,Day Care - North,Private & Voluntary Day Care,The Brandon Trust,686.75, 23-Jun-2011
1594,Revenue,CCHD,Purchase of Non-Res Care - PS,Private & Voluntary Day Care,The Brandon Trust,1004.5, 20-Jun-2011
1595,Revenue,CCHD,Purchase of Non-Res Care - KD,Private & Voluntary Day Care,The Brandon Trust,1224.88, 21-Jun-2011
1596,Revenue,CCHD,Purchase of Non-Res Care - KH,Private & Voluntary Day Care,The Brandon Trust,1148, 23-Jun-2011
1597,Revenue,CCHD,Purchase of Non-Res Care - PS,Private & Voluntary Day Care,The Brandon Trust,584.25, 17-Jun-2011
1598,Revenue,CCHD,Purchase of Non-Res Care - KH,Private & Voluntary Day Care,The Brandon Trust,4879, 23-Jun-2011
1599,Revenue,CCHD,Purchase of Non-Res Care - KH,Private & Voluntary Day Care,The Brandon Trust,3526, 23-Jun-2011
1600,Revenue,CCHD,Purchase of Non-Res Care - KD,Private & Voluntary Day Care,The Brandon Trust,891.75, 21-Jun-2011
1601,Revenue,CCHD,Purchase of Non-Res Care - KD,Private & Voluntary Day Care,The Brandon Trust,1142.88, 20-Jun-2011
1602,Revenue,CCHD,Purchase of Non-Res Care - KH,Private & Voluntary Day Care,The Brandon Trust,684.42, 23-Jun-2011
1603,Revenue,CCHD,Under 65s PWLD - PS,Nursing Homes,The Brandon Trust  Olympus House,5641, 14-Jun-2011
1604,Revenue,CCHD,S28A - Over 65,Residential Homes,The Brandon Trust  Olympus House,3537.96, 14-Jun-2011
1605,Revenue,CCHD,Under 65s PWLD - PS,Residential Homes,The Brandon Trust  Olympus House,11149.88, 14-Jun-2011
1606,Revenue,CCHD,Under 65s PWLD - KD,Residential Homes,The Brandon Trust  Olympus House,3227.8, 14-Jun-2011
1607,Revenue,CCHD,Under 65s PWLD - KD,Residential Homes,The Brandon Trust  Olympus House,5108.24, 14-Jun-2011
1608,Revenue,CCHD,Elderly PWLD - PS,Residential Homes,The Brandon Trust  Olympus House,3338.16, 14-Jun-2011
1609,Revenue,CCHD,Under 65s PWLD - KD,Nursing Homes,The Brandon Trust  Olympus House,5698.96, 14-Jun-2011
1610,Revenue,CCHD,S28A - Over 65,Residential Homes,The Brandon Trust  Olympus House,8935.72, 14-Jun-2011
1611,Revenue,CCHD,S28A - Over 65,Residential Homes,The Brandon Trust  Olympus House,11787.73, 14-Jun-2011
1612,Revenue,CCHD,S28A - Over 65,Residential Homes,The Brandon Trust  Olympus House,3788.72, 14-Jun-2011
1613,Revenue,CCHD,Under 65s PWLD - PS,Nursing Homes,The Brandon Trust  Olympus House,5054.2, 14-Jun-2011
1614,Revenue,CCHD,S28A - Under 65,Residential Homes,The Brandon Trust  Olympus House,5944.52, 14-Jun-2011
1615,Revenue,CCHD,S28A - Under 65,Residential Homes,The Brandon Trust  Olympus House,4815.96, 14-Jun-2011
1616,Revenue,CCHD,S28A - Under 65,Residential Homes,The Brandon Trust  Olympus House,5944.52, 14-Jun-2011
1617,Revenue,CCHD,S28A - Under 65,Residential Homes,The Brandon Trust  Olympus House,5780.52, 14-Jun-2011
1618,Revenue,CCHD,S28A - Over 65,Nursing Homes,The Brandon Trust  Olympus House,5368.28, 14-Jun-2011
1619,Revenue,CCHD,S28A - Over 65,Nursing Homes,The Brandon Trust  Olympus House,5720.76, 14-Jun-2011
1620,Revenue,CCHD,S28A - Under 65,Residential Homes,The Brandon Trust  Olympus House,5189.52, 14-Jun-2011
1621,Revenue,CCHD,S28A - Under 65,Residential Homes,The Brandon Trust  Olympus House,5262.04, 14-Jun-2011
1622,Revenue,CCHD,S28A - Over 65,Residential Homes,The Brandon Trust  Olympus House,7104.36, 14-Jun-2011
1623,Revenue,CCHD,S28A - Under 65,Residential Homes,The Brandon Trust  Olympus House,5944.52, 14-Jun-2011
1624,Revenue,CCHD,S28A - Under 65,Residential Homes,The Brandon Trust  Olympus House,5944.48, 14-Jun-2011
1625,Revenue,CCHD,S28A - Under 65,Residential Homes,The Brandon Trust  Olympus House,4603.08, 14-Jun-2011
1626,Revenue,CCHD,S28A - Under 65,Residential Homes,The Brandon Trust  Olympus House,5262.08, 14-Jun-2011
1627,Revenue,CCHD,S28A - Over 65,Residential Homes,The Brandon Trust  Olympus House,4662.84, 14-Jun-2011
1628,Revenue,CCHD,Purchase of Non-Res Care - KH,Private & Voluntary Day Care,The Camphill Village Trust,1626.21, 02-Jun-2011
1629,Revenue,CCHD,Purchase of Non-Res Care - KH,Private & Voluntary Day Care,The Camphill Village Trust,3218.28, 02-Jun-2011
1630,Revenue,CCHD,Purchase of Non-Res Care - KH,Private & Voluntary Day Care,The Camphill Village Trust,3934.19, 06-Jun-2011
1631,Revenue,CCHD,Purchase of Non-Res Care - KH,Private & Voluntary Day Care,The Camphill Village Trust,3934.19, 06-Jun-2011
1632,Revenue,CCHD,Elderly Mental Health,Residential Homes,The Cidermill,1389, 14-Jun-2011
1633,Revenue,CCHD,Elderly Mental Health,Nursing Homes,The Cidermill,890, 14-Jun-2011
1634,Revenue,CCHD,Elderly Mental Health,Nursing Homes,The Cidermill,1181.8, 14-Jun-2011
1635,Revenue,CCHD,Elderly Mental Health,Residential Homes,The Cidermill,1389, 14-Jun-2011
1636,Revenue,CCHD,Elderly Purchasing - South,Residential Homes,The Gables Residential Home,1285.04, 14-Jun-2011
1637,Revenue,CCHD,Frenchay Hospital Purchasing,Residential Homes,The Gables Residential Home,1229, 14-Jun-2011
1638,Revenue,CCHD,Elderly Purchasing - South,Residential Homes,The Gables Residential Home,1084.28, 14-Jun-2011
1639,Revenue,CCHD,Elderly Mental Health,Residential Homes,The Gables Residential Home,1172.52, 14-Jun-2011
1640,Revenue,CCHD,Section 117 Placements,Residential Homes,The Gables Residential Home,2156.84, 14-Jun-2011
1641,Revenue,CCHD,Frenchay Hospital Purchasing,Residential Homes,The Gables Residential Home,4577.13, 14-Jun-2011
1642,Revenue,CCHD,Elderly Mental Health,Residential Homes,The Grove,1582.4, 14-Jun-2011
1643,Revenue,CCHD,Frenchay Hospital Purchasing,Residential Homes,The Grove,899.52, 14-Jun-2011
1644,Revenue,CCHD,Elderly Mental Health,Residential Homes,The Grove,1566.4, 14-Jun-2011
1645,Revenue,CCHD,Elderly Mental Health,Residential Homes,The Grove,580.64, 14-Jun-2011
1646,Revenue,CCHD,Section 117 Placements,Residential Homes,The Grove,2040, 14-Jun-2011
1647,Revenue,CCHD,Elderly Mental Health,Residential Homes,The Grove,1475.92, 14-Jun-2011
1648,Revenue,CCHD,Elderly Mental Health,Residential Homes,The Grove,1720.76, 14-Jun-2011
1649,Revenue,CCHD,Southmead Hospital Purchasing,Residential Homes,The Grove,1318.76, 14-Jun-2011
1650,Revenue,CCHD,Elderly Mental Health,Residential Homes,The Grove,1480.48, 14-Jun-2011
1651,Revenue,CCHD,Frenchay Hospital Purchasing,Residential Homes,The Grove,814.32, 14-Jun-2011
1652,Revenue,CCHD,Supporting People Programme,Grants to Voluntary Bodies,The Hatch Camphill Community,1168.28, 20-Jun-2011
1653,Revenue,CCHD,Supporting People Programme,Grants to Voluntary Bodies,The Hatch Camphill Community,1168.28, 20-Jun-2011
1654,Revenue,CCHD,Supporting People Programme,Grants to Voluntary Bodies,The Hatch Camphill Community,1168.28, 20-Jun-2011
1655,Revenue,CCHD,Supporting People Programme,Grants to Voluntary Bodies,The Hatch Camphill Community,1168.28, 20-Jun-2011
1656,Revenue,CCHD,Supporting People Programme,Grants to Voluntary Bodies,The Hatch Camphill Community,1168.28, 20-Jun-2011
1657,Revenue,CCHD,Supporting People Programme,Grants to Voluntary Bodies,The Hatch Camphill Community,1168.28, 20-Jun-2011
1658,Revenue,CCHD,Supporting People Programme,Grants to Voluntary Bodies,The Hatch Camphill Community,1168.28, 20-Jun-2011
1659,Revenue,CCHD,Supporting People Programme,Grants to Voluntary Bodies,The Hatch Camphill Community,1168.28, 20-Jun-2011
1660,Revenue,CCHD,Supporting People Programme,Grants to Voluntary Bodies,The Hatch Camphill Community,1168.28, 20-Jun-2011
1661,Revenue,CCHD,Supported Living - KD,Private & Voluntary Home Care,The Hatch Camphill Community,1312.45, 16-Jun-2011
1662,Revenue,CCHD,Frenchay Hospital Purchasing,Nursing Homes,The Heathers,1285, 14-Jun-2011
1663,Revenue,CCHD,Elderly Mental Health,Nursing Homes,The Heathers,1262.52, 14-Jun-2011
1664,Revenue,CCHD,Elderly Purchasing - South,Nursing Homes,The Heathers,1285, 14-Jun-2011
1665,Revenue,CCHD,Frenchay Hospital Purchasing,Nursing Homes,The Heathers,718.6, 14-Jun-2011
1666,Revenue,CCHD,Southmead Hospital Purchasing,Nursing Homes,The Heathers,1468.57, 14-Jun-2011
1667,Revenue,CCHD,Southmead Hospital Purchasing,Nursing Homes,The Heathers,996.6, 14-Jun-2011
1668,Revenue,CCHD,Frenchay Hospital Purchasing,Nursing Homes,The Heathers,1288.24, 14-Jun-2011
1669,Revenue,CCHD,Elderly Mental Health,Nursing Homes,The Heathers,1248.04, 14-Jun-2011
1670,Revenue,CCHD,Frenchay Hospital Purchasing,Nursing Homes,The Heathers,1215.84, 14-Jun-2011
1671,Revenue,CCHD,Elderly Purchasing - North,Nursing Homes,The Heathers,1109.84, 14-Jun-2011
1672,Revenue,CCHD,Southmead Hospital Purchasing,Nursing Homes,The Heathers,738.32, 14-Jun-2011
1673,Revenue,CCHD,Frenchay Hospital Purchasing,Nursing Homes,The Heathers,1285, 14-Jun-2011
1674,Revenue,CCHD,South Glos Users in South Glos Homes,Nursing Homes,The Heathers,916.19, 14-Jun-2011
1675,Revenue,CCHD,Elderly Purchasing - North,Nursing Homes,The Heathers,1140.72, 14-Jun-2011
1676,Revenue,CCHD,Elderly Purchasing - South,Residential Homes,The Manor Cottage,1002.2, 14-Jun-2011
1677,Revenue,CCHD,Frenchay Hospital Purchasing,Residential Homes,The Manor Cottage,641.83, 14-Jun-2011
1678,Revenue,CCHD,Elderly Purchasing - South,Residential Homes,The Manor Cottage,738.68, 14-Jun-2011
1679,Revenue,CCHD,Elderly Purchasing - South,Residential Homes,The Manor Cottage,1389, 14-Jun-2011
1680,Revenue,CCHD,Elderly Purchasing - North,Residential Homes,The Manor Cottage,879.75, 14-Jun-2011
1681,Revenue,CCHD,Frenchay Hospital Purchasing,Residential Homes,The Manor Cottage,1229, 14-Jun-2011
1682,Revenue,CCHD,Frenchay Hospital Purchasing,Residential Homes,The Manor Cottage,614.5, 14-Jun-2011
1683,Revenue,CCHD,Elderly Purchasing - South,Residential Homes,The Manor Cottage,1421.44, 14-Jun-2011
1684,Revenue,CCHD,Elderly Purchasing - South,Residential Homes,The Manor Cottage,894.56, 14-Jun-2011
1685,Revenue,CCHD,Under 65s PWLD - KH,Residential Homes,The Manor House,2825.2, 14-Jun-2011
1686,Revenue,CCHD,Under 65s PWLD - KH,Residential Homes,The Manor House,5069, 14-Jun-2011
1687,Revenue,CCHD,Under 65s PWLD - KH,Residential Homes,The Manor House,3614.36, 14-Jun-2011
1688,Revenue,CCHD,Under 65s PWLD - KH,Residential Homes,The Manor House,2775.52, 14-Jun-2011
1689,Revenue,CCHD,Under 65s PWLD - PS,Residential Homes,The Manor House,3345.84, 14-Jun-2011
1690,Revenue,CCHD,Under 65s PWLD - KD,Residential Homes,The Manor House,2745, 14-Jun-2011
1691,Revenue,CCHD,Under 65s PWLD - KH,Residential Homes,The Manor House,2775.52, 14-Jun-2011
1692,Revenue,CCHD,Under 65s PWLD - KH,Residential Homes,The Manor House,3433, 14-Jun-2011
1693,Revenue,CCHD,Under 65s PWLD - KH,Residential Homes,The Manor House,6230.32, 14-Jun-2011
1694,Revenue,CCHD,S28A - Under 65,Residential Homes,The Manor House,5013, 14-Jun-2011
1695,Revenue,CCHD,Under 65s PWLD - KH,Residential Homes,The Manor House,2822.32, 14-Jun-2011
1696,Revenue,CCHD,Under 65s PWLD - KH,Residential Homes,The Manor House,3519.16, 14-Jun-2011
1697,Revenue,CCHD,Under 65s PWLD - KH,Residential Homes,The Manor House,3086.16, 14-Jun-2011
1698,Revenue,CCHD,Under 65s PWLD - KH,Residential Homes,The Manor House,3431.96, 14-Jun-2011
1699,Revenue,CCHD,Under 65s PWLD - KH,Residential Homes,The Manor House,4333.24, 14-Jun-2011
1700,Revenue,CCHD,Under 65s PWLD - PS,Residential Homes,The Manor House,3202.12, 14-Jun-2011
1701,Revenue,CCHD,Under 65s PWLD - PS,Residential Homes,The Manor House,3008.12, 14-Jun-2011
1702,Revenue,CCHD,Under 65s PWLD - KH,Residential Homes,The Manor House,2822.32, 14-Jun-2011
1703,Revenue,CCHD,Under 65s PWLD - KH,Residential Homes,The Manor House,4474.8, 14-Jun-2011
1704,Revenue,CCHD,Under 65s PWLD - KD,Residential Homes,The Manor House,3355.24, 14-Jun-2011
1705,Revenue,CCHD,Elderly PWLD - KH,Residential Homes,The Manor House,2382.24, 14-Jun-2011
1706,Revenue,CCHD,Under 65s PWLD - PS,Residential Homes,The Manor House,3339.16, 14-Jun-2011
1707,Revenue,CCHD,Under 65s PWLD - KD,Residential Homes,The Manor House,1014.06, 14-Jun-2011
1708,Revenue,CCHD,Under 65s PWLD - KD,Residential Homes,The Manor House,557.34, 14-Jun-2011
1709,Revenue,CCHD,Under 65s PWLD - KH,Residential Homes,The Manor House,4993.04, 14-Jun-2011
1710,Revenue,CCHD,Under 65s PWLD - KH,Residential Homes,The Manor House,2822.32, 14-Jun-2011
1711,Revenue,CCHD,Elderly Mental Health,Residential Homes,The Old Vicarage Residential Home,1345.31, 14-Jun-2011
1712,Revenue,CCHD,Under 65s PWLD - KD,Residential Homes,The Red House Residential Home,2008.36, 14-Jun-2011
1713,Revenue,CCHD,Under 65s PWLD - KD,Residential Homes,The Red House Residential Home,1920.8, 14-Jun-2011
1714,Revenue,CCHD,Elderly PWLD - KD,Residential Homes,The Red House Residential Home,1844.36, 14-Jun-2011
1715,Revenue,CCHD,Under 65s PWLD - KD,Residential Homes,The Red House Residential Home,2008.36, 14-Jun-2011
1716,Revenue,CCHD,Elderly PWLD - KD,Residential Homes,The Red House Residential Home,35818.92, 14-Jun-2011
1717,Revenue,CCHD,Contracts & Commissioning Team,Other Small Contracts,The Royal Bank of Scotland Commercial,5000, 03-Jun-2011
1718,Revenue,CCHD,Contracts & Commissioning Team,Other Small Contracts,The Royal Bank of Scotland Commercial,5000, 10-Jun-2011
1719,Revenue,CCHD,Contracts & Commissioning Team,Other Small Contracts,The Royal Bank of Scotland Commercial,5000, 17-Jun-2011
1720,Revenue,CCHD,Contracts & Commissioning Team,Other Small Contracts,The Royal Bank of Scotland Commercial,5000, 24-Jun-2011
1721,Revenue,CCHD,Home Care Purch North,Other Small Contracts,The Royal Bank of Scotland Commercial,1095, 24-Jun-2011
1722,Revenue,CCHD,Home Care Purch North,Other Small Contracts,The Royal Bank of Scotland Commercial,1095, 28-Jun-2011
1723,Revenue,CCHD,Home Care Purch North,Other Small Contracts,The Royal Bank of Scotland Commercial,1095, 28-Jun-2011
1724,Revenue,CCHD,Home Care Purch North,Other Small Contracts,The Royal Bank of Scotland Commercial,1095, 01-Jun-2011
1725,Revenue,CCHD,Home Care Purch North,Other Small Contracts,The Royal Bank of Scotland Commercial,1095, 01-Jun-2011
1726,Revenue,CCHD,Home Care Purch North,Other Small Contracts,The Royal Bank of Scotland Commercial,1095, 02-Jun-2011
1727,Revenue,CCHD,Home Care Purch North,Other Small Contracts,The Royal Bank of Scotland Commercial,1095, 09-Jun-2011
1728,Revenue,CCHD,Home Care Purch North,Other Small Contracts,The Royal Bank of Scotland Commercial,1095, 14-Jun-2011
1729,Revenue,CCHD,Home Care Purch North,Other Small Contracts,The Royal Bank of Scotland Commercial,1095, 27-Jun-2011
1730,Revenue,CCHD,Home Care Purch North,Other Small Contracts,The Royal Bank of Scotland Commercial,1095, 27-Jun-2011
1731,Revenue,CCHD,Under 65s PWLD - PS,Residential Homes,The Stanstead Centre,3477.88, 14-Jun-2011
1732,Revenue,CCHD,Under 65s PWLD - KD,Residential Homes,The Thomas Moore Project,1730.32, 14-Jun-2011
1733,Revenue,CCHD,Under 65s PWLD - PS,Residential Homes,The Turrets,865.12, 14-Jun-2011
1734,Revenue,CCHD,Elderly PWLD - PS,Residential Homes,The Turrets,3134.56, 14-Jun-2011
1735,Revenue,CCHD,Elderly PWLD - KH,Residential Homes,The Turrets,1481.4, 14-Jun-2011
1736,Revenue,CCHD,Elderly Mental Health,Residential Homes,The Worthies,667.23, 14-Jun-2011
1737,Revenue,CCHD,Frenchay Hospital Purchasing,Residential Homes,The Worthies,802.87, 14-Jun-2011
1738,Revenue,CCHD,Elderly Mental Health,Residential Homes,The Worthies,1389, 14-Jun-2011
1739,Revenue,CCHD,Tenancy Start Up Scheme,Other Supplies & Services,Individual,1000, 08-Jun-2011
1740,Revenue,CCHD,Rent in Advance,Other Supplies & Services,Thornbury Properties,899.99, 14-Jun-2011
1741,Revenue,CCHD,Learning Difficulties PSL,Rent,Individual,650, 22-Jun-2011
1742,Revenue,CCHD,Learning Difficulties PSL,Rent,Individual,750, 22-Jun-2011
1743,Revenue,CCHD,Learning Difficulties PSL,Rent,Individual,488, 22-Jun-2011
1744,Revenue,CCHD,Under 65s PWLD - KH,Residential Homes,Tomlen,6388.84, 14-Jun-2011
1745,Revenue,CCHD,Purchasing Phys Dis - North,Residential Homes,Tracs Group Ltd,6112.4, 14-Jun-2011
1746,Revenue,CCHD,Purchasing Phys Dis - North,Residential Homes,Tracs Group Ltd,4467.68, 14-Jun-2011
1747,Revenue,CCHD,Under 65s PWLD - PS,Residential Homes,Tracs Group Ltd,6414.36, 14-Jun-2011
1748,Revenue,CCHD,Elderly Purchasing - South,Residential Homes,Tracs Group Ltd,6835.76, 14-Jun-2011
1749,Revenue,CCHD,Emersons Green Offices,Rent,Trustees Of The Thorner 1990 Settlement,30090.75, 24-Jun-2011
1750,Revenue,CCHD,Emersons Green Offices,Rent,Trustees Of The Thorner 1990 Settlement,946.25, 22-Jun-2011
1751,Revenue,CCHD,Preventative Technology Grant,Other Supplies & Services,Tunstall Healthcare (UK) Limited,432, 06-Jun-2011
1752,Revenue,CCHD,Minor Adaptations Service,Daily Living Equipment,TVM Cheltenham Limited,1087.5, 10-Jun-2011
1753,Revenue,CCHD,Minor Adaptations Service,Daily Living Equipment,TVM Cheltenham Limited,1334, 10-Jun-2011
1754,Revenue,CCHD,Minor Adaptations Service,Daily Living Equipment,TVM Cheltenham Limited,1691.25, 10-Jun-2011
1755,Revenue,CCHD,Minor Adaptations Service,Daily Living Equipment,TVM Cheltenham Limited,1621.5, 10-Jun-2011
1756,Revenue,CCHD,Minor Adaptations Service,Daily Living Equipment,TVM Cheltenham Limited,3302.5, 10-Jun-2011
1757,Revenue,CCHD,Minor Adaptations Service,Daily Living Equipment,TVM Cheltenham Limited,18950, 27-Jun-2011
1758,Revenue,CCHD,Under 65s PWLD - KD,Residential Homes,Ty Hafod Tudor,3787.16, 14-Jun-2011
1759,Revenue,CCHD,Preventative Technology Grant,Other Supplies & Services,Tytherington Post Office,3250, 17-Jun-2011
1760,Revenue,CCHD,PWLD S 117 Placements,Residential Homes,Unit 2,7341.4, 14-Jun-2011
1761,Revenue,CCHD,Supported Living - KH,Private & Voluntary Home Care,United Response,1460.17, 23-Jun-2011
1762,Revenue,CCHD,Delayed Transfers of Care Gran,Other Supplies & Services,University Hospitals Bristol,8100, 29-Jun-2011
1763,Revenue,CCHD,Delayed Transfers of Care Gran,Other Supplies & Services,University Hospitals Bristol,1200, 29-Jun-2011
1764,Revenue,CCHD,Delayed Transfers of Care Gran,Other Supplies & Services,University Hospitals Bristol,2700, 16-Jun-2011
1765,Revenue,CCHD,Training - Adult Services,Training Expenses,University Of The West Of England,1134, 16-Jun-2011
1766,Revenue,CCHD,Southmead Hospital Purchasing,Residential Homes,Vaughan Lee House,1162.2, 14-Jun-2011
1767,Revenue,CCHD,Homelessness Grant,Agency Staff (Admin/Support Staff) Pay,Venn Group Limited,669.33, 13-Jun-2011
1768,Revenue,CCHD,Homelessness Grant,Agency Staff (Admin/Support Staff) Pay,Venn Group Limited,642.2, 06-Jun-2011
1769,Revenue,CCHD,Homelessness Grant,Agency Staff (Admin/Support Staff) Pay,Venn Group Limited,669.33, 06-Jun-2011
1770,Revenue,CCHD,Homelessness Grant,Agency Staff (Admin/Support Staff) Pay,Venn Group Limited,669.33, 16-Jun-2011
1771,Revenue,CCHD,Homelessness Grant,Agency Staff (Admin/Support Staff) Pay,Venn Group Limited,542.7, 16-Jun-2011
1772,Revenue,CCHD,Homelessness Grant,Agency Staff (Admin/Support Staff) Pay,Venn Group Limited,633.15, 24-Jun-2011
1773,Revenue,CCHD,Homelessness Grant,Agency Staff (Admin/Support Staff) Pay,Venn Group Limited,669.33, 30-Jun-2011
1774,Revenue,CCHD,Elderly Mental Health,Residential Homes,Ventura Residential Care Home,1229, 14-Jun-2011
1775,Revenue,CCHD,Under 65s PWLD - PS,Residential Homes,Victoria Court,11023.36, 14-Jun-2011
1776,Revenue,CCHD,Elderly PWLD - KD,Residential Homes,Victoria Court,8535.32, 14-Jun-2011
1777,Revenue,CCHD,Under 65s PWLD - PS,Residential Homes,Visions,60146.57, 14-Jun-2011
1778,Revenue,CCHD,Under 65s PWLD - PS,Residential Homes,Voyage Ltd,2921.04, 14-Jun-2011
1779,Revenue,CCHD,Under 65s PWLD - KD,Residential Homes,Voyage Ltd,13300.75, 14-Jun-2011
1780,Revenue,CCHD,Under 65s PWLD - KD,Residential Homes,Voyage Ltd,8036.16, 14-Jun-2011
1781,Revenue,CCHD,S28A - Under 65,Residential Homes,Voyage Ltd,6709.84, 14-Jun-2011
1782,Revenue,CCHD,Under 65s PWLD - PS,Residential Homes,Voyage Ltd,7254.36, 14-Jun-2011
1783,Revenue,CCHD,Under 65s PWLD - PS,Residential Homes,Voyage Ltd,5782.64, 14-Jun-2011
1784,Revenue,CCHD,Under 65s PWLD - PS,Residential Homes,Voyage Ltd,6346.64, 14-Jun-2011
1785,Revenue,CCHD,Under 65s PWLD - PS,Residential Homes,Voyage Ltd,7504.68, 14-Jun-2011
1786,Revenue,CCHD,Purchasing Phys Dis - South,Residential Homes,Voyage Ltd,5352, 14-Jun-2011
1787,Revenue,CCHD,Under 65s PWLD - KH,Residential Homes,Voyage Ltd,5098.2, 14-Jun-2011
1788,Revenue,CCHD,Elderly Mental Health,Residential Homes,Wayside Residential Care Home,1389, 14-Jun-2011
1789,Revenue,CCHD,Elderly Mental Health,Residential Homes,Wayside Residential Care Home,1322.32, 14-Jun-2011
1790,Revenue,CCHD,Frenchay Hospital Purchasing,Residential Homes,Wayside Residential Care Home,1305.84, 14-Jun-2011
1791,Revenue,CCHD,Southmead Hospital Purchasing,Residential Homes,Wayside Residential Care Home,1389, 14-Jun-2011
1792,Revenue,CCHD,Elderly Mental Health,Residential Homes,Wayside Residential Care Home,1175.4, 14-Jun-2011
1793,Revenue,CCHD,Southmead Hospital Purchasing,Residential Homes,Wayside Residential Care Home,1264.56, 14-Jun-2011
1794,Revenue,CCHD,Southmead Hospital Purchasing,Residential Homes,Wayside Residential Care Home,901.4, 14-Jun-2011
1795,Revenue,CCHD,Elderly Purchasing - South,Residential Homes,Wayside Residential Care Home,1231.52, 14-Jun-2011
1796,Revenue,CCHD,PWLD S 117 Placements,Residential Homes,West Court,7773.44, 14-Jun-2011
1797,Revenue,CCHD,Elderly Purchasing - North,Residential Homes,Westbury Nursing Home,3371.87, 14-Jun-2011
1798,Revenue,CCHD,Elderly Mental Health,Residential Homes,Westbury Nursing Home,3447.68, 14-Jun-2011
1799,Revenue,CCHD,Minor Adaptations Service,Preventative Assistance,Westside Contracting Limited,10425, 07-Jun-2011
1800,Revenue,CCHD,Elderly Purchasing - North,Residential Homes,Wickwar Nursing Home  Castle House,1157.16, 14-Jun-2011
1801,Revenue,CCHD,South Glos Users in South Glos Homes,Nursing Homes,Wickwar Nursing Home  Castle House,900.66, 14-Jun-2011
1802,Revenue,CCHD,Southmead Hospital Purchasing,Nursing Homes,Wickwar Nursing Home  Castle House,710.32, 14-Jun-2011
1803,Revenue,CCHD,Elderly Purchasing - North,Residential Homes,Wickwar Nursing Home  Castle House,1201.88, 14-Jun-2011
1804,Revenue,CCHD,Frenchay Hospital Purchasing,Nursing Homes,Wickwar Nursing Home  Castle House,969.24, 14-Jun-2011
1805,Revenue,CCHD,Elderly Purchasing - North,Residential Homes,Wickwar Nursing Home  Castle House,1339.48, 14-Jun-2011
1806,Revenue,CCHD,Elderly Purchasing - North,Nursing Homes,Wickwar Nursing Home  Castle House,1285, 14-Jun-2011
1807,Revenue,CCHD,Elderly Purchasing - North,Nursing Homes,Wickwar Nursing Home  Castle House,1361.6, 14-Jun-2011
1808,Revenue,CCHD,Elderly Purchasing - North,Nursing Homes,Wickwar Nursing Home  Castle House,1424.32, 14-Jun-2011
1809,Revenue,CCHD,Elderly Purchasing - North,Residential Homes,Wickwar Nursing Home  Castle House,1216.04, 14-Jun-2011
1810,Revenue,CCHD,Frenchay Hospital Purchasing,Nursing Homes,Wickwar Nursing Home  Castle House,1501.44, 14-Jun-2011
1811,Revenue,CCHD,Southmead Hospital Purchasing,Nursing Homes,Wickwar Nursing Home  Castle House,1674.33, 14-Jun-2011
1812,Revenue,CCHD,Southmead Hospital Purchasing,Nursing Homes,Wickwar Nursing Home  Castle House,1070.52, 14-Jun-2011
1813,Revenue,CCHD,Elderly Purchasing - North,Residential Homes,Wickwar Nursing Home  Castle House,1363.76, 14-Jun-2011
1814,Revenue,CCHD,Elderly Purchasing - North,Nursing Homes,Wickwar Nursing Home  Castle House,1378.44, 14-Jun-2011
1815,Revenue,CCHD,Purchasing Phys Dis - North,Nursing Homes,Wickwar Nursing Home  Castle House,1101.84, 14-Jun-2011
1816,Revenue,CCHD,South Glos Users in South Glos Homes,Nursing Homes,Wickwar Nursing Home  Castle House,916.19, 14-Jun-2011
1817,Revenue,CCHD,South Glos Users in South Glos Homes,Nursing Homes,Wickwar Nursing Home  Castle House,683.26, 14-Jun-2011
1818,Revenue,CCHD,Southmead Hospital Purchasing,Residential Homes,Willow Cottage,1501, 14-Jun-2011
1819,Revenue,CCHD,Frenchay Hospital Purchasing,Residential Homes,Willow Cottage,1055.12, 14-Jun-2011
1820,Revenue,CCHD,Southmead Hospital Purchasing,Residential Homes,Willow Cottage,1382.6, 14-Jun-2011
1821,Revenue,CCHD,Elderly Purchasing - North,Residential Homes,Willow Cottage,1354.68, 14-Jun-2011
1822,Revenue,CCHD,Southmead Hospital Purchasing,Residential Homes,Willow Cottage,1383.32, 14-Jun-2011
1823,Revenue,CCHD,Frenchay Hospital Purchasing,Residential Homes,Willow Cottage,1292.04, 14-Jun-2011
1824,Revenue,CCHD,Frenchay Hospital Purchasing,Nursing Homes,Willow Cottage,1016.8, 14-Jun-2011
1825,Revenue,CCHD,South Glos Users in South Glos Homes,Nursing Homes,Willow Cottage,621.14, 14-Jun-2011
1826,Revenue,CCHD,South Glos Users in South Glos Homes,Nursing Homes,Willow Cottage,590.09, 14-Jun-2011
1827,Revenue,CCHD,Elderly Purchasing - North,Nursing Homes,Willow Cottage,1945.44, 14-Jun-2011
1828,Revenue,CCHD,Frenchay Hospital Purchasing,Nursing Homes,Willow Cottage,1636.2, 14-Jun-2011
1829,Revenue,CCHD,Frenchay Hospital Purchasing,Nursing Homes,Willow Cottage,1320.72, 14-Jun-2011
1830,Revenue,CCHD,Southmead Hospital Purchasing,Nursing Homes,Willow Cottage,1442.72, 14-Jun-2011
1831,Revenue,CCHD,Purchasing Phys Dis - North,Nursing Homes,Willow Cottage,1652.08, 14-Jun-2011
1832,Revenue,CCHD,Elderly Purchasing - North,Nursing Homes,Willow Cottage,1215.44, 14-Jun-2011
1833,Revenue,CCHD,Elderly Purchasing - South,Residential Homes,Willow Cottage,1741, 14-Jun-2011
1834,Revenue,CCHD,Southmead Hospital Purchasing,Nursing Homes,Willow Cottage,1294.68, 14-Jun-2011
1835,Revenue,CCHD,Supporting People Programme,Grants to Voluntary Bodies,Willowbank Care Limited,1329.28, 29-Jun-2011
1836,Revenue,CCHD,Supported Living - KD,Private & Voluntary Home Care,Willowbank Care Limited,3572.52, 06-Jun-2011
1837,Revenue,CCHD,Supported Living - KD,Private & Voluntary Home Care,Willowbank Care Limited,597.74, 22-Jun-2011
1838,Revenue,CCHD,Supported Living - KD,Private & Voluntary Home Care,Willowbank Care Limited,2039.28, 03-Jun-2011
1839,Revenue,CCHD,Supported Living - KD,Private & Voluntary Home Care,Willowbank Care Limited,3572.52, 06-Jun-2011
1840,Revenue,CCHD,Supported Living - KD,Private & Voluntary Home Care,Willowbank Care Limited,3572.52, 16-Jun-2011
1841,Revenue,CCHD,Supported Living - KD,Private & Voluntary Home Care,Willowbank Care Limited,4091.56, 02-Jun-2011
1842,Revenue,CCHD,Supported Living - KD,Private & Voluntary Home Care,Willowbank Care Limited,2039.28, 06-Jun-2011
1843,Revenue,CCHD,Supported Living - KD,Private & Voluntary Home Care,Willowbank Care Limited,3572.52, 22-Jun-2011
1844,Revenue,CCHD,Supported Living - KD,Private & Voluntary Home Care,Willowbank Care Limited,4237.16, 28-Jun-2011
1845,Revenue,CCHD,Supported Living - KD,Private & Voluntary Home Care,Willowbank Care Limited,2039.28, 17-Jun-2011
1846,Revenue,CCHD,Supported Living - KD,Private & Voluntary Home Care,Willowbank Care Limited,4091.56, 06-Jun-2011
1847,Revenue,CCHD,Supported Living - KD,Private & Voluntary Home Care,Willowbank Care Limited,2039.28, 28-Jun-2011
1848,Revenue,CCHD,Supported Living - KD,Private & Voluntary Home Care,Willowbank Care Limited,4091.56, 17-Jun-2011
1849,Revenue,CCHD,Supported Living - KD,Private & Voluntary Home Care,Willowbank Care Limited,4091.56, 28-Jun-2011
1850,Revenue,CCHD,Supported Living - KD,Private & Voluntary Home Care,Willowbank Care Limited,6191.18, 16-Jun-2011
1851,Revenue,CCHD,Supported Living - KD,Private & Voluntary Home Care,Willowbank Care Limited,6191.18, 06-Jun-2011
1852,Revenue,CCHD,Supported Living - KD,Private & Voluntary Home Care,Willowbank Care Limited,6191.18, 06-Jun-2011
1853,Revenue,CCHD,Supported Living - KD,Private & Voluntary Home Care,Willowbank Care Limited,6191.18, 22-Jun-2011
1854,Revenue,CCHD,Supported Living - KD,Private & Voluntary Home Care,Willowbank Care Limited,6191.18, 28-Jun-2011
1855,Revenue,CCHD,Supported Living - KD,Private & Voluntary Home Care,Willowbank Care Limited,3885.41, 22-Jun-2011
1856,Revenue,CCHD,Supported Living - KD,Private & Voluntary Home Care,Willowbank Care Limited,4782.02, 23-Jun-2011
1857,Revenue,CCHD,Supported Living - KD,Private & Voluntary Home Care,Willowbank Care Limited,2092.3, 22-Jun-2011
1858,Revenue,CCHD,Supported Living - KD,Private & Voluntary Home Care,Willowbank Care Limited,2092.3, 02-Jun-2011
1859,Revenue,CCHD,Supported Living - KD,Private & Voluntary Home Care,Willowbank Care Limited,2092.3, 15-Jun-2011
1860,Revenue,CCHD,Supported Living - KD,Private & Voluntary Home Care,Willowbank Care Limited,2092.3, 22-Jun-2011
1861,Revenue,CCHD,Supported Living - KD,Private & Voluntary Home Care,Willowbank Care Limited,2756.94, 28-Jun-2011
1862,Revenue,CCHD,Supported Living - KD,Private & Voluntary Home Care,Willowbank Care Limited,917.42, 06-Jun-2011
1863,Revenue,CCHD,Supported Living - KD,Private & Voluntary Home Care,Willowbank Care Limited,917.42, 15-Jun-2011
1864,Revenue,CCHD,Supported Living - KD,Private & Voluntary Home Care,Willowbank Care Limited,917.42, 22-Jun-2011
1865,Revenue,CCHD,Supported Living - KD,Private & Voluntary Home Care,Willowbank Care Limited,917.42, 28-Jun-2011
1866,Revenue,CCHD,Supported Living - KD,Private & Voluntary Home Care,Willowbank Care Limited,4523.08, 27-Jun-2011
1867,Revenue,CCHD,Supported Living - KD,Private & Voluntary Home Care,Willowbank Care Limited,4523.08, 06-Jun-2011
